Workbook

Sheet Cover
B6: Performance Assessment System PAS Project
C17: SANIPLAN
C20: A Performance Improvement Planning Model
C32: Better information for better urban water and sanitation
C39: CEPT University, Ahmedabad
C46: SANIPLAN has been developed by PAS Project at CEPT University. Initial inputs were provided by CRISIL Infrastructure Advisory.

Sheet Introduction
C2: PERFORMANCE ASSESSMENT SYSTEM PROJECT
C4: SANIPLAN - A Performance Improvement Planning Model
D7: SERVICE ORIENTED PERFORMANCE IMPROVEMENT PLANS (S-PIP)
C8: Performance Improvement component of the PAS Project provides tools and approaches to improve delivery of city-level services for water supply, wastewater and solid waste management. Unlike typical infrastructure investment plans, Service oriented Performance Improvement Plans (S-PIPs) focus on improvements in service delivery. Performance improvement starts with measurement of current performance, followed by identification of potential areas of improvement and development of key improvement actions to improve service delivery with a financially feasible plan.
D10: MODEL FOR PREPARATION OF PERFORMANCE IMPROVEMENT PLAN USING A S-PIP APPROACH
C11: SANIPLAN facilitates planners and decision makers to assess implications of a proposed set of improvement actions and to arrive at a financially viable plan for improvements in delivery of local services for urban water supply, sanitation and solid waste management. It captures the cumulative impact due to a series of actions in the three sub-sectors and helps a review of their financial implications. The model also helps to compare improvement solutions across different options. This makes it easy for users to consider various choices in technology, phasing and financing, and to assess their impact on service levels and municipal finances. The model encourages the service providers to optimise utilisation of existing assets and start by choosing appropriate low-cost actions for service improvement. The Model makes it easy for users to assess various options by quantifying the impact of each option on service delivery, revenues and costs and financing requirements. Several customised reports on service levels and financial impacts provided in the model help users to compare performance, costs and implications on municipal finance. The model also provides a multi-year activity plan and a financing plan for both capital and operation and maintenance (O&M) expenditure requirements. Such detailed analysis for different options provides a basis for an informed debate during stakeholders’ consultations. Thus, use of SANIPLAN can support decision makers make optimal choices which are financially sustainable and improve service delivery. The improvement plans prepared using this approach are rooted in service level improvements, rather than focus only on new infrastructure.
D13: PREPARATION OF A PERFORMANCE IMPROVEMENT PLAN
D36: A) PERFORMANCE ASSESSMENT
D37: Service performance is assessed using a set of key indicators across five themes: coverage, equity, service levels, efficiency and financial sustainability. These include all the indicators from the Ministry of Urban Development's Service Level Benchmarking (SLB) Initiative. A few additional indicators address issues of equity and help capture onsite wastewater management options. This helps to review improvement priorities and plan for short and medium term improvements. Using the PAS data base to identify peer performance, users can compare and prioritise areas that require attention for service performance improvement. This assessment is supported in SANIPLAN through ‘traffic light analysis’ for all indicators. Cities can also track their performance over time to identify priorities. Such analysis provides a more informed basis for stakeholder consultations to identify areas of focus and priority. The key outcome of this stage is a vision for service delivery at the local government (LG) level and identification of targets for key performance areas.
D38: B) ACTION PLANNING
D39: Development of a performance improvement plan requires identification of a set of actions to achieve desired service levels. Conventional infrastructure planning process looks at such investments as 'stand alone projects' rather than an integrated service improvement plan. Under the PIP approach, all inter-related implications of actions in one area are taken into account in the integrated software. For example, an increase in quantity of water supplied is assessed by its impact on increase in per capita supply (lpcd), increase in wastewater to be collected and treated and related capacity implications of wastewater treatment. Similarly, impact of increased number of connections is considered on aspects such as coverage, operating costs, per capita supply and municipal and water supply finances. Under this approach and in SANIPLAN, actions are not limited to traditional investments in new assets, but also include measures related to policy changes, process reengineering and refurbishment of existing assets. These are often referred to as 'no-cost – low-cost measures' which can have significant influence on service levels. Even for traditional investments, SANIPLAN enables an easy assessment of technology and management options. Thus, this component of the PIP process involves selection of various improvement actions and assessing their impact on overall service performance. Through this iterative process, a combination of actions with the desired impact on service levels and which is broadly affordable for the city can be shortlisted. SANIPLAN enables users to design each action in detail in relation to its phasing, costs, revenue generation potential and other design decisions. The Model has already identified a large set of actions with guidance on their calibration. In addition, it also allows additional customised actions to be designed by users. The output of this stage is several plan options and their impacts on service performance.
D40: C) FINANCIAL PLANNING
D41: For identifying a financially sustainable improvement plan, it is important to assess the financial strength of service provider to sustain their existing operational expenditure and make new investments. This also includes wider municipal finance assessment. Financial viability is assessed in relation to the possibility of meeting capital expenditure through internal surplus, grants or external borrowing by the local government (LG). The assessment includes water and sanitation related revenues and expenditure as well as overall revenue and expenditures. SaniPlan links improvement actions across water and sanitation and helps simulate impact on service levels and on municipal finance (revenue, expenditure and surplus) over a ten year period to assess financial sustainability. Using SANIPLAN, several improvement options can be simulated and analysed in terms of their financial (capital and O&M expenditure and additional revenue) implications. The financing plan for each citywide option is arrived at by assessing different sources for selected actions such as: likely availability of grants, internal resources to fund capital improvements from surplus and external borrowing and potential for private and household contributions. The Model also assesses possibility of sustainable external borrowing for capital investments. To assess the possibility of internal sources, financial assessment is done within a municipal finance framework where surplus on both water supply and sanitation (WSS) and non-WSS accounts is estimated after meeting the estimated resource requirements of other non-UWSS activities. Based on this overall assessment, the Model also enables users to iteratively assess tariff revisions needed in taxes and user charges to ensure financial sustainability. This provides important analysis and assessment for more informed decisions through stakeholder consultations.
D42: D) IMPROVEMENT OPTIONS FOR PIP
D43: A number of different options can be simulated in the PIP Model through an iterative process. The options are developed to achieve the locally set sectoral vision and related targets for key performance indicators. Each improvement option comprises a discrete set of actions to achieve either different levels of improvement in service performance, or use different feasible technologies to achieve similar performance levels. The options may also be developed to either capture varying phasing of actions and a different timeline on service improvements, or for varying financing arrangements. For example, for the same technology, options may also capture fully grant-based financing versus use of creative financing with contributions from private sector and households/communities. When it is not possible for the service providers to secure grants for large capital expenditure, it enables an easy assessment of measures for increasing efficiency, cost reductions in service delivery, raising revenue sources and implementing low-cost solutions that bring in significant improvements in service levels. Options are assessed against sectoral achievements and financial feasibility.
D46: USING SANIPLAN FOR PREPARATION OF A CITY SANITATION IMPROVEMENT PLAN
D47: Click on coloured boxes for navigating to respective worksheets
D50: Step 1.1 | F50: Base data of demography, FSM and wastewater for present year
D52: Step 1.2 | F52: Municipal budget information and demand collection balance statements for the last five years
D54: Step 1.3 | F54: Performance of the province, peer group and/or cities in the vicinity with which the city would like to compare their performance
D56: Step 2 | F56: Analysis of present performance levels leading to identification of sectoral goals and improvement priorities
D62: Step 3 | F62: Planning of improvement actions for FSM and wastewater services
D64: Step 4 | F64: Impact of improvement actions on performance levels across plan period
D68: Step 5 | F68: Forecasting of municipal finances based on past trends
D70: Step 6 | F70: Review of financial implications from Action plan
D72: Step 7 | F72: Preparation of feasible capital and operating plan for local government
D76: Step 8 | F76: Comparison of various CSP options based on key parameters
F80: Detailed guidelines for calibrating improvement actions

Sheet General info
C2: PERFORMANCE ASSESSMENT SYSTEM PROJECT
C4: SANIPLAN - A Performance Improvement Planning Model
C6: GENERAL INFORMATION
B9: Instructions for using the model: | D9: INPUT | E9: All blue coloured cells in the model are INPUT cells
D11: OUTPUT | E11: All grey coloured cells in the model are system generated OUTPUT cells
E13: This switch is placed at the top of each sheet to reset by DELETING all input cells for fresh start.
E15: This switch is placed at the top of each page to activate PRINTING for pre-defined page settings.
C18: Calibration of Plan period in model
C20: Base year of the model | G20: For financial years that span over 2 calender years, mention the starting year. Ex for FY 2012-13, mention 2012
C21: Start year of model | E21: =IF(E20<>0,E20+1,"") -> 
C22: End year of model | E22: =IFERROR(E21+9,"") -> 
C24: Date of initiation of FSM Planning process
C25: Date of completion of FSM Planning process
C28: Details of the city
C30: Name
C31: Block/ Taluka
C32: District
C33: State/Province
C34: Country
C35: Class of local government
C36: Mayor/President
C37: Commissioner/Chief Officer
C38: Telephone No.
C39: Fax No.
C40: Email ID
C41: Website
C43: Currency | E43: INR | G43: =IF(E44="Million - Billion","Million","Lakhs") -> Lakhs
C44: Counting system | E44: Lakh - Crore | G44: =IF(E44="Million - Billion",10^6,10^5) -> 100000
C47: Details of city officials involved in FSM planning process
C49: Details of key contact persons | E49: Name | F49: Designation | G49: Phone No. | H49: E-Mail
C50: General Administration
C51: Water Supply
C52: Wastewater
C53: Solid waste
C54: Urban community development (UCD)
C55: Accounts
C56: Tax department
C59: Details of team members/other consultants involved in FSM planning process
C61: Name | E61: Organisation | F61: Designation | G61: Phone No. | H61: E-Mail

Sheet WSS info
C2: PERFORMANCE ASSESSMENT SYSTEM PROJECT
C4: SANIPLAN - A Performance Improvement Planning Model
C6: MODULE I: PERFORMANCE ASSESSMENT
C8: WATERSUPPLY, WASTEWATER AND SWM SECTOR INFORMATION
A9: Click | D9: Demography | E9: Water Supply | F9: FSM and WW | G9: SWM
B10: Instructions for using this sheet | E10: Information related to water supply, FSM and wastewater and solid waste management services has to be filled for the Base year. For each sector, details are to be captured across full ervice chain. Source of information, assumption if any or any other information related to entered values that other users of the model will need should be entered in remarks section. A list of information required is provided below:
E11: WATER SUPPLY: Water production, treatment, distribution, connections and taxes/charges
E12: FSM and WASTEWATER: Details of sewered and non-sewered areas, toilet facilities, onsite sanitation systems, wastewaterand/or FS treatment, disposal, reuse, taxes/charges
E13: SOLID WASTE: Solid waste generation, collection, transportation, disposal & treatment and taxes/charges
B15: I | C15: Demography information
B16: A | C16: Population details
C17: Sr. No. | D17: Particulars | F17: Census 2001 | G17: Census 2011 | H17: Remarks
C18: 1 | D18: Total population
C19: 2 | D19: Slum population
C20: 3 | D20: Total number of households
C21: 4 | D21: Total number of slum households
B23: B | C23: Population growth rate assumptions
C24: Sr. No. | D24: Particulars | F24: Unit | G24: Value | H24: Remarks
C25: 1 | D25: Decadal population growth rate: 2001 - 2011 | F25: Based on actual growth rate for 2001 and 2011 | G25: =IFERROR((G18-F18)/F18,"") -> 
C26: 2 | D26: Decadal population growth rate: 2011 - 2021 | F26: Estimated growth rate
B28: C | C28: Number of properties
C29: Sr. No. | D29: Particulars | F29: Residential properties | G29: Non-residential properties | H29: Remarks
C30: 1 | D30: Total number of properties in city at present NOTE: Count all the properties irrespective of whether they are assessed for property tax or not
C31: 2 | D31: Annual growth rate for increase in properties
C32: 3 | D32: Total number of properties assessed for taxation NOTE: Count only those properties that are assessed in present year
B34: D | C34: City Area and wards
C35: Sr. No. | D35: Particulars | F35: Unit | G35: Value | H35: Remarks
C36: 1 | D36: Jurisdictional area of city | F36: Sq. km
C37: 2 | D37: Inhabitated area of city | F37: Sq. km
C38: 3 | D38: Number of municipal wards | F38: Numbers
C39: 4 | D39: Number of slum settlements in city | F39: Numbers
B42: II | C42: Water supply sector information
B43: A | C43: Water production
B44: i) | C44: Source of water
C45: Sr. No. | D45: Particulars | F45: Allocation in MLD | G45: Actual Drawl in MLD | H45: Remarks
C46: 1 | D46: Surface water - Own Source | H46: Need to check this input for Wai
C47: 2 | D47: Bulk buying of raw water
C48: 3 | D48: Bulk buying of treated water
C49: 4 | D49: Ground water source
D50: Total | F50: =SUM(F46:F49) -> 0 | G50: =SUM(G46:G49) -> 0
C51: 5 | D51: Water from non-ULB sources
B53: ii) | C53: Raw water transmission
C54: Sr. No. | D54: Particulars | F54: Unit | G54: Value | H54: Remarks
C55: 1 | D55: Length of transmission network | F55: Km
C56: 2 | D56: Estimated raw water transmission losses | F56: %
B58: B | C58: Water treatment
B59: i) | C59: Water treatment plant (WTP)
C60: Sr. No. | D60: Particulars | F60: Unit | G60: Value | H60: Remarks
C61: 1 | D61: Total installed capacity of all WTPs | F61: MLD
C62: 2 | D62: Total functional capacity of all WTPs | F62: MLD
C63: 3 | D63: Estimated losses at WTPs | F63: %
B65: ii) | C65: Quantity of treated water supply
C66: Sr. No. | D66: Particulars | F66: Treated supply in MLD | G66: Untreated supply in MLD | H66: Remarks
C67: 1 | D67: Ground water treated | G67: =MAX(G49-F67,0) -> 0
C68: 2 | D68: Surface water routed through water treatment plants | F68: ='WS calcu'!$E$14 -> 0 | G68: =MAX((($G$46+$G$47)*(1-$G$56))-F68,0) -> 0
C69: 3 | D69: Bulk buy of treated water | F69: =G48*(1-$G$56) -> 0 | G69: 0
C70: 4 | D70: Total treated water supplied | F70: =F68*(1-G63)+F67+F69 -> 0 | G70: =G68+G67 -> 0
C71: 5 | D71: Actual water production (treated and untreated) | F71: =F70+G70 -> 0
B73: iii) | C73: Treated water transmission
C74: Sr. No. | D74: Particulars | F74: Unit | G74: Value | H74: Remarks
C75: 1 | D75: Length of treated water transmission network | F75: Km
C76: 2 | D76: Estimated losses in treated water transmission | F76: %
B78: C | C78: Water supply distribution
B79: i) | C79: Water storage
C80: Sr. No. | D80: Particulars | F80: Unit | G80: Value | H80: Remarks
C81: 1 | D81: Total water storage capacity (Aggregate capacity of all elevated service reservoir - ESRs) | F81: ML
B83: ii) | C83: Water supply distribution network
C84: Sr. No. | D84: Particulars | F84: Unit | G84: Value | H84: Remarks
C85: 1 | D85: Total length of distribution network | F85: Km
C86: 2 | D86: Area covered by distribution network | F86: Sq. km
C87: 3 | D87: Slum settlements covered with water supply distribution network | F87: Numbers
B89: iii) | C89: Water supply connections
C90: Sr. No. | D90: Particulars | F90: Number of connections | G90: Number of households served | H90: Remarks
C91: 1 | D91: Domestic non-slum connections
C92: 1.1 | D92: 0.50 inch
C93: 1.2 | D93: 0.75 inch
C94: 1.3 | D94: 1.00 inch
C95: 1.4 | D95: > 1.00 inch
C96: 2 | D96: Domestic slum connections
C97: 2.1 | D97: 0.50 inch
C98: 2.2 | D98: 0.75 inch
C99: 2.3 | D99: 1.00 inch
C100: 2.4 | D100: > 1.00 inch
C101: 3 | D101: Commercial/institutional connections
C102: 3.1 | D102: 0.50 inch
C103: 3.2 | D103: 0.75 inch
C104: 3.3 | D104: 1.00 inch
C105: 3.4 | D105: > 1.00 inch
C106: 4 | D106: Others
C107: 4.1 | D107: 0.50 inch
C108: 4.2 | D108: 0.75 inch
C109: 4.3 | D109: 1.00 inch
C110: 4.4 | D110: > 1.00 inch
C111: 5 | D111: Miscellaneous connections
C112: 5.1 | D112: Group connection in slums
C113: 5.3 | D113: Free connections
C114: 5.2 | D114: Public stand posts/taps
D115: Total | F115: =SUM(F92:F114) -> 0 | G115: =SUM(G92:G114) -> 0
B117: iv) | C117: Metering of water supply connections
C118: Sr. No. | D118: Particulars | F118: Metered connections | G118: Functional metered connections | H118: Remarks
C119: 1 | D119: Domestic non-slum connections
C120: 1.1 | D120: 0.50 inch
C121: 1.2 | D121: 0.75 inch
C122: 1.3 | D122: 1.00 inch
C123: 1.4 | D123: > 1.00 inch
C124: 2 | D124: Domestic slum connections
C125: 2.1 | D125: 0.50 inch
C126: 2.2 | D126: 0.75 inch
C127: 2.3 | D127: 1.00 inch
C128: 2.4 | D128: > 1.00 inch
C129: 3 | D129: Commercial/institutional connections
C130: 3.1 | D130: 0.50 inch
C131: 3.2 | D131: 0.75 inch
C132: 3.3 | D132: 1.00 inch
C133: 3.4 | D133: > 1.00 inch
C134: 4 | D134: Others
C135: 4.1 | D135: 0.50 inch
C136: 4.2 | D136: 0.75 inch
C137: 4.3 | D137: 1.00 inch
C138: 4.4 | D138: > 1.00 inch
C139: 5 | D139: Miscellaneous connections
C140: 5.1 | D140: Group connection in slums
C141: 5.2 | D141: Free connections
D142: Total | F142: =SUM(F120:F141) -> 0 | G142: =SUM(G120:G141) -> 0
B144: v) | C144: Water supply distribution losses
C145: Sr. No. | D145: Particulars | F145: Unit | G145: Value | H145: Remarks
C146: 1 | D146: Estimated losses in water supply distribution | F146: %
C147: 2 | D147: Estimate of households connected with unauthorised connections in city | F147: %
C148: 3 | D148: Estimate of households connected with unauthorised connections in slums | F148: %
B150: vi) | C150: Continuity of water supply
C151: Sr. No. | D151: Particulars | F151: Unit | G151: Value | H151: Remarks
C152: 1 | D152: Average daily hours of water supply NOTE : Count only those days that receive water supply | F152: Hours/days
C153: 2 | D153: Average days of water supply in a month | F153: Days/month
B155: vii) | C155: Quality of water supplied
C156: Sr. No. | D156: Particulars | F156: Unit | G156: Value | H156: Remarks
C157: 1 | D157: Number of water supply samples taken from city | F157: Samples/month
C158: 2 | D158: Total number of samples meeting quality parameters | F158: Samples/month
B160: viii) | C160: Consumer grievance redressal
C161: Sr. No. | D161: Particulars | F161: Unit | G161: Value | H161: Remarks
C162: 1 | D162: Number of water supply related complaints received | F162: Number/month
C163: 2 | D163: Number of complaints resolved within 24 hours | F163: Number/month
B165: D | C165: Water supply related taxes and charges
B166: i) | C166: Current tariff regime (Mention 'Yes' against regime followed in your city)
C167: Sr. No. | D167: Particulars | F167: Unit | G167: Select 'Yes' for the regimes followed in your city | H167: Remarks
C168: 1 | D168: Water tax linked to general property tax | F168: Yes/ No | G168: No
C169: 2 | D169: Flat user charges | F169: Yes/ No | G169: No
C170: 3 | D170: Volumetric user charges | F170: Yes/ No | G170: No
C171: 4 | D171: Water benefit tax | F171: Yes/ No | G171: No
B173: ii) | C173: Water tax linked to general property tax
C174: Sr. No. | D174: Particulars | F174: Unit | G174: Value | H174: Remarks
C175: 1 | D175: Water tax levied as a percentage of property tax | F175: %
B177: iii) | C177: Flat user charges
C178: Sr. No. | D178: Particulars | F178: New connection charges | G178: Annual tariff - Rs./connection/annum | H178: Remarks
C179: 1 | D179: Domestic non-slum connections
C180: 1.1 | D180: 0.50 inch
C181: 1.2 | D181: 0.75 inch
C182: 1.3 | D182: 1.00 inch
C183: 1.4 | D183: > 1.00 inch
C184: 2 | D184: Domestic slum connections
C185: 2.1 | D185: 0.50 inch
C186: 2.2 | D186: 0.75 inch
C187: 2.3 | D187: 1.00 inch
C188: 2.4 | D188: > 1.00 inch
C189: 3 | D189: Commercial/institutional connections
C190: 3.1 | D190: 0.50 inch
C191: 3.2 | D191: 0.75 inch
C192: 3.3 | D192: 1.00 inch
C193: 3.4 | D193: > 1.00 inch
C194: 4 | D194: Others
C195: 4.1 | D195: 0.50 inch
C196: 4.2 | D196: 0.75 inch
C197: 4.3 | D197: 1.00 inch
C198: 4.4 | D198: > 1.00 inch
C199: 5 | D199: Miscellaneous connections
C200: 5.1 | D200: Group connections in slums
C201: 5.3 | D201: Free connections
C202: 5.2 | D202: Public stand posts/taps
B204: iv) | C204: Volumetric user charges
C205: Sr. No. | D205: Particulars | F205: Unit | G205: Value | H205: Remarks
C206: 1 | D206: Domestic non-slum connections | F206: Rs. Per KL
C207: 2 | D207: Domestic slum connections | F207: Rs. Per KL
C208: 3 | D208: Commercial/institutional connections | F208: Rs. Per KL
C209: 4 | D209: Others | F209: Rs. Per KL
C210: 5 | D210: Group connections | F210: Rs. Per KL
B212: v) | C212: Water benefit tax
C213: Sr. No. | D213: Particulars | F213: Unit | G213: Value | H213: Remarks
C214: 1 | D214: Average water benefit tax levied per connection | F214: Rs./connection/annum
B217: III | C217: FSM and wastewater sector information
C219: Select mode of wastewater disposal system in your city | H219: Remarks
C220: Options: | D220: 1. City fully covered with sewerage network; 2. City partially covered with sewerage network; 3. City fully covered with on-site sanitation system
B223: A | C223: Details of sewered areas in city
B224: i) | C224: Details of sewage and sewerage network in city
C225: Sr. No. | D225: Particulars | F225: Unit | G225: Value | H225: Remarks
C226: 1 | D226: Total quantity of sewage generated | F226: MLD | G226: =0.8*G50 -> 0
C227: 2 | D227: Length of sewerage network | F227: Km
C228: 3 | D228: Area covered by sewerage network | F228: Sq. km
C229: 4 | D229: Slum settlements covered with sewerage network | F229: Numbers
C230: 5 | D230: Estimated losses in sewerage network | F230: %
B232: ii) | C232: Sewerage connections
C233: Sr. No. | D233: Particulars | E233: Number of sewerage connections | F233: Number of households connected to sewerage | G233: Number of sewerage connected households with individual toilets | H233: Remarks
... 181 more rows

Sheet Finance info
C2: PERFORMANCE ASSESSMENT SYSTEM PROJECT
C4: SANIPLAN - A Performance Improvement Planning Model
C6: MODULE I: PERFORMANCE ASSESSMENT
C8: MUNICIPAL FINANCE INFORMATION
A9: Click | D9: Municipal Finance | E9: Water Supply | G9: FSM and WW | H9: SWM | J9: Taxes/User charges
B10: Instructions for using this sheet | D10: Municipal finance information related to overall municipal account and separately for Water supply, FSM and wastewater and SWM services are to be filled here. To arrive at best trend estimates for municipal finance projections, past six years' budget figures are compiled for reference. For most of the cities, first four years' 'Actual' figures shall be available definitely. Last year's 'Actual' figures might not be available, hence provide 'Revised' estimates. Additionally, current year's budgeted figures shall be required to calibrate the Model. A table is provided below for specifying status of municipal budgets for each year. Following are the Main Heads of Budget Items for which information has to be furnished: A. Revenue Account - Breakup of Revenue income and expenditure B. Capital Account - Breakup of Capital income and expenditure C. Extraordinary Account - Extraordinary income and expenditure There may be cases of municipal budgets, principally not being aligned with the above three account type structure for budget item heads. Hence, it is necessary to first classify them properly for any analysis. It is suggested to re-classify the budget item heads as per their functions and then furnish recasted figures for this Model. Accounting guidelines like National Municipal Accounts Manual (NMAM) can be refered for the same. Demand and Collection statement for consolidated property tax and separately for each of the three sectors has to be filled in. All LGs have Demand Collection Balance (DCB) statements prepared every year by Tax Department for assessment and collection of taxes (which can be referred to fill this section).
C12: Availability and status of budgets
C13: Particulars | E13: =IFERROR(F13-1,"") ->  | F13: =IFERROR(G13-1,"") ->  | G13: =IFERROR(H13-1,"") ->  | H13: =IFERROR(I13-1,"") ->  | I13: =IFERROR(J13-1,"") ->  | J13: =IF('General info'!$E$20=0,"",'General info'!$E$20) -> 
C14: Availability of budget (tick if available) | E14: TRUE | F14: TRUE | G14: TRUE | H14: TRUE | I14: TRUE | J14: TRUE
C15: Select type of budget figures provided for each year | E15: Actuals | F15: Actuals | G15: Actuals | H15: Actuals | I15: Revised estimates | J15: Budget estimates
C16: Abbreviation for budget type | E16: =IF(E$15="Actuals"," (A)",IF(E$15="Revised estimates"," (RE)",IF(E$15="Budget estimates","(BE)",""))) -> (A) | F16: =IF(F$15="Actuals"," (A)",IF(F$15="Revised estimates"," (RE)",IF(F$15="Budget estimates","(BE)",""))) -> (A) | G16: (A) | H16: (A) | I16: (RE) | J16: (BE)
C18: Inflation assumptions
C19: Sr. No. | D19: Particulars | E19: Unit | F19: Value | G19: NOTE : Estimate inflation rate based on average trend of last five years. Please refer to statistics published by Government of India (GoI) for the same. These Inflation rates shall be applied to all financial projections, thereforearrive at best possible estimates.
C20: 1 | D20: Inflation for capital expenditure items | E20: % per annum | F20: ='Financial Projections'!F15 -> 0.07
C21: 2 | D21: Inflation for O&M cost items | E21: % per annum | F21: ='Financial Projections'!F16 -> 0.05
C22: 3 | D22: Inflation for revenue generated | E22: % per annum | F22: ='Financial Projections'!F17 -> 0.03
B24: I | C24: Municipal revenue and expenditure | J24: =CONCATENATE("All figures in ",'General info'!$E$43," ",'General info'!$G$43) -> All figures in INR Lakhs
C26: Sr. No. | D26: Particulars | E26: =CONCATENATE(E$13," ",E$16) -> (A) | F26: (A) | G26: (A) | H26: (A) | I26: (RE) | J26: (BE)
D27: Opening balance
D28: Property tax
D29: Other taxes and charges
D30: Other receipts (non-tax + grants)
D31: Total revenue receipts | E31: =SUM(E28:E30) -> 0 | F31: =SUM(F28:F30) -> 0 | G31: 0 | H31: 0 | I31: 0 | J31: 0
D33: Revenue expenditure
D35: Capital receipts
D36: Capital expenditure
B38: II | C38: WSS revenue and expenditure | J38: =CONCATENATE("All figures in ",'General info'!$E$43," ",'General info'!$G$43) -> All figures in INR Lakhs
B39: A | C39: Water Supply
C40: Sr. No. | D40: Particulars | E40: =CONCATENATE(E$13," ",E$16) -> (A) | F40: (A) | G40: (A) | H40: (A) | I40: (RE) | J40: (BE)
D41: Water related taxes and charges
D42: Other receipts
D43: Total revenue receipts
D45: Revenue account expenditure
D47: Capital receipts
D48: Capital expenditure
B50: B | C50: FSM and Wastewater
C51: Sr. No. | D51: Particulars | E51: =CONCATENATE(E$13," ",E$16) -> (A) | F51: (A) | G51: (A) | H51: (A) | I51: (RE) | J51: (BE)
D52: Wastewater related taxes and charges
D53: Other receipts
D54: Total revenue receipts | E54: =SUM(E52:E53) -> 0 | F54: =SUM(F52:F53) -> 0 | G54: 0 | H54: 0 | I54: 0 | J54: 0
D56: Revenue expenditure
D58: Capital receipts
D59: Capital expenditure
B61: C | C61: Solid waste managenent
C62: Sr. No. | D62: Particulars | E62: =CONCATENATE(E$13," ",E$16) -> (A) | F62: (A) | G62: (A) | H62: (A) | I62: (RE) | J62: (BE)
D63: SWM related taxes and charges
D64: Other receipts
D65: Total revenue receipts
D67: Revenue expenditure
D69: Capital receipts
D70: Capital expenditure
B72: III | C72: Taxes and user charges | J72: =CONCATENATE("All figures in ",'General info'!$E$43," ",'General info'!$G$43) -> All figures in INR Lakhs
B73: A | C73: Demand, Collection and Balance statement
C75: Sr. No. | D75: Particulars | E75: =H252 -> (A) | G75: =I252 -> (RE) | I75: =J252 -> (BE)
E76: Demand | F76: Collection | G76: Demand | H76: Collection | I76: Demand | J76: Collection
D77: CURRENT DEMAND
C78: 1 | D78: General property tax
C79: 2 | D79: Water supply related taxes and charges
C80: 3 | D80: FSM and wastewater related taxes and charges
C81: 4 | D81: Solid waste related taxes and charges
C82: 5 | D82: Others
D83: Total | E83: =SUM(E78:E82) -> 0 | F83: 0 | G83: 0 | H83: 0 | I83: 0 | J83: 0
D84: ARREAR DEMAND
C85: 1 | D85: General property tax
C86: 2 | D86: Water supply related taxes and charges
C87: 3 | D87: =D80 -> FSM and wastewater related taxes and charges
C88: 4 | D88: Solid waste related taxes and charges
C89: 5 | D89: Others
D90: Total | E90: =SUM(E85:E89) -> 0 | F90: 0 | G90: 0 | H90: 0 | I90: 0 | J90: 0
B96: I | C96: Municipal revenue and expenditure | J96: =CONCATENATE("All figures in ",'General info'!$E$43," ",'General info'!$G$43) -> All figures in INR Lakhs
B97: A | C97: Revenue account
B98: i) | C98: Revenue receipts
C99: Sr. No. | D99: Particulars | E99: =CONCATENATE(E$13," ",E$16) -> (A) | F99: (A) | G99: (A) | H99: (A) | I99: (RE) | J99: (BE)
D100: Opening balance
C101: 1 | D101: Municipal taxes and cess 1.1. Consolidated property tax
D102: 1.2. Others
C103: 2 | D103: Special charges
C104: 3 | D104: Service charges
C105: =C104+1 -> 4 | D105: Grants and contributions
C106: =C105+1 -> 5 | D106: Others
D107: Total | E107: =SUM(E101:E106) -> 0 | F107: 0 | G107: 0 | H107: 0 | I107: 0 | J107: 0
B109: ii) | C109: Revenue expenditure
C110: Sr. No. | D110: Particulars | E110: =E$99 -> (A) | F110: (A) | G110: (A) | H110: (A) | I110: (RE) | J110: (BE)
C111: 1 | D111: General administration department
C112: 2 | D112: Social security
C113: 3 | D113: Public health and welfare
C114: 4 | D114: Education
C115: 5 | D115: Contributions
C116: 6 | D116: Other departments
D117: Total | E117: =SUM(E111:E116) -> 0 | F117: 0 | G117: 0 | H117: 0 | I117: 0 | J117: 0
B119: B | C119: Capital account
B120: i) | C120: Capital receipts
C121: Sr. No. | D121: Particulars | E121: =E$99 -> (A) | F121: (A) | G121: (A) | H121: (A) | I121: (RE) | J121: (BE)
C122: 1 | D122: State scheme grants
C123: 2 | D123: Central scheme grants
C124: 3 | D124: External funds
C125: 4 | D125: Others
D126: Total | E126: =SUM(E122:E125) -> 0 | F126: 0 | G126: 0 | H126: 0 | I126: 0 | J126: 0
B128: ii) | C128: Capital expenditure
C129: Sr. No. | D129: Particulars | E129: =E$99 -> (A) | F129: (A) | G129: (A) | H129: (A) | I129: (RE) | J129: (BE)
C130: 1 | D130: Capital work in progress
C131: 2 | D131: Principal repayments of external funds/ borrowing
C132: 3 | D132: Others
D133: Total | E133: =SUM(E130:E132) -> 0 | F133: 0 | G133: 0 | H133: 0 | I133: 0 | J133: 0
B135: C | C135: Extraordinary account
C136: Sr. No. | D136: Particulars | E136: =E$99 -> (A) | F136: (A) | G136: (A) | H136: (A) | I136: (RE) | J136: (BE)
C137: 1 | D137: Extraordinary receipts
C138: 2 | D138: Extraordinary expenditure
B140: D | C140: Final statement
C141: Sr. No. | D141: Particulars | E141: =E$99 -> (A) | F141: (A) | G141: (A) | H141: (A) | I141: (RE) | J141: (BE)
C142: 1 | D142: Opening Balance | E142: =E100 -> 0 | F142: 0 | G142: 0 | H142: 0 | I142: 0 | J142: 0
C143: 2 | D143: Total income | E143: =E107+E126+E137 -> 0 | F143: 0 | G143: 0 | H143: 0 | I143: 0 | J143: 0
C144: 3 | D144: Total expenditure | E144: =E117+E133+E138 -> 0 | F144: 0 | G144: 0 | H144: 0 | I144: 0 | J144: 0
C145: 4 | D145: Closing balance | E145: =E142+E143-E144 -> 0 | F145: 0 | G145: 0 | H145: 0 | I145: 0 | J145: 0
B148: II | C148: Water supply revenue and expenditure
B149: A | C149: Water supply revenue account
B150: i) | C150: Water supply revenue receipts
C151: Sr. No. | D151: Particulars | E151: =E$99 -> (A) | F151: (A) | G151: (A) | H151: (A) | I151: (RE) | J151: (BE)
C152: 1 | D152: Water tax
C153: 2 | D153: Water benefit tax
C154: 3 | D154: Water charges
C155: 4 | D155: Grants
C156: 5 | D156: Miscellaneous
D157: Total | E157: =SUM(E152:E156) -> 0 | F157: 0 | G157: 0 | H157: 0 | I157: 0 | J157: 0
B159: ii) | C159: Water supply revenue expenditure
C160: Sr. No. | D160: Particulars | E160: =E$99 -> (A) | F160: (A) | G160: (A) | H160: (A) | I160: (RE) | J160: (BE)
C161: 1 | D161: Administrative and establishment expenses
C162: 2 | D162: Bulk water
C163: 3 | D163: Energy expenses
C164: 4 | D164: Other O&M expenses
C165: 5 | D165: Miscellaneous expenses
C166: 6 | D166: Interest payment
D167: Total | E167: =SUM(E161:E166) -> 0 | F167: 0 | G167: 0 | H167: 0 | I167: 0 | J167: 0
B169: B | C169: Water supply capital account
B170: i) | C170: Water supply capital receipts
C171: Sr. No. | D171: Particulars | E171: =E$99 -> (A) | F171: (A) | G171: (A) | H171: (A) | I171: (RE) | J171: (BE)
C172: 1 | D172: State scheme grants
C173: 2 | D173: Central scheme grants
C174: 3 | D174: External funds
C175: 4 | D175: Others
D176: Total | E176: =SUM(E172:E175) -> 0 | F176: 0 | G176: 0 | H176: 0 | I176: 0 | J176: 0
B178: ii) | C178: Water supply capital expenditure
C179: Sr. No. | D179: Particulars | E179: =E$99 -> (A) | F179: (A) | G179: (A) | H179: (A) | I179: (RE) | J179: (BE)
C180: 1 | D180: Capital work in progress
C181: 2 | D181: Principal repayments of external funds/ borrowing
C182: 3 | D182: Others
D183: Total | E183: =SUM(E180:E182) -> 0 | F183: 0 | G183: 0 | H183: 0 | I183: 0 | J183: 0
B186: II | C186: FSM and Wastewater revenue and expenditure | J186: =CONCATENATE("All figures in ",'General info'!$E$43," ",'General info'!$G$43) -> All figures in INR Lakhs
B187: A | C187: FSM and wastewater revenue account
B188: i) | C188: FSM and wastewater revenue receipts
C189: Sr. No. | D189: Particulars | E189: =E$99 -> (A) | F189: (A) | G189: (A) | H189: (A) | I189: (RE) | J189: (BE)
C190: 1 | D190: Wastewater tax
C191: 2 | D191: Septic tank emptying charges
C192: 3 | D192: Sewerage user charges
C193: 4 | D193: Grants
C194: 5 | D194: Miscellaneous
D195: Total | E195: =SUM(E190:E194) -> 0 | F195: 0 | G195: 0 | H195: 0 | I195: 0 | J195: 0
B197: ii) | C197: FSM and wastewater revenue expenditure
C198: Sr. No. | D198: Particulars | E198: =E$99 -> (A) | F198: (A) | G198: (A) | H198: (A) | I198: (RE) | J198: (BE)
C199: 1 | D199: Administrative and establishment expenses
C200: 2 | D200: Energy expenses
C201: 3 | D201: O&M of emptier trucks
C202: 4 | D202: Other O&M expenses
C203: 5 | D203: Miscellaneous
C204: 6 | D204: Interest payment
D205: Total | E205: =SUM(E199:E204) -> 0 | F205: =SUM(F199:F204) -> 0 | G205: 0 | H205: 0 | I205: 0 | J205: 0
B207: B | C207: FSM and wastewater capital account
B208: i) | C208: FSM and wastewater capital receipts
C209: Sr. No. | D209: Particulars | E209: =E$99 -> (A) | F209: (A) | G209: (A) | H209: (A) | I209: (RE) | J209: (BE)
C210: 1 | D210: State scheme grants
C211: 2 | D211: Central scheme grants
C212: 3 | D212: External funds
C213: 4 | D213: Others
D214: Total | E214: =SUM(E210:E213) -> 0 | F214: 0 | G214: 0 | H214: 0 | I214: 0 | J214: 0
B216: ii) | C216: FSM and wastewater capital expenditure
C217: Sr. No. | D217: Particulars | E217: =E$99 -> (A) | F217: (A) | G217: (A) | H217: (A) | I217: (RE) | J217: (BE)
C218: 1 | D218: Capital work in progress
C219: 2 | D219: Principal repayments of external funds/ borrowings
C220: 3 | D220: Others
D221: Total | E221: =SUM(E218:E220) -> 0 | F221: 0 | G221: 0 | H221: 0 | I221: 0 | J221: 0
B224: IV | C224: Solid waste revenue and expenditure
B225: A | C225: Solid waste revenue account
B226: i) | C226: Solid waste revenue receipts
C227: Sr. No. | D227: Particulars | E227: =E$99 -> (A) | F227: (A) | G227: (A) | H227: (A) | I227: (RE) | J227: (BE)
C228: 1 | D228: Solid waste tax
C229: 2 | D229: Grants
C230: 3 | D230: Miscellaneous
D231: Total | E231: =SUM(E228:E230) -> 0 | F231: 0 | G231: 0 | H231: 0 | I231: 0 | J231: 0
B233: ii) | C233: Solid waste revenue expenditure
C234: Sr. No. | D234: Particulars | E234: =E$99 -> (A) | F234: (A) | G234: (A) | H234: (A) | I234: (RE) | J234: (BE)
C235: 1 | D235: Administrative and establishment expenses
C236: 2 | D236: Energy expenses
C237: 3 | D237: Other O&M expenses
C238: 4 | D238: Miscellaneous expenses
C239: 5 | D239: Interest payment
D240: Total | E240: =SUM(E235:E239) -> 0 | F240: 0 | G240: 0 | H240: 0 | I240: 0 | J240: 0
B242: B | C242: Solid waste capital account
B243: i) | C243: Solid waste capital receipts
C244: Sr. No. | D244: Particulars | E244: =E$99 -> (A) | F244: (A) | G244: (A) | H244: (A) | I244: (RE) | J244: (BE)
C245: 1 | D245: State scheme grants
... 10 more rows

Sheet Indicator info
C2: PERFORMANCE ASSESSMENT SYSTEM PROJECT
C4: SANIPLAN - A Performance Improvement Planning Model
C6: MODULE I: PERFORMANCE ASSESSMENT
C8: Information of Key Performance Indicators
A9: Click | C9: Water Supply | E9: WW and FSM | G9: Storm Water | K9: SWM
C10: Instructions for using this sheet
C11: Information of indicators at the state/province level and average of peer group (class average) are to be provided in respective columns. Additionally, one can add indicator values of 4 other cities that the city wants to compare its services with. The titles 'City #' can be replaced by the name of the city. | S11: Class | T11: State | U11: Sewered city | V11: 135 | W11: 100
A13: 1 | B13: 1 | C13: KPI | D13: Short Name | E13: Benchmark | F13: Unit | G13: Province avg | H13: Peer group avg | I13: City 1 | J13: City 2 | K13: ABC | L13: XYZ
A14: 2 | B14: 2 | C14: WATER SUPPLY SERVICES | M14: Max
A15: 3 | B15: 3 | C15: Coverage of individual water supply connections in city | D15: Coverage of WS in city | E15: 100 | F15: % | M15: =E15 -> 100
B16: 4 | C16: Total households with direct water supply network connection as percentage of total households in city.
A17: 12 | B17: 5 | C17: Coverage of individual water supply connection in slums | D17: Coverage of WS in slum | E17: 100 | F17: % | M17: =E17 -> 100
B18: 6 | C18: Slum households with direct water supply network connection as percentage of total slum households in city.
A19: 4 | B19: 7 | C19: Per Capita supply of water at consumer end | D19: Per Capita supply of water at consumer end | E19: =IF(_ModeCityWWDisposal="1. City fully covered with sewerage network",135,IF(_ModeCityWWDisposal="2. City partially covered with sewerage network",100,IF(_ModeCityWWDisposal="3. City fully covered with onsite sanitation system",70,100))) -> 100 | F19: lpcd | M19: 400
B20: 8 | C20: Total water supplied to consumers expressed by population served per day.
A21: 5 | B21: 9 | C21: Extent of metering of water connections | D21: Extent of metering | E21: 100 | F21: % | M21: =E21 -> 100
B22: 10 | C22: Number of functional metered water connections as percentage of total water supply connections.
A23: 6 | B23: 11 | C23: Extent of Non revenue water | D23: Extent of NRW | E23: 15 | F23: % | M23: 100
B24: 12 | C24: Difference between total water produced (ex-treatment plant) and total water sold expressed as percentage of total water produced.
A25: 7 | B25: 13 | C25: Continuity of water supply | D25: Continuity of WS | E25: 24 | F25: hours/day | M25: 24
B26: 14 | C26: Average number of hours of pressurised water supply per day.
A27: 8 | B27: 15 | C27: Efficiency in redressal of customer complaints | D27: Customer complaint WS | E27: 80 | F27: % | M27: 100
B28: 16 | C28: Number of water supply related complaints redressed within 24 hours as percentage of total number of water supply related complaints received.
A29: 9 | B29: 17 | C29: Quality of water supplied | D29: Quality of water supplied | E29: 100 | F29: % | M29: 100
B30: 18 | C30: Percentage of water samples that meet or exceed specified potable water standards as defined by CPHEEO.
A31: 10 | B31: 19 | C31: Efficieny in collection of WS charges | D31: Collection eff. of WS charges | E31: 90 | F31: % | M31: 100
B32: 20 | C32: Current year revenues collected, expressed as percentage of total operating revenues, for the corresponding time period.
A33: 11 | B33: 21 | C33: Cost recovery in WS services | D33: Cost recovery WS | E33: 100 | F33: % | M33: 300
B34: 22 | C34: Total operating revenues expressed as percentage of total operating expenses incurred in the corresponding time period.
A35: 15 | B35: 23 | C35: FSM and WASTE WATER SERVICES
A36: 16 | B36: 24 | C36: Coverage of Toilets | D36: Coverage of Toilets | E36: 100 | F36: % | M36: 100
B37: 25 | C37: Extent to which citizens have access to a toilet (whether individual or community) in a service area.
A38: 17 | B38: 26 | C38: Coverage of sewage network services | D38: Coverage of sewage network services | E38: 100 | F38: % | M38: 100
B39: 27 | C39: Extent to which underground sewerage (or sewage collection network) has reached out to individual properties across service area.
A40: 18 | B40: 28 | C40: Collection efficiency of sewage network | D40: Collection efficiency of sewage network | E40: 100 | F40: % | M40: 100
B41: 29 | C41: Quantum of wastewater collected as percentage of normative sewage generation in the city.
A42: 19 | B42: 30 | C42: Adequacy of Sewage treatment capacity | D42: Adequacy of Sewage treatment capacity | E42: 100 | F42: % | M42: 100
B43: 31 | C43: Secondary treatment (removing oxygen demand and biological solids) capacity available as percentage of normative wastewater generated.
A44: 20 | B44: 32 | C44: Extent of reuse and recycling of treated wastewater | D44: Extent of reuse and recycling of treated watsewater | E44: 20 | F44: % | M44: 100
B45: 33 | C45: Percentage of wastewater received at treatment plant that is recycled or reused after appropriate treatment for various purposes.
A46: 21 | B46: 34 | C46: Quality of waste water treatment | D46: Quality of waste water treatment | E46: 100 | F46: % | M46: 100
B47: 35 | C47: Percentage of wastewater samples (from outlet of STPs) that pass the specified secondary treatment standards laid down by Government of India agencies.
A48: 22 | B48: 36 | C48: Efficieny in redressal of customer complaints | D48: Customer complaint WW | E48: 80 | F48: % | M48: 100
B49: 37 | C49: Number of wastewater related complaints redressed within 24 hours as percentage of total number of wastewater related complaints received.
A50: 23 | B50: 38 | C50: Efficiency in collection of WW charges | D50: Efficiency in collection of WW charges | E50: 90 | F50: % | M50: 100
B51: 39 | C51: Current year revenues collected, expressed as percentage of total operating revenues, for the corresponding time period.
A52: 24 | B52: 40 | C52: Extent of cost recovery in WW services | D52: Cost recovery WW | E52: 100 | F52: % | M52: 300
B53: 41 | C53: Wastewater revenues as percentage of wastewater expenses, for the corresponding time period.
A54: 25 | B54: 42 | C54: Coverage of individual household toilets in city | D54: Coverage of toilets in city | E54: 100 | F54: % | M54: 100
B55: 43 | C55: Number of households with access to individual and group toilets as percentage of total households in city.
A56: 26 | B56: 44 | C56: Coverage of individual household toilets in slums | D56: Coverage of toilets in slums | E56: 100 | F56: % | M56: 100
B57: 45 | C57: Number of households in slum settlements with access to individual and group toilets as percentage of total slum households.
A58: 27 | B58: 46 | C58: Coverage of households with adequate sanitation system | D58: Coverage of adequate sanitation | E58: 100 | F58: % | M58: 100
B59: 47 | C59: Number of households with access to safe and adequate sanitation system for wastewater disposal (sewerage or on-site) as percentage of total households in city.
A60: 28 | B60: 48 | C60: Efficiency of wastewater and septage collection system | D60: Collection eff. of WW & septage | E60: 100 | F60: % | M60: 100
B61: 49 | C61: Aggregate quantum of wastewater collected (through sewerage and settled sewer network) at the intake of treatment plant and wastewater discharged through soak pits as percentage of normative wastewater generated in city. This indicator is calculated based on weighted average of households and wastewater collection systems.
A62: 29 | B62: 50 | C62: Adequacy of wastewater and septage treatment capacity | D62: Treatment adequacy of WW & septage | E62: 100 | F62: % | M62: 100
B63: 51 | C63: Aggregate quantum of sewage, sludge and sullage to be treated with present treatment facilities as percentage of normative wastewater generated in city. This indicator is calculated based on weighted average of households and wastewater treatment facilities.
A64: 30 | B64: 52 | C64: Extent of reuse/ recycling of treated wastewater and septage | D64: Extent of reuse & recycle | E64: 20 | F64: % | M64: 100
B65: 53 | C65: Quantum of wastewater and septage that is recycled or reused after treatment as percentage of normative wastewater and septage generated in city. This indicator is calculated based on weighted average of households and treated wastewater and septage.
A66: 31 | B66: 54 | C66: Quality of wastewater and septage treatment | D66: Quality of WW & septage | E66: 100 | F66: % | M66: 100
B67: 55 | C67: Percentage of wastewater and septage samples meeting Pollution Control Board standards at treatment plant outlets. This indicator is calculated based on weighted average of households and wastewater and septage samples.
A68: 33 | B68: 56 | C68: STORM WATER DRAINAGE | M68: 0
A69: 34 | B69: 57 | C69: Coverage of Storm Water Drainage Network | D69: Coverage of Storm Water Drainage Network | E69: 100 | F69: % | M69: 100
B70: 58 | C70: Percentage of road length covered by the storm water drainage network.
A71: 35 | B71: 59 | C71: Incidence of water logging/ flooding | D71: Incidence of water logging/ flooding | E71: 0 | F71: Number
B72: 60 | C72: Number of times water logging is reported in a year at flood prone points within the city.
A73: 36 | B73: 61 | C73: SOLID WASTE MANAGEMENT | M73: 0
A74: 37 | B74: 62 | C74: Coverage of MSW services in city | D74: Household level coverage of MSW services in city | E74: 100 | F74: % | M74: 100
B75: 63 | C75: Percentage of households and establishments that are covered by a daily doorstep collection system.
A76: 45 | B76: 64 | C76: Coverage of household level solid waste services in city | D76: Coverage of SW services in city | E76: 100 | F76: % | M76: =E76 -> 100
B77: 65 | C77: Percentage of households that are covered by a daily doorstep collection system.
A78: 46 | B78: 66 | C78: Coverage of household level solid waste services in slums | D78: Coverage of SW services in slum | E78: 100 | F78: % | M78: =E78 -> 100
B79: 67 | C79: Percentage of slum households that are covered by a daily doorstep collection system.
A80: 38 | B80: 68 | C80: Efficiency of collection of MSW | D80: Collection eff. of SW | E80: 100 | F80: % | M80: 100
B81: 69 | C81: Waste collected by authorised service providers versus total waste generated excluding recycling/processing at generation point.
A82: 39 | B82: 70 | C82: Extent of segregation of MSW | D82: Segregation of SW | E82: 100 | F82: % | M82: 100
B83: 71 | C83: Percentage of waste from households and establishments that is segregated. It should be at the level of separation of wet and dry waste at the source.
A84: 40 | B84: 72 | C84: Extent of MSW recovered | D84: SW recovered | E84: 80 | F84: % | M84: 100
B85: 73 | C85: Quantum of waste collected, which is either recycled or processed as percentage of waste collected.
A86: 41 | B86: 74 | C86: Extent of scientific disposal of MSW | D86: Scientific disposal of SW | E86: 100 | F86: % | M86: 100
B87: 75 | C87: Extent of compliance with Central Agency standards for disposing waste should be expressed as percentage of quantum of waste disposed at landfill sites including open dump sites.
A88: 42 | B88: 76 | C88: Efficiency in redressal of customer complaints | D88: Customer complaints SW | E88: 80 | F88: % | M88: 100
B89: 77 | C89: Number of solid waste related complaints redressed within 24 hours as percentage of total number of solid waste related complaints received.
A90: 43 | B90: 78 | C90: Efficiency in collection of MSW charges | D90: Efficiency in collection of MSW charges | E90: 90 | F90: % | M90: 100
B91: 79 | C91: Current year revenues collected, expressed as percentage of total operating revenues, for the corresponding time period.
A92: 44 | B92: 80 | C92: Extent of cost recovery in MSW services | D92: Cost recovery SW | E92: 100 | F92: % | M92: 300
B93: 81 | C93: Extent to which city is able to recover all operating expenses of SWM services from operating revenue sources related exclusively to SWM.

Sheet Perf assessment
C2: PERFORMANCE ASSESSMENT SYSTEM PROJECT
C4: SANIPLAN - A Performance Improvement Planning Model
C6: MODULE I: PERFORMANCE ASSESSMENT
C8: PERFORMANCE ASSESSMENT
A9: Click | C9: Water Supply | D9: FSM and WW | G9: Solid Waste Management | K9: Sectoral Vision
C10: Instructions for using this sheet
C11: This sheet enables the user to identify priorities based on the city's current service performance by comparing the Key Performance Indicators (KPIs) against the nationally suggested benchmarks as well as performance of peers as specified by the users. It also helps to identify specific local/ contextual areas that need improvement by reviewing the relevant charts for each of the four KPI themes (i. Access - coverage and equity, ii. Service levels and quality, iii. Efficiency in service operations, and iv. Financial Sustainability). Actions are suggested for each theme. It is also recognized that each action may affect more than one KPI as illustrated in the Action-KPI matrices. Actions are grouped into four categories depending on the nature of their implementation.
C12: A. Data improvement measures | D12: These actions will help improve data quality which is often poor, though will not directly impact the performance levels.
C13: B. Process/policy improvement measures | D13: These actions highlight the process or policy areas that need to be addressed in implementation.
C14: C. Existing system improvement measures | D14: These actions highlight the scope for improving existing infrastructure which may help achieve desired results at low-cost.
C15: D. Create new infrastructure | D15: These actions inclide new infrastructure projects that can be undertaken.
C16: The full set of selected actions helps to define an overall sectoral vision for improvement - goals and planning priorities. This chart (Row 266 onwards) is generated by selecting all relevant actions using the check box provided against each KPI and action.
B18: I | C18: WATER SUPPLY
H20: Select | I20: Select
C21: Key Performance Indicator | D21: Value | F21: Compare with | G21: Benchmark | H21: Peer group avg | I21: XYZ | J21: Entities to compare performance of your city | T21: WATER SUPPLY
T22: =COUNTIF($U$22:U22,TRUE) -> 0
C23: Coverage of individual water supply connections in city | D23: ='Summary of PIP'!D24 -> 0 | T23: =COUNTIF($U$22:U23,TRUE) -> 0
C24: Coverage of individual water supply connection in slums | D24: ='Summary of PIP'!D26 -> 0 | T24: =COUNTIF($U$22:U24,TRUE) -> 0
C25: Per capita supply of water at consumer end (lpcd) | D25: ='Summary of PIP'!D35 -> 0 | T25: =COUNTIF($U$22:U25,TRUE) -> 0
C26: Continuity of water supplied (hours/day) | D26: ='Summary of PIP'!D37 -> 0 | T26: =COUNTIF($U$22:U26,TRUE) -> 0
C27: Extent of Non-revenue water | D27: ='Summary of PIP'!D50 -> 0 | T27: =COUNTIF($U$22:U27,TRUE) -> 0
C28: Extent of functional metering of water supply connections | D28: ='Summary of PIP'!D52 -> 0 | T28: =COUNTIF($U$22:U28,TRUE) -> 0
C29: Quality of water supplied | D29: ='Summary of PIP'!D39 -> 0 | T29: =COUNTIF($U$22:U29,TRUE) -> 0
C30: Efficiency in redressal of customer complaints | D30: ='Summary of PIP'!D54 -> 0 | T30: =COUNTIF($U$22:U30,TRUE) -> 0
C31: Efficiency in collection of water supply charges and taxes | D31: ='Summary of PIP'!D65 -> 0 | T31: =COUNTIF($U$22:U31,TRUE) -> 0
C32: Cost recovery in water supply services | D32: ='Summary of PIP'!D67 -> 0
C35: ACCESS AND COVERAGE | I35: Click here | J35: Simulate Improvement Plan
C37: Actions for performance improvement | D37: Impact of actions on KPIs
D38: Coverage of individual connections in city | E38: Coverage of individual connections in slums | F38: Per capita supply of water | G38: Continuity of water supplied | H38: Extent of non- revenue water | I38: Extent of functional metering | J38: Quality of water supplied | K38: Efficiency in redressal of complaints | L38: Efficiency in collection of water supply charges | M38: Extent of water supply cost recovery
C39: A) Data improvement measures | T39: =COUNTIF($U$39:U39,TRUE) -> 0
C40: ='WS Plan'!F22 -> Household survey to assess water supply services | T40: =COUNTIF($U$39:U40,TRUE) -> 0
C41: ='WS Plan'!F28 -> Computerise water supply records | T41: =COUNTIF($U$39:U41,TRUE) -> 0
C42: B) Process/Policy improvement measures - No cost | T42: =COUNTIF($U$39:U42,TRUE) -> 0
C43: ='WS Plan'!F34 -> Process improvement for new water supply connection applications | T43: =COUNTIF($U$39:U43,TRUE) -> 0
C44: ='WS Plan'!F35 -> Policy for providing individual water connections in slums | T44: =COUNTIF($U$39:U44,TRUE) -> 0
C45: C) Existing system improvement measures - Low cost | T45: =COUNTIF($U$39:U45,TRUE) -> 0
C46: ='WS Plan'!F39 -> Regularise unauthorised water supply connections | T46: =COUNTIF($U$39:U46,TRUE) -> 0
C47: ='WS Plan'!F44 -> Increase connections using existing water supply distribution network | T47: =COUNTIF($U$39:U47,TRUE) -> 0
C48: ='WS Plan'!F49 -> Convert stand posts/public taps into group connections | T48: =COUNTIF($U$39:U48,TRUE) -> 0
C49: D) Create new infrastructure - High cost | T49: =COUNTIF($U$39:U49,TRUE) -> 0
C50: ='WS Plan'!F55 -> Lay new water supply distribution network | T50: =COUNTIF($U$39:U50,TRUE) -> 0
C51: ='WS Plan'!F64 -> Lay internal infrastructure of water supply lines in slums | T51: =COUNTIF($U$39:U51,TRUE) -> 0
C52: SERVICE LEVELS AND QUALITY | I52: Click here | J52: Simulate Improvement Plan | T52: =COUNTIF($U$39:U52,TRUE) -> 0
T53: =COUNTIF($U$39:U53,TRUE) -> 0
C54: Actions for performance improvement | D54: Impact of actions on KPIs | T54: =COUNTIF($U$39:U54,TRUE) -> 0
D55: Coverage of individual connections in city | E55: Coverage of individual connections in slums | F55: Per capita supply of water | G55: Continuity of water supplied | H55: Extent of non- revenue water | I55: Extent of functional metering | J55: Quality of water supplied | K55: Efficiency in redressal of complaints | L55: Efficiency in collection of water supply charges | M55: Extent of water supply cost recovery | T55: =COUNTIF($U$39:U55,TRUE) -> 0
C56: A) Process/Policy improvement measures - No cost | T56: =COUNTIF($U$39:U56,TRUE) -> 0
C57: ='WS Plan'!F76 -> Improve water supply quality surveillance | T57: =COUNTIF($U$39:U57,TRUE) -> 0
C58: B) Existing system improvement measures - Low cost | T58: =COUNTIF($U$39:U58,TRUE) -> 0
C59: ='WS Plan'!F80 -> Increase continuity of water supply services | T59: =COUNTIF($U$39:U59,TRUE) -> 0
C60: ='WS Plan'!F87 -> Repair existing water treatment plant to improve water quality | T60: =COUNTIF($U$39:U60,TRUE) -> 0
C61: ='WS Plan'!F94 -> Treatment of untreated supply ground water | T61: =COUNTIF($U$39:U61,TRUE) -> 0
C62: C) Create new infrastructure - High cost | T62: =COUNTIF($U$39:U62,TRUE) -> 0
C63: ='WS Plan'!F101 -> Augment water supply sources | T63: =COUNTIF($U$39:U63,TRUE) -> 0
C64: ='WS Plan'!F125 -> Expand/replace water supply transmission network | T64: =COUNTIF($U$39:U64,TRUE) -> 0
C65: ='WS Plan'!F129 -> Construct/augment water treatment plant | T65: =COUNTIF($U$39:U65,TRUE) -> 0
C66: ='WS Plan'!F135 -> Construct/augment water storage capacity | T66: =COUNTIF($U$39:U66,TRUE) -> 0
C67: EFFICIENCY IN SERVICE OPERATION | I67: Click here | J67: Simulate Performance Improvement Plan | T67: =COUNTIF($U$39:U67,TRUE) -> 0
T68: =COUNTIF($U$39:U68,TRUE) -> 0
C69: Actions for performance improvement | D69: Impact of actions on KPIs | T69: =COUNTIF($U$39:U69,TRUE) -> 0
D70: Coverage of individual connections in city | E70: Coverage of individual connections in slums | F70: Per capita supply of water | G70: Continuity of water supplied | H70: Extent of non- revenue water | I70: Extent of functional metering | J70: Quality of water supplied | K70: Efficiency in redressal of complaints | L70: Efficiency in collection of water supply charges | M70: Extent of water supply cost recovery | T70: =COUNTIF($U$39:U70,TRUE) -> 0
C71: A) Data improvement measures | T71: =COUNTIF($U$39:U71,TRUE) -> 0
C72: ='WS Plan'!F147 -> Conduct water audit | T72: =COUNTIF($U$39:U72,TRUE) -> 0
C73: ='WS Plan'!F149 -> Conduct energy audit | T73: =COUNTIF($U$39:U73,TRUE) -> 0
C74: ='WS Plan'!F151 -> Install bulk flow meters | T74: =COUNTIF($U$39:U74,TRUE) -> 0
C75: ='WS Plan'!F155 -> Map water supply and wastewater network | T75: =COUNTIF($U$39:U75,TRUE) -> 0
C76: ='WS Plan'!F159 -> Conduct Hydraulic modelling | T76: =COUNTIF($U$39:U76,TRUE) -> 0
C77: ='WS Plan'!F161 -> Conduct Utilities survey (asset mapping) | T77: =COUNTIF($U$39:U77,TRUE) -> 0
C78: B) Process/Policy improvement measures - No cost | T78: =COUNTIF($U$39:U78,TRUE) -> 0
C79: ='WS Plan'!F168 -> Improve processes for regular checking of water losses | T79: =COUNTIF($U$39:U79,TRUE) -> 0
C80: ='WS Plan'!F169 -> Policy to introduce universal consumer meters | T80: =COUNTIF($U$39:U80,TRUE) -> 0
C81: ='WS Plan'!F170 -> Improve processes for management of consumer complaints | T81: =COUNTIF($U$39:U81,TRUE) -> 0
C82: C) Existing system improvement measures - Low-cost | T82: =COUNTIF($U$39:U82,TRUE) -> 0
C83: ='WS Plan'!F174 -> Reduce losses in trunk main transmission network | T83: =COUNTIF($U$39:U83,TRUE) -> 0
C84: ='WS Plan'!F178 -> Reduce losses at water treatment plant | T84: =COUNTIF($U$39:U84,TRUE) -> 0
C85: ='WS Plan'!F182 -> Reduce losses in treated water transmission network | T85: =COUNTIF($U$39:U85,TRUE) -> 0
C86: ='WS Plan'!F189 -> Refurbishment of water storage reservoirs | T86: =COUNTIF($U$39:U86,TRUE) -> 0
C87: ='WS Plan'!F192 -> Improvement in water supply distribution network | T87: =COUNTIF($U$39:U87,TRUE) -> 0
C88: ='WS Plan'!F195 -> Plugging of leakages at valves | T88: =COUNTIF($U$39:U88,TRUE) -> 0
C89: ='WS Plan'!F198 -> Replacement of service line connections | T89: =COUNTIF($U$39:U89,TRUE) -> 0
C90: ='WS Plan'!F202 -> Reduce free water supply | T90: =COUNTIF($U$39:U90,TRUE) -> 0
C91: ='WS Plan'!F206 -> Repair non-functional metered water supply connections | T91: =COUNTIF($U$39:U91,TRUE) -> 0
C92: ='WS Plan'!F215 -> Improve consumer grievance redressal system | T92: =COUNTIF($U$39:U92,TRUE) -> 0
C93: D) Create new infrastructure - High cost | T93: =COUNTIF($U$39:U93,TRUE) -> 0
C94: ='WS Plan'!F222 -> Metering of consumer water supply connections | T94: =COUNTIF($U$39:U94,TRUE) -> 0
C95: FINANCIAL SUSTAINAIBILITY | I95: Click here | J95: Simulate Improvement Plan | T95: =COUNTIF($U$39:U95,TRUE) -> 0
T96: =COUNTIF($U$39:U96,TRUE) -> 0
C97: Actions for performance improvement | D97: Impact of actions on KPIs | T97: =COUNTIF($U$39:U97,TRUE) -> 0
D98: Coverage of individual connections in city | E98: Coverage of individual connections in slums | F98: Per capita supply of water | G98: Continuity of water supplied | H98: Extent of non- revenue water | I98: Extent of functional metering | J98: Quality of water supplied | K98: Efficiency in redressal of complaints | L98: Efficiency in collection of water supply charges | M98: Extent of water supply cost recovery | T98: =COUNTIF($U$39:U98,TRUE) -> 0
C99: A) Process/Policy improvement measures - No cost | T99: =COUNTIF($U$39:U99,TRUE) -> 0
C100: ='WS Plan'!F258 -> Improve billing and collection of water supply bills | T100: =COUNTIF($U$39:U100,TRUE) -> 0
C101: B) Existing system improvement measures - Low-cost | T101: =COUNTIF($U$39:U101,TRUE) -> 0
C102: ='WS Plan'!F262 -> Improve collection efficiency of water supply charges and taxes | T102: =COUNTIF($U$39:U102,TRUE) -> 0
C103: ='WS Plan'!F268 -> Replace pumping machinery | T103: =COUNTIF($U$39:U103,TRUE) -> 0
C104: ='WS Plan'!F274 -> Other measures to optimise power and energy expenses | T104: =COUNTIF($U$39:U104,TRUE) -> 0
B108: II | C108: FAECAL SLUDGE MANAGEMENT and WASTEWATER
H109: Select | I109: Select
C110: Key Performance Indicator | D110: Value | F110: Compare with | G110: Benchmark | H110: City 2 | I110: ABC | J110: Entities to compare performance of your city
T111: =COUNTIF($U$111:U111,TRUE) -> 0
C112: Coverage of households with individual toilets in city | D112: ='Summary of PIP'!D85 -> 0 | T112: =COUNTIF($U$111:U112,TRUE) -> 0
C113: Coverage of households with individual toilets in slums | D113: ='Summary of PIP'!D87 -> 0 | T113: =COUNTIF($U$111:U113,TRUE) -> 0
C114: Coverage of households with adequate sanitation system | D114: ='Summary of PIP'!D98 -> 0 | T114: =COUNTIF($U$111:U114,TRUE) -> 0
C115: Efficiency of wastewater and septage collection system | D115: ='Summary of PIP'!D100 -> 0 | T115: =COUNTIF($U$111:U115,TRUE) -> 0
C116: Adequacy of wastewater and septage treatment capacity | D116: ='Summary of PIP'!D102 -> 0 | T116: =COUNTIF($U$111:U116,TRUE) -> 0
C117: Quality of wastewater and septage treatment | D117: ='Summary of PIP'!D123 -> 0 | T117: =COUNTIF($U$111:U117,TRUE) -> 0
C118: Extent of reuse/recycling of treated wastewater and septage | D118: ='Summary of PIP'!D121 -> 0 | T118: =COUNTIF($U$111:U118,TRUE) -> 0
C119: Efficiency in redressal of customer complaints | D119: ='Summary of PIP'!D125 -> 0 | T119: =COUNTIF($U$111:U119,TRUE) -> 0
C120: Efficiency in collection of wastewater charges and taxes | D120: ='Summary of PIP'!D134 -> 0 | T120: =COUNTIF($U$111:U120,TRUE) -> 0
C121: Extent of cost recovery in wastewater services | D121: ='Summary of PIP'!D136 -> 0
C123: ACCESS AND COVERAGE | I123: Click here | J123: Simulate Improvement Plan
C125: Actions for performance improvement | D125: Impact of actions on KPIs
D126: Coverage of households with individual toilets in city | E126: Coverage of households with individual toilets in slum | F126: Household coverage with adequate sanitation system | G126: Collection efficiency of wastewater & septage disposal | H126: Adequacy of treatment for wastewater & septage | I126: Quality of treatment for wastewater & septage | J126: Extent of reuse/ recycle of treated wastewater & septage | K126: Efficiency in redressal of complaints | L126: Efficiency in collection of wastewater charges | M126: Extent of wastewater cost recovery
C127: A) Data improvement measures
C128: ='WW Plan'!F22 -> Household survey to assess wastewater services | T128: =COUNTIF($U$127:U128,TRUE) -> 0
C129: ='WW Plan'!F28 -> Surveys and monitoring of open defecation sites | T129: =COUNTIF($U$127:U129,TRUE) -> 0
C130: ='WW Plan'!F32 -> Computerise wastewater records | T130: =COUNTIF($U$127:U130,TRUE) -> 0
C131: B) Process/Policy improvement measures - No cost | T131: =COUNTIF($U$127:U131,TRUE) -> 0
C132: ='WW Plan'!F38 -> Policy for providing sanitation services in slums | T132: =COUNTIF($U$127:U132,TRUE) -> 0
C133: C) Existing system improvement measures - Low-cost | T133: =COUNTIF($U$127:U133,TRUE) -> 0
C134: ='WW Plan'!F42 -> Improve condition of existing individual toilets by providing safe sanitation disposal system | T134: =COUNTIF($U$127:U134,TRUE) -> 0
C135: ='WW Plan'!F57 -> Improve condition of existing Community toilets | T135: =COUNTIF($U$127:U135,TRUE) -> 0
C136: ='WW Plan'!F79 -> Improve condition of existing Public toilets | T136: =COUNTIF($U$127:U136,TRUE) -> 0
C137: ='WW Plan'!F97 -> Refurbishment of exisiting septic tanks in city | T137: =COUNTIF($U$127:U137,TRUE) -> 0
C138: ='WW Plan'!F106 -> Information, education and communication (IEC) campaigns for sanitation awareness | T138: =COUNTIF($U$127:U138,TRUE) -> 0
C139: D) Create new infrastructure - High cost | T139: =COUNTIF($U$127:U139,TRUE) -> 0
C140: ='WW Plan'!F111 -> Construct new individual toilets | T140: =COUNTIF($U$127:U140,TRUE) -> 0
C141: ='WW Plan'!F137 -> Construct new group toilets | T141: =COUNTIF($U$127:U141,TRUE) -> 0
C142: ='WW Plan'!F161 -> Construct new community toilet blocks | T142: =COUNTIF($U$127:U142,TRUE) -> 0
C143: ='WW Plan'!F182 -> Construct new public toilet blocks | T143: =COUNTIF($U$127:U143,TRUE) -> 0
C144: SERVICE LEVELS AND QUALITY | I144: Click here | J144: Simulate Improvement Plan | T144: =COUNTIF($U$127:U144,TRUE) -> 0
T145: =COUNTIF($U$127:U145,TRUE) -> 0
C146: Actions for performance improvement | D146: Impact of actions on KPIs | T146: =COUNTIF($U$127:U146,TRUE) -> 0
D147: Coverage of households with individual toilets in city | E147: Coverage of households with individual toilets in slum | F147: Household coverage with adequate sanitation system | G147: Collection efficiency of wastewater & septage disposal | H147: Adequacy of treatment for wastewater & septage | I147: Quality of treatment for wastewater & septage | J147: Extent of reuse/ recycle of treated wastewater & septage | K147: Efficiency in redressal of complaints | L147: Efficiency in collection of wastewater charges | M147: Extent of wastewater cost recovery | T147: =COUNTIF($U$127:U147,TRUE) -> 0
C148: A) Process/Policy improvement measures - No cost | T148: =COUNTIF($U$127:U148,TRUE) -> 0
C149: ='WW Plan'!F208 -> Process improvement for new sewerage connection applications | T149: =COUNTIF($U$127:U149,TRUE) -> 0
C150: ='WW Plan'!F209 -> Improve processes for regular cleaning of drains and sewers | T150: =COUNTIF($U$127:U150,TRUE) -> 0
C151: B) Existing system improvement measures - Low-cost | T151: =COUNTIF($U$127:U151,TRUE) -> 0
C152: ='WW Plan'!F213 -> Regularise unauthorised sewerage connections | T152: =COUNTIF($U$127:U152,TRUE) -> 0
C153: ='WW Plan'!F217 -> Increase connections using existing sewerage network | T153: =COUNTIF($U$127:U153,TRUE) -> 0
C154: ='WW Plan'!F225 -> Improve existing sewerage network and plug leakages | T154: =COUNTIF($U$127:U154,TRUE) -> 0
C155: ='WW Plan'!F231 -> Increase septage collection with existing suction emptier trucks | T155: =COUNTIF($U$127:U155,TRUE) -> 0
C156: ='WW Plan'!F241 -> Increase efficiency of all existing treatment plants | T156: =COUNTIF($U$127:U156,TRUE) -> 0
C157: ='WW Plan'!F256 -> Upgrade open surface drains to closed drains for storm water drainage | T157: =COUNTIF($U$127:U157,TRUE) -> 0
C158: ='WW Plan'!F264 -> Reduce water logging/flooding in city | T158: =COUNTIF($U$127:U158,TRUE) -> 0
C159: C) Create new infrastructure - High cost | T159: =COUNTIF($U$127:U159,TRUE) -> 0
C160: ='WW Plan'!F275 -> Provide soak pits for wastewater disposal | T160: =COUNTIF($U$127:U160,TRUE) -> 0
C161: ='WW Plan'!F282 -> Lay new settled sewer for wastewater conveyance | T161: =COUNTIF($U$127:U161,TRUE) -> 0
C162: ='WW Plan'!F293 -> Expand or lay new sewerage network for wastewater conveyance | T162: =COUNTIF($U$127:U162,TRUE) -> 0
C163: ='WW Plan'!F308 -> Procure new suction emptier trucks | T163: =COUNTIF($U$127:U163,TRUE) -> 0
C164: ='WW Plan'!F323 -> Construct/augment fecal sludge treatment plant | T164: =COUNTIF($U$127:U164,TRUE) -> 0
C165: ='WW Plan'!F332 -> Construct/augment treatment plant for effluent and sullage | T165: =COUNTIF($U$127:U165,TRUE) -> 0
C166: ='WW Plan'!F341 -> Construct/augment sewage treatment plant | T166: =COUNTIF($U$127:U166,TRUE) -> 0
C167: ='WW Plan'!F353 -> Construct closed surface drains for storm water drainage | T167: =COUNTIF($U$127:U167,TRUE) -> 0
C168: EFFICIENCY IN SERVICE OPERATION | I168: Click here | J168: Simulate Improvement Plan | T168: =COUNTIF($U$127:U168,TRUE) -> 0
T169: =COUNTIF($U$127:U169,TRUE) -> 0
C170: Actions for performance improvement | D170: Impact of actions on KPIs | T170: =COUNTIF($U$127:U170,TRUE) -> 0
D171: Coverage of households with individual toilets in city | E171: Coverage of households with individual toilets in slum | F171: Household coverage with adequate sanitation system | G171: Collection efficiency of wastewater & septage disposal | H171: Adequacy of treatment for wastewater & septage | I171: Quality of treatment for wastewater & septage | J171: Extent of reuse/ recycle of treated wastewater & septage | K171: Efficiency in redressal of complaints | L171: Efficiency in collection of wastewater charges | M171: Extent of wastewater cost recovery | T171: =COUNTIF($U$127:U171,TRUE) -> 0
C172: A) Process/Policy improvement measures - No cost | T172: =COUNTIF($U$127:U172,TRUE) -> 0
C173: ='WW Plan'!F366 -> Improve wastewater and septage quality surveillance | T173: =COUNTIF($U$127:U173,TRUE) -> 0
C174: ='WW Plan'!F367 -> Improve processes for management of consumer complaints | T174: =COUNTIF($U$127:U174,TRUE) -> 0
C175: B) Existing system improvement measures - Low-cost | T175: =COUNTIF($U$127:U175,TRUE) -> 0
C176: ='WW Plan'!F371 -> Increase in reuse/recycling of treated wastewater and septage | T176: =COUNTIF($U$127:U176,TRUE) -> 0
C177: ='WW Plan'!F393 -> Conduct regular wastewater and septage quality tests at laboratory, if not done | T177: =COUNTIF($U$127:U177,TRUE) -> 0
C178: ='WW Plan'!F397 -> Improve consumer grievance redressal system | T178: =COUNTIF($U$127:U178,TRUE) -> 0
C179: FINANCIAL SUSTAINAIBILITY | I179: Click here | J179: Simulate Improvement Plan | T179: =COUNTIF($U$127:U179,TRUE) -> 0
T180: =COUNTIF($U$127:U180,TRUE) -> 0
C181: Actions for performance improvement | D181: Impact of actions on KPIs | T181: =COUNTIF($U$127:U181,TRUE) -> 0
D182: Coverage of households with individual toilets in city | E182: Coverage of households with individual toilets in slum | F182: Household coverage with adequate sanitation system | G182: Collection efficiency of wastewater & septage disposal | H182: Adequacy of treatment for wastewater & septage | I182: Quality of treatment for wastewater & septage | J182: Extent of reuse/ recycle of treated wastewater & septage | K182: Efficiency in redressal of complaints | L182: Efficiency in collection of wastewater charges | M182: Extent of wastewater cost recovery | T182: =COUNTIF($U$127:U182,TRUE) -> 0
C183: A) Process/ Policy improvement measures - No cost | T183: =COUNTIF($U$127:U183,TRUE) -> 0
C184: ='WW Plan'!F407 -> Improve billing and collection of wastewater bills | T184: =COUNTIF($U$127:U184,TRUE) -> 0
C185: B) Existing system improvement measures - Low-cost | T185: =COUNTIF($U$127:U185,TRUE) -> 0
C186: ='WW Plan'!F411 -> Improve collection efficiency of wastewater charges and taxes | T186: =COUNTIF($U$127:U186,TRUE) -> 0
B189: III | C189: SOLID WASTE MANAGEMENT
H190: Select | I190: Select
C191: Key Performance Indicators | D191: Value | F191: Compare with | G191: Benchmark | H191: Province avg | I191: City 2 | J191: Entities to compare performance of your city
T192: =COUNTIF($U$192:U192,TRUE) -> 0
C193: Coverage of household level solid waste services in city | D193: ='Summary of PIP'!D154 -> 0 | T193: =COUNTIF($U$192:U193,TRUE) -> 0
C194: Coverage of household level solid waste services in slums | D194: ='Summary of PIP'!D156 -> 0 | T194: =COUNTIF($U$192:U194,TRUE) -> 0
C195: Efficiency of collection of solid waste | D195: ='Summary of PIP'!D161 -> 0 | T195: =COUNTIF($U$192:U195,TRUE) -> 0
C196: Extent of segregation of solid waste | D196: ='Summary of PIP'!D163 -> 0 | T196: =COUNTIF($U$192:U196,TRUE) -> 0
C197: Extent of solid waste recovered | D197: ='Summary of PIP'!D165 -> 0 | T197: =COUNTIF($U$192:U197,TRUE) -> 0
C198: Extent of scientific disposal of solid waste | D198: ='Summary of PIP'!D174 -> 0 | T198: =COUNTIF($U$192:U198,TRUE) -> 0
C199: Efficiency in redressal of customer complaints | D199: ='Summary of PIP'!D176 -> 0 | T199: =COUNTIF($U$192:U199,TRUE) -> 0
C200: Efficiency in collection of solid waste charges and taxes | D200: ='Summary of PIP'!D181 -> 0 | T200: =COUNTIF($U$192:U200,TRUE) -> 0
C201: Extent of cost recovery in solid waste services | D201: ='Summary of PIP'!D183 -> 0
C204: ACCESS AND COVERAGE | I204: Click here | J204: Simulate Improvement Plan
C206: Actions for performance improvement | E206: Impact of actions on KPIs
E207: Coverage of household level SW services in city | F207: Coverage of household level SW services in slum | G207: Efficiency of collection of solid waste | H207: Extent of segregation of solid waste | I207: Extent of solid waste recovered | J207: Extent of scientific disposal of SW | K207: Efficiency in redressal of complaints | L207: Efficiency in collection of SW charges | M207: Extent of solid waste cost recovery
C208: A) Data improvement measures
C209: ='SW Plan'!F22 -> Household survey to assess solid waste services | T209: =COUNTIF($U$208:U209,TRUE) -> 0
C210: ='SW Plan'!F28 -> Computerise solid waste records | T210: =COUNTIF($U$208:U210,TRUE) -> 0
C211: B) Process/Policy improvement measures - No cost | T211: =COUNTIF($U$208:U211,TRUE) -> 0
C212: ='SW Plan'!F34 -> Prepare management plan to efficiently deploy manpower and resources | T212: =COUNTIF($U$208:U212,TRUE) -> 0
C213: C) Existing system improvement measures - Low-cost | T213: =COUNTIF($U$208:U213,TRUE) -> 0
C214: ='SW Plan'!F38 -> Procure equipments for street sweeping and drain cleaning | T214: =COUNTIF($U$208:U214,TRUE) -> 0
C215: ='SW Plan'!F45 -> Procure equipments for door to door solid waste collection (collection bins, ghantagaadis, containerised cycle rickshaw, handcarts etc.) | T215: =COUNTIF($U$208:U215,TRUE) -> 0
C216: ='SW Plan'!F54 -> Information, education and communication (IEC) campaign for awareness of solid waste management | T216: =COUNTIF($U$208:U216,TRUE) -> 0
C217: D) Create new infrastructure - High cost | T217: =COUNTIF($U$208:U217,TRUE) -> 0
C218: ='SW Plan'!F59 -> Employ additional staff on contract for improving solid waste service delivery | T218: =COUNTIF($U$208:U218,TRUE) -> 0
C219: ='SW Plan'!F70 -> Engage with private service providers to provide solid waste services | T219: =COUNTIF($U$208:U219,TRUE) -> 0
... 92 more rows

Sheet WS Plan
C2: PERFORMANCE ASSESSMENT SYSTEM PROJECT
C4: SANIPLAN - A Performance Improvement Planning Model
F6: MODULE II: ACTION PLANNING
C8: ACTION PLAN FOR WATER SUPPLY SERVICES
A9: Click | C9: Access and coverage | G9: Service levels and quality | M9: Efficiency in service operations | S9: Financial sustainability
B10: Instructions for using this sheet: | F10: Action Planning is a process that aims to consolidate various dimensions of problem solving into output based tangible Action Plan. The planning objectives identified in 'Performance assessment' sheet are set of actions that need to be implemented in city for improving service delivery. These planning objectives are essentially individual actions that would be calibrated as output based tangible targets in this sheet. A set of these calibrated actions will form an implementation plan for ULB across ten years of plan period. Hence, this Action Plan must evolve through an iterative process of identifying appropriate actions, phasing and financing pattern. To facilitate this process, all the actions are compiled in an easy to use tabular structure along with pictorial graphs to show its impact simultaneously. These graphs display collective impact of all the actions in each theme (Access and Coverage, Service Levels and Quality, Efficiency in Service Operations and Financial Sustainability) in terms of performance improvement (dark coloured area graphs) and financial requirement (translucent coloured area graphs). The tabular structure for each Action has following components:
F11: LINK FOR ACTION GUIDELINE | G11: This is a hyperlinked cell placed on top most left corner of table. It leads to another sheet of Annexure, where detailed guidelines are provided to explain an action with assumptions to be considered for calibrating it.
F12: ACTIVATE/ DEACTIVATE ACTION | G12: A simple drop-down switch is provided on top left corner of table (besides learn more) to 'Activate/Deactivate' an action. By activating switch, the corresponding action can be included in the proposed Action Plan. Light blue colour of box indicates actions prioritised in Performance assessment sheet. The colour turns to dark blue if action is actually activated. Any action can be activated irrespective of whether they were prioritised earlier or not (i.e. box being grey or light blue; colour is only indicative)
F13: PHASING OF ACTIONS | G13: These two cells on top most right corner of table turn blue when an action is activated. User has to fill in implementation period of the action. First cell is for starting year of action and second cell is for completing year of action.
F14: BASELINE INFORMATION | G14: These are first set of rows in a table displaying important background information about the Action. It will facilitate decision making for user.
F15: IMPROVEMENT INFORMATION | G15: Next set of rows are for filling in information about improvement in performance envisaged by implementing the action. Instructions for calculating this are provided in Action guidelines of Annexure.
F16: FINANCE INFORMATION | G16: These are last set of rows to fill in basic financial details to implement the Action like basic block cost estimates, O&M expenses and revenue generation. Instructions for calculating this are provided in Action guidelines of Annexure.
D19: I | E19: Access and coverage
E21: 1 | F21: Data improvement measures
C22: WS01 | D22: Learn more | E22: Deactivate | F22: Household survey to assess water supply services | Z22: ='Perf assessment'!U40 -> 0
D23: Baseline | F23: - Present number of households in city | G23: Numbers | H23: =Population!$E$31 -> 0
D24: Improvement | F24: - Percentage of households for which survey is to be conducted | G24: %
F25: - Periodic updation time of survey | G25: Number of years
D26: Finance | E26: Finance | F26: - Per household cost of survey | G26: Cost/ household
F27: - Cost of updating the survey | G27: Cost/ updation
C28: WS02 | D28: Learn more | E28: Deactivate | F28: Computerise water supply records | Z28: ='Perf assessment'!U41 -> 0
D29: Finance | F29: - Total cost of computerisation of records | G29: Lump-sum cost
F30: - Annual recurring cost for updating the records | G30: Cost/ annum
E33: 2 | F33: Process/Policy improvement measures
C34: WS03 | D34: Learn more | E34: Deactivate | F34: Process improvement for new water supply connection applications | Z34: ='Perf assessment'!U43 -> 0
C35: WS04 | D35: Learn more | E35: Deactivate | F35: Policy for providing individual water connections in slums | Z35: ='Perf assessment'!U44 -> 0
E38: 3 | F38: Existing system improvement measures
D39: Learn more | E39: Deactivate | F39: Regularise unauthorised water supply connections | Z39: ='Perf assessment'!U46 -> 0
D40: Baseline | F40: - Estimated percentage of households with unauthorised water supply connections in city | G40: % | H40: ='WSS info'!$G$147 -> 0
F41: - Estimated percentage of households with unauthorised water supply connections in slums | G41: % | H41: ='WSS info'!$G$148 -> 0
D42: Improvement | F42: - Percentage of unauthorised connections to be regularised with improvement measures | G42: %
D43: Finance | F43: - Penalty charges to be levied for regularisation of connections | G43: Per connection
C44: WS06 | D44: Learn more | E44: Deactivate | F44: Increase connections using existing water supply distribution network | Z44: ='Perf assessment'!U47 -> 0
D45: Baseline | F45: - Inhabited area served by distribution network as compared to total inhabited area | G45: Sq.kms. | H45: =CONCATENATE('WSS info'!$G$86," / ",'WSS info'!$G$37) -> /
F46: - Households served by individual water supply connections as compared to total households in city | G46: Number | H46: =CONCATENATE(SUM('WSS info'!$G$92:$G$100)," / ",Population!$E$31) -> 0 / 0
D47: Improvement | F47: - Additional connections to be given in non-slum households | G47: Number
F48: - Additional connections to be given in slum households | G48: Number
C49: WS07 | D49: Learn more | E49: Deactivate | F49: Convert stand posts/public taps into group connections | Z49: ='Perf assessment'!U48 -> 0
D50: Baseline | F50: - Present number of public taps and stand posts | G50: Number | H50: ='WSS info'!$F$114 -> 0
D51: Improvement | F51: - Stand posts and public taps to be converted to group/ individual connections | G51: Number
E54: 4 | F54: Create new infrastructure
C55: WS08 | D55: Learn more | E55: Deactivate | F55: Lay new water supply distribution network | Z55: ='Perf assessment'!U50 -> 0
D56: Baseline | F56: - Inhabited area served by distribution network as compared to total inhabited area | G56: Area served/total area in Sq.kms. | H56: =CONCATENATE('WSS info'!$G$86," / ",'WSS info'!$G$37) -> /
F57: - Existing length of distribution network | G57: Kms | H57: ='WSS info'!$G$85 -> 0
F58: - Households served by individual water supply connections as compared to total households in city | G58: HHs served/ total HHs | H58: =CONCATENATE(SUM('WSS info'!$G$92:$G$100)," / ",Population!$E$31) -> 0 / 0
D59: Improvement | F59: - Increase in length of new distribution network | G59: Km
F60: - Additional area to be covered with new distribution network | G60: Sq. km
F61: - New connections that can be given by laying distribution network in non-slum areas | G61: Number
D62: Finance | F62: - Block cost to lay distribution network | G62: Cost per KM
F63: - Annual O&M expenses to maintain new distribution network | G63: % of CapEx
C64: WS09 | D64: Learn more | E64: Deactivate | F64: Lay internal infrastructure of water supply lines in slums | Z64: ='Perf assessment'!U51 -> 0
D65: Baseline | F65: - Existing slum settlements with water supply network | G65: Number | H65: ='WSS info'!G87 -> 0
F66: - Households served by individual water supply connections as compared to total households in slums | G66: HHs served/ total HHs | H66: =CONCATENATE(SUM('WSS info'!$G$97:$G$100)," / ",Population!$E$30) -> 0 / 0
D67: Improvement | F67: - Slum settlements to be connected with internal water supply lines | G67: Number
F68: - New connections that can be given by laying internal water supply line in slums | G68: Number
D69: Finance | F69: - Block cost for providing water supply infrastructure in slums | G69: Cost/ Household
F70: - Annual O&M expenses to maintain new water supply infrastructure | G70: % of CapEx
D73: II | E73: Service levels and quality
E75: 1 | F75: Process/Policy improvement measures
C76: WS10 | D76: Learn more | E76: Deactivate | F76: Improve water supply quality surveillance | Z76: ='Perf assessment'!U57 -> 0
E79: 2 | F79: Existing system improvement measures
C80: WS11 | D80: Learn more | E80: Deactivate | F80: Increase continuity of water supply services | Z80: ='Perf assessment'!U59 -> 0
D81: Baseline | F81: - Duration of water supplied in a day presently | G81: Hours/ day | H81: ='WSS info'!G152 -> 0
F82: - Days of water supplied in a month presently | G82: Days/ month | H82: ='WSS info'!G153 -> 0
D83: Improvement | F83: - Duration of water supply targeted in a day | G83: Hours/ day
F84: - Days of water supply targeted in a month | G84: Days/ month
D85: Finance | F85: - Total capital expenses incurred to increase water supply continuity, if any | G85: Lump-sum cost
F86: - Annual O&M expenses incurred, if any | G86: % of CapEx
C87: WS12 | D87: Learn more | E87: Deactivate | F87: Repair existing water treatment plant to improve water quality | Z87: ='Perf assessment'!U60 -> 0
D88: Baseline | F88: - Functional capacity of water treatment plant as compared to total installed capacity of treatment plant | G88: MLD | H88: =CONCATENATE('WSS info'!G62," / ",'WSS info'!G61) -> /
F89: - Quality of water supplied presently | G89: % | H89: =IFERROR('WSS info'!G158/'WSS info'!G157,0) -> 0
D90: Improvement | F90: - Non-functional capacity of treatment plant to be repaired and made functional | G90: MLD
F91: - Targeted level of water quality to be achieved | G91: %
D92: Finance | F92: - Capital cost incurred to repair treatment plant and improve water quality, if any (lump-sum) | G92: Lump-sum cost
F93: - Additional expenses incurred annually for improving water quality like regular quality tests, procuring more chemicals etc. | G93: Cost per annum
C94: WS13 | D94: Learn more | E94: Deactivate | F94: Treatment of untreated supply ground water | Z94: ='Perf assessment'!U61 -> 0
D95: Baseline | F95: - Quantity of untreated ground water supplied by ULB presently | G95: MLD | H95: ='WSS info'!$G$67 -> 0
D96: Improvement | F96: - Additional quantity of ground water to be treated | G96: MLD
D97: Finance | F97: - Additional annual O&M expenses to treat ground water | G97: per MLD
E100: 3 | F100: Create new infrastructure
F101: Augment water supply sources | Z101: ='Perf assessment'!U63 -> 0
D102: Baseline | F102: - Quantity of water produced presently | G102: MLD | H102: ='WSS info'!G50 -> 0
C103: WS14 | D103: Learn more | E103: Deactivate | F103: Augment water supply - Own surface water
D104: Improvement | F104: - Capacity of additional/new water source to be augmented | G104: MLD
F105: - Annual usage increment of additional water augmented (Note: Utilisation capacity of water source shall increase with population growth) | G105: MLD increase/ year
D106: Finance | F106: - Block cost to augment the source | G106: per MLD
F107: - Annual O&M expenses of the source | G107: % of CapEx/annum
C108: WS15 | D108: Learn more | E108: Deactivate | F108: Augment water supply - Ground water
D109: Improvement | F109: - Additional/new ground water capacity to be augmented | G109: MLD
F110: - Annual usage increment of additional water capacity augmented (Note: Abstraction of ground water shall increase with population growth) | G110: MLD increase/ year
D111: Finance | F111: - Block cost to augment the source | G111: per MLD
F112: - Annual O&M expenses of the ground water source | G112: % of CapEx/annum
C113: WS16 | D113: Learn more | E113: Deactivate | F113: Augment water supply - Buy additional treated bulk water
D114: Improvement | F114: - Additional bulk water sanctioned/allocated for ULB | G114: MLD
F115: - Annual increment in actual drawl of water allocated | G115: MLD increase/ year
D116: Finance | F116: - Capital cost incurred, if any | G116: Lump-sum
F117: - O&M expenses if incurred | G117: % of CapEx/ annum
F118: - Cost to buy treated bulk water | G118: per MLD
C119: WS17 | D119: Learn more | E119: Deactivate | F119: Augment water supply - Buy additional raw bulk water
D120: Improvement | F120: - Additional bulk buy sanctioned/allocated for ULB | G120: MLD
F121: - Annual increment in actual drawl of water allocated | G121: MLD increase/ year
D122: Finance | F122: - Capital cost incurred, if any | G122: Lump-sum
F123: - O&M expenses incurred, if any | G123: % of CapEx/ annum
F124: - Cost to buy raw bulk water | G124: per MLD
C125: WS18 | D125: Learn more | E125: Deactivate | F125: Expand/replace water supply transmission network | Z125: ='Perf assessment'!U64 -> 0
D126: Improvement | F126: - Expansion/replacement of transmission network | G126: Kms
D127: Finance | F127: - Block cost to lay transmission network | G127: per km
F128: - Annual O&M expenses | G128: % of CapEx/ annum
C129: WS19 | D129: Learn more | E129: Deactivate | F129: Construct/augment water treatment plant | Z129: ='Perf assessment'!U65 -> 0
D130: Baseline | F130: - Aggregate installed capacity of existing water treatment plants in ULB | G130: MLD | H130: ='WSS info'!$G$61 -> 0
F131: - Quantity of untreated surface water supplied presently | G131: MLD | H131: ='WSS info'!$G$68 -> 0
D132: Improvement | F132: - Additional/new treatment capacity to be augmented | G132: MLD
D133: Finance | F133: - Block to cost to augment treatment capacity | G133: per MLD
F134: - Annual O&M expenses | G134: % of CapEx/annum
C135: WS20 | D135: Learn more | E135: Deactivate | F135: Construct/augment water storage capacity | Z135: ='Perf assessment'!U66 -> 0
D136: Baseline | F136: - Aggregate existing water storage capacity | G136: % | H136: ='WSS info'!$G$81 -> 0
F137: - Surplus/(deficit) in storage capacity | G137: MLD | H137: ='WSS info'!G81-'WSS info'!F71*(1-'WSS info'!G76)*1/3 -> 0
D138: Improvement | F138: - Additional/new storage capacity to be augmented | G138: MLD
D139: Finance | F139: - Block costs to construct storage reserviors | G139: per ML
F140: - Annual O&M expenses | G140: % of CapEx/annum
D144: III | E144: Efficiency in service operations
E146: 1 | F146: Data improvement measures
C147: WS21 | D147: Learn more | E147: Deactivate | F147: Conduct water audit | Z147: ='Perf assessment'!U72 -> 0
D148: Finance | F148: - Total cost to conduct water audit (lump-sum) | G148: Lump-sum
C149: WS22 | D149: Learn more | E149: Deactivate | F149: Conduct energy audit | Z149: ='Perf assessment'!U73 -> 0
D150: Finance | F150: - Total cost to conduct energy audit (lump-sum) | G150: Lump-sum
C151: WS23 | D151: Learn more | E151: Deactivate | F151: Install bulk flow meters | Z151: ='Perf assessment'!U74 -> 0
D152: Improvement | F152: - New bulk flow meters to be installed | G152: Numbers
D153: Finance | F153: - Block cost for installation of bulk flow meters | G153: per meter
F154: - Annual recurring cost for meters | G154: % of CapEx/ annum
C155: WS24 | D155: Learn more | E155: Deactivate | F155: Map water supply and wastewater network | Z155: ='Perf assessment'!U75 -> 0
D156: Improvement | F156: - Periodic updation time of maps | G156: Number of years
D157: Finance | F157: - Total cost of mapping water and wastewater network | G157: Lump-sum
F158: - Cost of updating the maps | G158: Lump-sum
C159: WS25 | D159: Learn more | E159: Deactivate | F159: Conduct Hydraulic modelling | Z159: ='Perf assessment'!U76 -> 0
D160: Finance | F160: - Total cost of conducting hydraulic modeling exercise in city | G160: Lump-sum
C161: WS26 | D161: Learn more | E161: Deactivate | F161: Conduct Utilities survey (asset mapping) | Z161: ='Perf assessment'!U77 -> 0
D162: Improvement | F162: - Periodic updation time of survey | G162: Number of years
D163: Finance | F163: - Total cost of conducting survey (lump-sum) | G163: Lump-sum
F164: - Cost of updation the survey | G164: Lump-sum
E167: 2 | F167: Process/Policy improvement measures
C168: WS27 | D168: Learn more | E168: Deactivate | F168: Improve processes for regular checking of water losses | Z168: ='Perf assessment'!U79 -> 0
C169: WS28 | D169: Learn more | E169: Deactivate | F169: Policy to introduce universal consumer meters | Z169: ='Perf assessment'!U80 -> 0
C170: WS29 | D170: Learn more | E170: Deactivate | F170: Improve processes for management of consumer complaints | Z170: ='Perf assessment'!U81 -> 0
E173: 3 | F173: Existing system improvement measures
C174: WS30 | D174: Learn more | E174: Deactivate | F174: Reduce losses in trunk main transmission network | Z174: ='Perf assessment'!U83 -> 0
D175: Baseline | F175: - Current level of transmission losses | G175: % | H175: ='WSS info'!$G$56 -> 0
D176: Improvement | F176: - Targeted level of transmission losses | G176: %
D177: Finance | F177: - Total CapEx for loss reduction | G177: Lump-sum
C178: WS31 | D178: Learn more | E178: Deactivate | F178: Reduce losses at water treatment plant | Z178: ='Perf assessment'!U84 -> 0
D179: Baseline | F179: - Current level of treatment losses | G179: % | H179: ='WSS info'!$G$63 -> 0
D180: Improvement | F180: - Targeted level of treatment losses | G180: %
D181: Finance | F181: - CapEx for improvement in treatment plant efficiency | G181: Lump-sum
C182: WS32 | D182: Learn more | E182: Deactivate | F182: Reduce losses in treated water transmission network | Z182: ='Perf assessment'!U85 -> 0
D183: Baseline | F183: - Current level of transmission losses | G183: % | H183: ='WSS info'!$G$76 -> 0
D184: Improvement | F184: - Targeted level of transmission losses | G184: %
D185: Finance | F185: - Total CapEx for loss reduction (lump-sum) | G185: Lump-sum
F186: Reduce losses in water supply distribution
D187: Baseline | F187: - Current level of losses in water supply distribution | G187: % | H187: ='WSS info'!$G$146 -> 0
F188: - Reduction in distribution losses after implementation of corrective measures | G188: % | H188: =$H$187-((IF($E$195="Activate",$H$196,0))+(IF($E$198="Activate",$H$200,0))+(IF($E$189="Activate",$H$190,0))+(IF($E$192="Activate",$H$193,0))) -> 0
C189: WS33 | D189: Learn more | E189: Deactivate | F189: Refurbishment of water storage reservoirs | Z189: ='Perf assessment'!U86 -> 0
D190: Improvement | F190: - Possible reduction in distribution losses through refurbishment of storage reservoirs (ESRs and GSRs) | G190: %
D191: Finance | F191: - Cost of carrying out of the activity (lump-sum) | G191: Lump-sum
C192: WS34 | D192: Learn more | E192: Deactivate | F192: Improvement in water supply distribution network | Z192: ='Perf assessment'!U87 -> 0
D193: Improvement | F193: - Possible reduction in distribution losses through improvement in distribution network | G193: %
D194: Finance | F194: - Cost of carrying out of the activity (lump-sum) | G194: Lump-sum
C195: WS35 | D195: Learn more | E195: Deactivate | F195: Plugging of leakages at valves | Z195: ='Perf assessment'!U88 -> 0
D196: Improvement | F196: - Possible reduction in distribution losses through plugging of leakages at valves | G196: %
D197: Finance | F197: - Total cost of carrying out of this activity (lump-sum) | G197: Lump-sum
C198: WS36 | D198: Learn more | E198: Deactivate | F198: Replacement of service line connections | Z198: ='Perf assessment'!U89 -> 0
D199: Improvement | F199: - Number of service line connections to be replaced | G199: Numbers
F200: - Possible reduction in distribution losses through replacement of these service line connections | G200: %
D201: Finance | F201: - Block cost for replacing service line connections | G201: per connection
C202: WS37 | D202: Learn more | E202: Deactivate | F202: Reduce free water supply | Z202: ='Perf assessment'!U90 -> 0
D203: Baseline | F203: - Current number of free connections | G203: Numbers | H203: ='WSS info'!$F$113 -> 0
F204: - Current share of free connections as compared to total water supply connections | G204: % | H204: =IFERROR(H203/('WSS info'!$F$115-'WSS info'!$F$114),0) -> 0
D205: Improvement | F205: - Targeted share of free water supply connections | G205: %
C206: WS38 | D206: Learn more | E206: Deactivate | F206: Repair non-functional metered water supply connections | Z206: ='Perf assessment'!U91 -> 0
D207: Improvement | F207: Type of connections | G207: No. of non-functional meters | H207: No. of meters to be repaired
F208: - Domestic non-slum connections | G208: =SUM('WSS info'!F120:F123)-SUM('WSS info'!G120:G123) -> 0
F209: - Domestic slum connections | G209: =SUM('WSS info'!F125:F128)-SUM('WSS info'!G125:G128) -> 0
F210: - Commercial/institutional connections | G210: =SUM('WSS info'!F130:F133)-SUM('WSS info'!G130:G133) -> 0
F211: - Others connections | G211: =SUM('WSS info'!F135:F138)-SUM('WSS info'!G135:G138) -> 0
F212: - Group connections in slums | G212: ='WSS info'!F140-'WSS info'!G140 -> 0
D213: Finance | F213: - Block cost to repair a non-functional meter | G213: per meter
F214: - Percentage share of repairing cost to be borne by Beneficiary | G214: %
C215: WS39 | D215: Learn more | E215: Deactivate | F215: Improve consumer grievance redressal system | Z215: ='Perf assessment'!U92 -> 0
D216: Baseline | F216: - Current level of consumer grievance redressal (percentage complaints resolved in 24 hours) | G216: % | H216: =IFERROR('WSS info'!$G$163/'WSS info'!$G$162,0) -> 0
D217: Improvement | F217: - Targeted level of consumer grievance redressal | G217: %
D218: Finance | F218: - One time cost of improvement in the system for recording and resolving complaints | G218: Lump-sum
E221: 4 | F221: Create new infrastructure
C222: WS40 | D222: Learn more | E222: Deactivate | F222: Metering of consumer water supply connections | Z222: ='Perf assessment'!U94 -> 0
F223: i) Domestic non-slum connections
D224: Baseline | F224: - Present number of residential non-slum connections | G224: Numbers | H224: =SUM('WSS info'!F92:F95) -> 0
F225: - Current percentage of metered connections | G225: % | H225: =IFERROR(SUM('WSS info'!$F$120:$F$123)/SUM('WSS info'!$F$92:$F$95),0) -> 0
D226: Improvement | F226: - Targeted percentage of connections to be metered | G226: %
D227: Finance | F227: - Block cost of meter | G227: per meter
F228: - Percentage cost of meter to be borne by Beneficiary | G228: %
F229: ii) Domestic slum connections
D230: Baseline | F230: - Present number of residential slum connections | G230: Numbers | H230: =SUM('WSS info'!F97:F100) -> 0
... 54 more rows

Sheet WW Plan
C2: PERFORMANCE ASSESSMENT SYSTEM PROJECT
C4: SANIPLAN - A Performance Improvement Planning Model
F6: MODULE II: ACTION PLANNING
C8: ACTION PLAN FOR FSM and WASTEWATER SERVICES
A9: Click | C9: Access and coverage | G9: Service levels and quality | M9: Efficiency in service operations | P9: WW Plan'!E338 | S9: Financial sustainability
B10: Instructions for using this sheet: | F10: The Action Planning process enables the user to select and design different actions in order to meet the objectives set out earlier. The planning objectives identified in 'Performance Assessment' sheet include a set of actions that need to be implemented in a city for improving service delivery. Each individual action needs to be calibrated as output based tangible targets in this sheet. Calibration includes setting targets, timeline, costs and potential income mobilization. The full set of these calibrated actions will form an overall citywide implementation plan across the 10-year plan period. Later sheets ('Action plan finance' and 'Finaning Plan') enable an iterative process of identifying appropriate actions, phasing and financing pattern. To facilitate this process, all the actions are compiled in an easy to use tabular structure. Where relevant, pictoral graphs help to show their impact on service performance and financing. These graphs display collective impact of all the actions in each of the four themes (i. Access, coverage, and equity, ii. Service levels and quality, iii. Efficiency in service operations and iv. Financial sustainability). The performance improvement graphs are with dark coloured area and financial requirement are in translucent coloured areas. The tabular structure for each Action has the following 6 components:
F11: LINK FOR ACTION GUIDELINE | G11: This is a hyperlinked cell placed on top most left corner of table. It leads to another sheet of Annexure, where detailed guidelines are provided to explain an action with assumptions to be considered for calibrating it.
F12: ACTIVATE/ DEACTIVATE ACTION | G12: A simple drop-down switch is provided on top left corner of table (besides learn more) to 'Activate/Deactivate' an action. By activating an action using this switch, the corresponding action will be included in the proposed Action Plan. The box with light blue colour indicates actions prioritised earlier in the Performance Assessment sheet. The colour turns to dark blue when the action is actually activated. Any action can be activated irrespective of whether they were prioritised earlier or not (i.e. box being grey or light blue; colour is only indicative)
F13: PHASING OF ACTIONS | G13: These two cells on top most right corner of table turn blue when an action is activated. User has to fill in implementation period of the action. The first cell is for starting year of action and the second cell is for the year in which the action is completed.
F14: BASELINE INFORMATION | G14: These are first set of rows in a table displaying important background information about the Action. It helps facilitate decision making by the user.
F15: IMPROVEMENT INFORMATION | G15: Next set of rows are for filling in information about improvement in performance envisaged by implementing the action. Instructions for calculating this are provided in Action guidelines of Annexure.
F16: FINANCE INFORMATION | G16: These are last set of rows to fill in basic financial details to implement the Action like basic block cost estimates, O&M expenses and revenue generation. Instructions for calculating this are provided in Action Guidelines of Annexure.
D19: I | E19: Access and coverage
E21: 1 | F21: Data improvement measures
C22: WW01 | D22: Learn more | E22: Deactivate | F22: Household survey to assess wastewater services | Z22: ='Perf assessment'!U128 -> 0
D23: Baseline | F23: - Number of households in city | G23: Numbers | H23: =Population!$E$31 -> 0
D24: Improvement | F24: - Percentage of households for which survey is to be conducted | G24: %
F25: - Periodic updation time of survey | G25: Number of years
D26: Finance | F26: - Per household cost of survey | G26: Cost/ household
F27: - Cost of updating the survey | G27: Cost/ updation
C28: WW02 | D28: Learn more | E28: Deactivate | F28: Surveys and monitoring of open defecation sites | Z28: ='Perf assessment'!U129 -> 0
D29: Improvement | F29: - Periodic updation time of survey | G29: Number of years
D30: Finance | F30: - Total cost to conduct the survey | G30: Lump-sum
F31: - Cost of updating the survey | G31: Cost/ updation
C32: WW03 | D32: Learn more | E32: Deactivate | F32: Computerise wastewater records | Z32: ='Perf assessment'!U130 -> 0
D33: Finance | F33: - Total cost of computerisation of records | G33: Lump-sum
F34: - Annual recurring cost for updating the records | G34: Cost/ updation
E37: 2 | F37: Process/Policy improvement measures
C38: WW04 | D38: Learn more | E38: Deactivate | F38: Policy for providing sanitation services in slums | Z38: ='Perf assessment'!U132 -> 0
E41: 3 | F41: Existing system improvement measures
C42: WW05 | D42: Learn more | E42: Deactivate | F42: Improve condition of existing individual toilets by providing safe sanitation disposal system | Z42: ='Perf assessment'!U134 -> 0
D43: Baseline | G43: Non-slum household | H43: Slum household
F44: - Number of households with septic tanks connected to unsafe open/ closed drains for effluent disposal | G44: ='WSS info'!F257 -> 0 | H44: ='WSS info'!G257 -> 0
F45: - Number of households with unsafe pit latrines connected to open/ closed drains | G45: ='WSS info'!F258 -> 0 | H45: ='WSS info'!G258 -> 0
F46: - Total number of households with unsafe sanitation disposal system | G46: =G44+G45 -> 0 | H46: =H44+H45 -> 0
D47: Improvement | F47: - Of the total households with unsafe sanitation disposal system, number of households to be upgraded to safe system
F48: Specify details safe sanitation disposal systems for upgradation of toilets:
F49: - Onsite sanitation system with septic tanks connected to soak pits for effluent disposal (%)
F50: - Onsite sanitation system with septic tanks connected to settled sewer for effluent disposal (%)
F51: - Sewered sanitation system linked to existing sewerage network(%)
F52: - Sewered sanitation system linked to new sewerage network to be proposed (%) | G52: =1-(G49+G50+G51) -> 1 | H52: =1-(H49+H50+H51) -> 1
D53: Finance | F53: - Block cost of upgrading pit toilets to onsite septic tanks (per toilet)
F54: - Block cost of upgrading effluent disposal system to soak pits (Rs/ toilet)
F55: - Block cost of upgradation by connecting to sewerage or settled sewer network (NOTE : For construction of connection chamber; do not consider connection cost here)
F56: - Percentage cost of upgradation to be borne Beneficiaries
C57: WW06 | D57: Learn more | E57: Deactivate | F57: Improve condition of existing Community toilets | Z57: ='Perf assessment'!U135 -> 0
F58: Super-structure
D59: Baseline | G59: Non-slum household | H59: Slum household
F60: - Number of non-functional community toilet seats as compared to total toilet seats (Non-functional seats / total seats) | G60: =CONCATENATE(IF('WSS info'!$F$296="",0,'WSS info'!$F$296)," / ",'WSS info'!$F$295) -> 0 / | H60: =CONCATENATE(IF('WSS info'!$G$296="",0,'WSS info'!$G$296)," / ",'WSS info'!$G$295) -> 0 /
F61: - Average number of households dependent per toilet seat | G61: ='WW calcu'!E114 -> 0 | H61: ='WW calcu'!E131 -> 0
D62: Improvement | F62: - Number of non-functional toilet seats to be refurbished
F63: - Targeted average number of households to be dependent per toilet seat (Note: For equity considerations, apply same dependency for slum and non-slum household)
D64: Finance | F64: - Block cost to refurbish a toilet seat | G64: per seat
F65: - O&M expenses to maintain a refurbished toilet seat, henceforth | G65: per seat/month
F66: - Estimated revenue generation from refurbishing a toilet seat for LG, if converted to pay and use | G66: per seat/month
F67: Sub-structure : sanitation disposal system
D68: Baseline | F68: - Number of community toilet blocks connected to unsafe pits/ leach pits/ other systems as compared to total blocks | G68: Non-slum household | H68: Slum household
G69: =CONCATENATE(IF('WSS info'!$F$301="",0,'WSS info'!$F$301)," / ",'WSS info'!$F$294) -> 0 / | H69: =CONCATENATE(IF('WSS info'!$G$301="",0,'WSS info'!$G$301)," / ",'WSS info'!$G$294) -> 0 /
D70: Improvement | F70: - Number of community toilet blocks with unsafe disposal system to be upgraded to safe sanitation disposal system
F71: Specify details of toilet blocks to be upgraded to safe disposal systems:
F72: - Onsite sanitation system with septic tanks connected to soak pits for effluent disposal (%)
F73: - Onsite sanitation system with septic tanks connected to settled sewer for effluent disposal (%)
F74: - Sewered sanitation system linked to existing sewerage network (%)
F75: - Sewered sanitation system linked to new sewerage network to be proposed (%) | G75: =1-(G72+G73+G74) -> 1 | H75: =1-(H72+H73+H74) -> 1
D76: Finance | F76: - Block cost of upgrading unsafe community toilet blocks to onsite septic tanks with soak pits | G76: per toilet block
F77: - Block cost of upgrading unsafe community toilet blocks to onsite septic tanks with settled sewer connection | G77: per toilet block
F78: - Block cost of upgrading unsafe community toilet blocks by connecting to sewered system | G78: per toilet block
C79: WW07 | D79: Learn more | E79: Deactivate | F79: Improve condition of existing Public toilets | Z79: ='Perf assessment'!U136 -> 0
F80: Super-structure
D81: Baseline | F81: - Number of non-functional public toilet seats as compared to total toilet seats (Non-functional seats/total seats) | G81: Numbers | H81: =CONCATENATE(IF('WSS info'!$F$307="",0,'WSS info'!$F$307)," / ",'WSS info'!$F$306) -> 0 /
D82: Improvement | F82: - Number of non-functional toilet seats to be refurbished | G82: Numbers
D83: Finance | F83: - Block cost to refurbish a toilet seat | G83: per seat
F84: - O&M expenses to maintain a refurbished toilet seat, henceforth | G84: per seat/month
F85: - Estimated revenue generation from refurbishing a toilet seat for LG, if converted to pay and use | G85: per seat/month
F86: Sub-structure : sanitation disposal system
D87: Baseline | F87: - Number of public toilet blocks connected to unsafe pits/leach pits/other systems as compared to total blocks | G87: Numbers | H87: =CONCATENATE(IF('WSS info'!$F$312="",0,'WSS info'!$F$312)," / ",'WSS info'!$F$305) -> 0 /
D88: Improvement | F88: - Number of public toilet blocks with unsafe disposal system to be upgraded to safe sanitation disposal system | G88: Numbers
F89: Specify details of toilet blocks to be upgraded to safe disposal systems:
F90: - Onsite sanitation system with septic tanks connected to soak pits for effluent disposal
F91: - Onsite sanitation system with septic tanks connected to settled sewer for effluent disposal
F92: - Sewered sanitation system linked to existing sewerage network
F93: - Sewered sanitation system linked to new sewerage network to be proposed | H93: =1-(H90+H91+H92) -> 1
D94: Finance | F94: - Block cost of upgrading unsafe community toilet blocks to onsite septic tanks with soak pits | G94: per toilet block
F95: - Block cost of upgrading unsafe community toilet blocks to onsite septic tanks with settled sewer connection | G95: per toilet block
F96: - Block cost of upgrading unsafe public toilet blocks by connecting to sewered system | G96: per toilet block
C97: WW08 | D97: Learn more | E97: Deactivate | F97: Refurbishment of exisiting septic tanks in city | Z97: ='Perf assessment'!U137 -> 0
D98: Baseline | G98: Non-slum household | H98: Slum household
F99: - Number of community and public toilets connected to septic tanks for on-site sanitation disposal | G99: ='WSS info'!F300+'WSS info'!G300+'WSS info'!F311:G311 -> 0
F100: - Number of individual toilets connected to septic tanks for on-site sanitation disposal | G100: ='WSS info'!F256+'WSS info'!F257 -> 0 | H100: ='WSS info'!G256+'WSS info'!G257 -> 0
D101: Improvement | F101: - Number of communty and public toilet septic tanks to be refurbished
F102: - Number of individual toilet septic tanks to be refurbished
D103: Finance | F103: - Block cost to refurbish community/ public toilet (cost/block)
F104: - Block cost to refurbish an individual toilet (per toilet)
F105: - Percentage cost of individual toilet refurbishment to be borne by Beneficiaries
C106: WW09 | D106: Learn more | E106: Deactivate | F106: Information, education and communication (IEC) campaigns for sanitation awareness | Z106: ='Perf assessment'!U138 -> 0
D107: Finance | F107: - Total cost for IEC campaign | G107: Lump-sum
E110: 4 | F110: Create new infrastructure
C111: WW10 | D111: Learn more | E111: Deactivate | F111: Construct new individual toilets | Z111: ='Perf assessment'!U140 -> 0
D112: Baseline | G112: Non-slum household | H112: Slum household
F113: - Number of households with individual toilet facilities as compared to total households | G113: =CONCATENATE(IF('WSS info'!F290="",0,'WSS info'!F290)," / ",Population!$E$29) -> 0 / 0 | H113: =CONCATENATE(IF('WSS info'!G290="",0,'WSS info'!G290)," / ",Population!$E$30) -> 191 / 0
F114: - Number of households dependent on exisitng community toilet facilities | G114: ='WW calcu'!E125 -> 0 | H114: ='WW calcu'!E142 -> 0
D115: Improvement | F115: - Number of households to be provided with new individual toilet facilities
F116: - Number of these households to replace community toilet using households
F117: Individual toilets connected to on-site sanitation (septic tanks) system with soak pits
D118: Baseline | F118: - Number of existing individual toilets with this disposal system | G118: ='WSS info'!F256 -> 0 | H118: ='WSS info'!G256 -> 0
D119: Improvement | F119: - Percentage of new individual toilets to be provided with this disposal system
F120: - Number of households to be provided with new individual toilet facilities | G120: =ROUND(G119*$G$115,0) -> 0 | H120: =ROUND(H119*$H$115,0) -> 0
D121: Finance | F121: - Block cost to construct an individual toilet with septic tank and soak pit (Rs/toilet)
F122: - Percentage cost of toilet construction to be borne by Benecifiary
F123: Individual toilets connected to on-site sanitation (septic tanks) system with settled sewer
D124: Improvement | F124: - Percentage of new individual toilets to be provided with this disposal system
F125: - Number of new individual toilets to be constructed | G125: =ROUND(G124*$G$115,0) -> 0 | H125: =ROUND(H124*$H$115,0) -> 0
D126: Finance | F126: - Block cost to construct an individual toilet with septic tank (Rs/toilet) (Note : Cost for settled sewer connection to be included in action - 'Lay new settled sewer for wastewater conveyance' )
F127: - Percentage cost of toilet construction to be borne by Benecifiary
F128: Individual toilets connected to off-site sanitation system with conventional sewerage network
D129: Baseline | F129: - Number of existing individual toilets with this disposal system | G129: ='WSS info'!G234 -> 0 | H129: ='WSS info'!G235 -> 0
D130: Improvement | F130: - Number of new individual toilets to be constructed with sewerage network | G130: =G115-G120-G125 -> 0 | H130: =H115-H120-H125 -> 0
F131: Mention details of sewerage network to be connected:
F132: - Connect to households already having sewerage connection (%)
F133: - Connect to existing sewerage with new connection (%)
F134: - Connect to new sewerage network (to be proposed) (%) | G134: =IF(G130>0,1-(G133+G132),0) -> 0 | H134: =IF(H130>0,1-(H133+H132),0) -> 0
D135: Finance | F135: - Block cost to construct an individual toilet (Rs/toilet) (Note : Cost for sewerage connection to be included in action - 'Expand or lay new sewerage network for wastewater conveyance')
F136: - Percentage cost of toilet construction to be borne by Benecifiary
C137: WW11 | D137: Learn more | E137: Deactivate | F137: Construct new group toilets | Z137: ='Perf assessment'!U167 -> 0
D138: Improvement | G138: Non-slum household | H138: Slum household
F139: - Number of new group toilets to be constructed
F140: - Average number of households to share one group toilet (HHs/toilet)
F141: - Total number of households to be served by group toilets
F142: - Number of these households to replace households using existing community toilets
F143: Group toilets connected to on-site sanitation (septic tanks) system with soak pits
D144: Improvement | F144: - Percentage of new group toilets to be connected with this disposal system
F145: - Number of these group toilets | G145: =(G144*$G$139) -> 0 | H145: =(H144*$H$139) -> 0
D146: Finance | F146: - Block cost to construct a group toilet with septic tank and soak pit (per toilet)
F147: - Percentage cost of toilet construction to be borne by group of benecifiaries for a toilet
F148: Group toilets connected to on-site sanitation (septic tanks) system with settled sewer
D149: Improvement | F149: - Percentage of new group toilets to be connected with this disposal system
F150: - Number of these group toilets | G150: =(G149*$G$139) -> 0 | H150: =(H149*$H$139) -> 0
D151: Finance | F151: - Block cost to construct a group toilet with septic tank (per toilet) (Note : Cost for settled sewer connection to be included in action - 'Lay new settled sewer for wastewater conveyance' )
F152: - Percentage cost of toilet construction to be borne by group of benecifiaries for a toilet
F153: Group toilets connected to off-site sanitation system with conventional sewerage network
D154: Improvement | F154: - Number of new group toilets to be constructed with sewerage network | G154: =G139-G145-G150 -> 0 | H154: =H139-H145-H150 -> 0
F155: Mention details of sewerage network to be connected:
F156: - Connect to households already having sewerage connection (%)
F157: - Connect to existing sewerage with new connection (%)
F158: - Connect to new sewerage network (to be proposed) (%) | G158: =IF(G154>0,1-(G157+G156),0) -> 0 | H158: =IF(H154>0,1-(H157+H156),0) -> 0
D159: Finance | F159: - Block cost to construct a group toilet (Note : Cost for sewerage connection to be included in action - 'Expand or lay new sewerage network for wastewater conveyance')
F160: - Percentage cost of toilet construction to be borne by group of benecifiaries for a toilet
C161: WW12 | D161: Learn more | E161: Deactivate | F161: Construct new community toilet blocks | Z161: ='Perf assessment'!U142 -> 0
D162: Baseline | G162: Non-slum household | H162: Slum household
F163: - Number of existing community toilet blocks | G163: ='WSS info'!F294 -> 0 | H163: ='WSS info'!G294 -> 0
F164: - Total number of toilet seats in these blocks | G164: ='WSS info'!F295 -> 0 | H164: ='WSS info'!G295 -> 0
D165: Improvement | F165: - Number of new community toilet blocks to be constructed
F166: - Total number of toilet seats to be constructed in these blocks
F167: - Average number of households to be dependent per community toilet seat (Households/toilet seat)
D168: Finance | F168: - O&M expenses to maintain a community toilet seat | G168: per seat/month
F169: - Estimated revenue generation from new toilets for LG, if converted to pay and use | G169: per seat/month
F170: Community toilets connected to on-site sanitation (septic tanks) system with soak pits
D171: Finance | F171: - Percentage of new toilet seats to be provided with this disposal system
F172: - Number of new community toilet seats to be constructed | G172: =G171*G166 -> 0 | H172: =H171*H166 -> 0
F173: - Block cost to construct a community toilet seat with septic tank and soak pit | G173: per seat
F174: Community toilets connected to on-site sanitation (septic tanks) system with settled sewer
D175: Finance | F175: - Percentage of new toilet seats to be provided with this disposal system
F176: - Number of new community toilet seats to be constructed | G176: =G166*G175 -> 0 | H176: =H175*H166 -> 0
F177: - Block cost to construct a community toilet seat with septic tank and settled sewer connection | G177: per seat
F178: Community toilets connected to off-site sanitation system with conventional sewerage network
D179: Finance | F179: - Percentage of new toilet seats to be provided with this disposal system | G179: =1-(G175+G171) -> 1 | H179: =1-(H175+H171) -> 1
F180: - Number of new community toilet seats to be constructed | G180: =G179*G166 -> 0 | H180: =H179*H166 -> 0
F181: - Block cost to construct a community toilet seat with sewerage connection | G181: per seat
C182: WW13 | D182: Learn more | E182: Deactivate | F182: Construct new public toilet blocks | Z182: ='Perf assessment'!U143 -> 0
D183: Baseline | F183: - Number of existing public toilet blocks | G183: Blocks | H183: ='WSS info'!F305 -> 0
F184: - Total number of toilet seats in these blocks | G184: Seats | H184: ='WSS info'!$F$306 -> 0
D185: Improvement | F185: - Number of new public toilet blocks to be constructed | G185: Blocks
F186: - Total number of toilet seats to be constructed in these blocks | G186: Seats
F187: - Estimated number of users expected per public toilet seat | G187: per seat/day
D188: Finance | F188: - O&M expenses to maintain a public toilet seat | G188: per seat/month
F189: - Estimated revenue generation from new toilets for LG, if converted to pay and use | G189: per seat/month
F190: Public toilets connected to on-site sanitation (septic tanks) system with soak pits
D191: Finance | F191: - Percentage of new toilet seats to be provided with this disposal system | G191: %
F192: - Number of new public toilet seats to be constructed | G192: Seats | H192: =H191*$H$186 -> 0
F193: - Block cost to construct a public toilet seat with septic tank and soak pit | G193: Cost/seat
F194: Public toilets connected to on-site sanitation (septic tanks) system with settled sewer
D195: Finance | F195: - Percentage of new toilet seats to be provided with this disposal system | G195: %
F196: - Number of new public toilet seats to be constructed | G196: Seats | H196: =H195*$H$186 -> 0
F197: - Block cost to construct a public toilet seat with septic tank and settled sewer connection | G197: Cost/seat
F198: Public toilets connected to off-site sanitation system with conventional sewerage network
D199: Finance | F199: - Percentage of new toilet seats to be provided with this disposal system | G199: % | H199: =1-(H191+H195) -> 1
F200: - Number of new public toilet seats to be constructed | G200: Seats | H200: =H199*$H$186 -> 0
F201: - Block cost to construct a public toilet seat with sewerage connection | G201: Cost/seat
D205: II | E205: Service levels and quality
E207: 1 | F207: Process/Policy improvement measures
C208: WW14 | D208: Learn more | E208: Deactivate | F208: Process improvement for new sewerage connection applications | Z208: ='Perf assessment'!U149 -> 0
C209: WW15 | D209: Learn more | E209: Deactivate | F209: Improve processes for regular cleaning of drains and sewers | Z209: ='Perf assessment'!U150 -> 0
E212: 2 | F212: Existing system improvement measures
C213: WW16 | D213: Learn more | E213: Deactivate | F213: Regularise unauthorised sewerage connections | Z213: ='Perf assessment'!U152 -> 0
D214: Baseline | F214: - Estimated households with unauthorised sewerage connections in city | G214: % | H214: ='WSS info'!$E$238 -> 0
D215: Improvement | F215: - Targeted reduction in unauthorised connections with improvement measures | G215: %
D216: Finance | F216: - Penalty charges to be levied for regularisation of connections | G216: Rs./ connection
C217: WW17 | D217: Learn more | E217: Deactivate | F217: Increase connections using existing sewerage network | Z217: ='Perf assessment'!U153 -> 0
D218: Baseline | F218: - Percentage of inhabited area served by sewerage network | G218: =IFERROR('WSS info'!$G$228/'WSS info'!$G$37,0) -> 0
F219: - Households connected to sewerage network (households connected/total households) | G219: Non-slum household | H219: Slum household
... 196 more rows

Sheet SW Plan
C2: PERFORMANCE ASSESSMENT SYSTEM PROJECT
C4: SANIPLAN - A Performance Improvement Planning Model
F6: MODULE II: ACTION PLANNING
C8: ACTION PLAN FOR SOLID WASTE MANAGEMENT SERVICES
A9: Click | C9: Access and coverage | G9: Service levels and quality | M9: Efficiency in service operations | S9: Financial sustainability
B10: Instructions for using this sheet: | F10: Action Planning is a process that aims to consolidate various dimensions of problem solving into output based tangible Action Plan. The planning objectives identified in 'Performance Assessment' sheet are set of actions that need to be implemented in city for improving service delivery. These planning objectives are essentially individual actions that would be calibrated as output based tangile targets in this sheet. A set of these calibrated actions will form an implementation plan for ULB across ten years of plan period. Hence, this Action Plan must evolve through an iterative process of identifying appropriate actions, phasing and financing pattern. To facilitate this process, all the actions are compiled in an easy to use tabular structure along with pictorial graphs to show its impact simultaneously. These graphs display collective impact of all the actions in each theme (Access and Coverage, Service Levels and Quality, Efficiency in Service Operations and Financial Sustainability) in terms of performance improvement (dark coloured area graphs) and financial requirement (translucent coloured area graphs). The tabular structure for each Action has following components:
F11: LINK FOR ACTION GUIDELINE | G11: This is a hyperlinked cell placed on top most left corner of table. It leads to another sheet of Annexure, where detailed guidelines are provided to explain an action with assumptions to be considered for calibrating it.
F12: ACTIVATE/ DEACTIVATE ACTION | G12: A simple drop-down switch is provided on top left corner of table (besides learn more) to 'Activate/Deactivate' an action. By activating switch, the corresponding action can be included in the proposed Action Plan. Light blue colour of box indicates actions prioritised in Performance assessment sheet. The colour turns to dark blue if action is actually activated. Any action can be activated irrespective of whether they were prioritised earlier or not (i.e. box being grey or light blue; colour is only indicative.
F13: PHASING OF ACTIONS | G13: These two cells on top most right corner of table turn blue when an action is activated. User has to fill in implementation period of the action. First cell is for starting year of action and second cell is for completing year of action.
F14: BASELINE INFORMATION | G14: These are first set of rows in a table displaying important background information about the Action. It will facilitate decision-making for user.
F15: IMPROVEMENT INFORMATION | G15: Next set of rows are for filling in information about improvement in performance envisaged by implementing the action. Instructions for calculating this are provided in Action Guidelines of Annexure.
F16: FINANCE INFORMATION | G16: These are last set of rows to fill in basic financial details to implement the Action like basic block cost estimates, O&M expenses and revenue generation. Instructions for calculating this are provided in Action guidelines of Annexure.
D19: I | E19: Access and coverage
E21: 1 | F21: Data improvement measures
C22: SW01 | D22: Learn more | E22: Deactivate | F22: Household survey to assess solid waste services | Z22: ='Perf assessment'!U209 -> 0
D23: Baseline | F23: - Present number of households in city | G23: Numbers | H23: =Population!$E$31 -> 0
D24: Improvement | F24: - Percentage of households for which survey is to be conducted | G24: %
F25: - Periodic updation time of survey | G25: Number of years
D26: Finance | F26: - Per household cost of survey | G26: Cost/ household
F27: - Cost of updating the survey | G27: Cost/ updation
C28: SW02 | D28: Learn more | E28: Deactivate | F28: Computerise solid waste records | Z28: ='Perf assessment'!U210 -> 0
D29: Finance | F29: - Total cost of computerisation of records (lump-sum) | G29: Lump-sum
F30: - Annual recurring cost for updating the records | G30: Cost/ updation
E33: 2 | F33: Process/Policy improvement measures
C34: SW03 | D34: Learn more | E34: Deactivate | F34: Prepare management plan to efficiently deploy manpower and resources | Z34: ='Perf assessment'!U212 -> 0
E37: 3 | F37: Existing system improvement measures
C38: SW04 | D38: Learn more | E38: Deactivate | F38: Procure equipments for street sweeping and drain cleaning | Z38: ='Perf assessment'!U214 -> 0
D39: Baseline | F39: - Average frequency of cleaning drains in a month | G39: Number/month | H39: ='WSS info'!$G$401 -> 0
F40: - Average frequency of sweeping a street in a month | G40: Number/month | H40: ='WSS info'!$G$402 -> 0
D41: Improvement | F41: - Improvement in frequency of drain cleaning | G41: Number/month
F42: - Improvement in frequency of street sweeping | G42: Number/month
D43: Finance | F43: - Total cost to carry out the activity | G43: Lump-sum
F44: - O&M expenses | G44: % of CapEx/annum
C45: SW05 | D45: Learn more | E45: Deactivate | F45: Procure equipments for door to door solid waste collection (collection bins, ghantagaadis, containerised cycle rickshaw, handcarts etc.) | Z45: ='Perf assessment'!U215 -> 0
F46: i) Procure equipments for already served areas to improve efficiency of services
D47: Finance | F47: - Total cost to carry out the activity | G47: Lump-sum
F48: - O&M expenses | G48: % of CapEx/annum
F49: ii) Procure equipments for unserved areas to increase coverage
D50: Improvement | F50: - Estimated additional Non-slum households that can be served (Note: Do not account for additional households already included in other actions of 'Additional staff' and 'Private contract') | G50: Numbers
F51: - Estimated additional Slum households that can be served | G51: Numbers
D52: Finance | F52: - Total cost to carry out the activity | G52: Lump-sum
F53: - O&M expenses | G53: % of CapEx/annum
C54: SW06 | D54: Learn more | E54: Deactivate | F54: Information, education and communication (IEC) campaign for awareness of solid waste management | Z54: ='Perf assessment'!U216 -> 0
D55: Finance | F55: - Cost of conducting IEC campaign | G55: Lump-sum
E58: 4 | F58: Create new infrastructure
C59: SW07 | D59: Learn more | E59: Deactivate | F59: Employ additional staff on contract for improving solid waste service delivery | Z59: ='Perf assessment'!U218 -> 0
D60: Finance | F60: - Average monthly salary of a staff member | G60: per personnel/month
F61: - Monthly other contingency expenditure to be incurred | G61: per personnel/month
F62: i) Employ staff in already served areas to improve efficiency of services
D63: Improvement | F63: - Additional staff members to be deployed | G63: Numbers
D64: Finance | F64: - Total cost incurred to deploy additional staff | G64: per annum | H64: =((H60*H63*12)+(H61*H63*12)) -> 0
F65: ii) Employ staff in unserved areas to increase coverage
D66: Improvement | F66: - Additional staff members to be deployed | G66: Numbers
F67: - Estimated additional Non-slum households that can be served (Note: Do not account for additional households already included in other actions of 'Procure equipments' and 'Private contract') | G67: Numbers
F68: - Estimated additional Slum households that can be served | G68: Numbers
D69: Finance | F69: - Total cost incurred to deploy staff | G69: per annum | H69: =(H60+H61)*H66*12 -> 0
C70: SW08 | D70: Learn more | E70: Deactivate | F70: Engage with private service providers to provide solid waste services | Z70: ='Perf assessment'!U219 -> 0
F71: i) Contract for already served areas to improve efficiency of services
D72: Finance | F72: Furnish details as applicable in the contract:
F73: - Royalty to be paid to service provider by ULB, if any | G73: per month
F74: - Royalty to be paid to ULB by service provider, if any | G74: per month
F75: - Other contingency expenditure to be incurred by ULB | G75: per month
F76: ii) Contract for unserved areas to increase coverage
D77: Improvement | F77: - Estimated additional Non-slum households that can be served (Note: Do not account additional households already included in other actions of 'Procure equipments' and 'Additional staff') | G77: Numbers
F78: - Estimated additional Slum households that can be served | G78: Numbers
D79: Finance | F79: Furnish details as applicable in the contract:
F80: - Royalty to be paid to service provider by ULB, if any | G80: per month
F81: - Royalty to be paid to ULB by service provider, if any | G81: per month
F82: - Other contingency expenditure to be incurred by ULB | G82: per month
D87: II | E87: Service levels and quality
E89: 1 | F89: Data improvement measures
C90: SW09 | D90: Learn more | E90: Deactivate | F90: Track movement of solid waste transportation vehicles to achieve optimum operational efficiency | Z90: ='Perf assessment'!U225 -> 0
D91: Finance | F91: - Cost of procuring and installing global positioning system (GPS) system in all vehicles (lump-sum) | G91: Lump-sum
F92: - O&M expenses | G92: % of CapEx/ annum
E95: 2 | F95: Process/Policy improvement measures
C96: SW10 | D96: Learn more | E96: Deactivate | F96: Improve processes for maintaining daily logs of solid waste across SWM value chain | Z96: ='Perf assessment'!U227 -> 0
C97: SW11 | D97: Learn more | E97: Deactivate | F97: Process for periodic estimation of recyclable material collected by recyclers | Z97: ='Perf assessment'!U228 -> 0
E100: 3 | F100: Existing system improvement measures
C101: SW12 | D101: Learn more | E101: Deactivate | F101: Segregation of collection and transportation of solid waste | Z101: ='Perf assessment'!U230 -> 0
D102: Baseline | F102: - Households and establishments where solid waste is stored and collected in segregated manner | G102: Numbers | H102: ='WSS info'!$G$386+'WSS info'!$G$387 -> 0
D103: Improvement | F103: - Solid waste to be stored and collected in segregated manner from households already covered by door to door collection | G103: Numbers
F104: - Solid waste to be stored and collected in segregated manner from households not served by door to door collection presently | G104: Numbers
D105: Finance | F105: - Total cost to carry out the activity | G105: Lump-sum
C106: SW13 | D106: Learn more | E106: Deactivate | F106: Improve solid waste collection through secondary storage bins | Z106: ='Perf assessment'!U231 -> 0
D107: Baseline | F107: - Households dependent on secondary storage bins for solid waste collection (Note: These households are not served by doorstep solid waste collection) | G107: Numbers | H107: ='WSS info'!G391+'WSS info'!G392 -> 0
F108: - Existing number of secondary bins | G108: Numbers | H108: ='WSS info'!$G$393 -> 0
F109: - Aggregate storage capacity of all the bins | G109: Metric tonnes | H109: ='WSS info'!$G$394 -> 0
D110: Improvement | F110: Improve coverage with existing storage capacity:
F111: - Additional households that can be served with existing storage capacity (Note: If these households are converted to doorstep collection, then write number of such households with a negative sign) | G111: Numbers
F112: Improve coverage with additional storage capacity:
F113: - Procure additional bins for secondary collection system | G113: Numbers
F114: - Additional storage capacity created | G114: Metric tonnes
F115: - Additional households served with new storage capacity (Note: These households should not be included for doorstep collection system) | G115: Numbers
D116: Finance | F116: - Cost of procuring secondary storage bin | G116: Cost/bin
F117: - Cost for asphalt/concrete flooring for each bin | G117: Cost/bin
F118: - O&M expenses | G118: % of CapEx/annum
C119: SW14 | D119: Learn more | E119: Deactivate | F119: Install litter bins at public places | Z119: ='Perf assessment'!U232 -> 0
D120: Improvement | F120: - Number of litter bins to be procured | G120: Numbers
D121: Finance | F121: - Block cost to procure a litter bin | G121: Cost/bin
F122: - O&M expenses | G122: % of CapEx/annum
C123: SW15 | D123: Learn more | E123: Deactivate | F123: Improve collection efficiency of solid waste with existing vehicles | Z123: ='Perf assessment'!U233 -> 0
D124: Baseline | F124: - Existing number of transportation vehicles with ULB | G124: Numbers | H124: =SUM('WSS info'!$F$418:$F$418) -> 0
D125: Improvement | F125: - Number of vehicles that require repair and maintenance | G125: Numbers
F126: Increase trips of solid waste transportation vehicles: | G126: Present number of trips/ day | H126: Maximum trips possible/day
F127: - Three wheeler auto tippers | G127: ='WSS info'!G422 -> 0
F128: - Tipper trucks | G128: ='WSS info'!G423 -> 0
F129: - Tractor trailer | G129: ='WSS info'!G424 -> 0
F130: - Mini lorries | G130: ='WSS info'!G425 -> 0
F131: - Dumper placers | G131: ='WSS info'!G426 -> 0
F132: - Trucks | G132: ='WSS info'!G427 -> 0
D133: Finance | F133: - Total cost of repairing vehicles (lump-sum) | G133: Lump-sum
F134: - Additional O&M expenses for an additional trip | G134: per trip
C135: SW16 | D135: Learn more | E135: Deactivate | F135: Repair existing solid waste processing plant | Z135: ='Perf assessment'!U234 -> 0
D136: Baseline | F136: - Existing capacity of solid waste processing plant | G136: Metric tonnes/ day | H136: ='WSS info'!G437 -> 0
F137: - Existing functional capacity of processing plant | G137: Metric tonnes/ day | H137: ='WSS info'!G438 -> 0
D138: Improvement | F138: - Non-functional capacity of processing plant to be repaired and made functional | G138: Metric tonnes/ day
F139: - By-product derived from additional solid waste treated | G139: %
D140: Finance | F140: - Total cost of repairing the plant (lump-sum) | G140: Lump-sum
F141: - Additional O&M expenses, if incurred | G141: per annum
F142: - Additional revenue generated by selling processed waste, if any | G142: per annum
E145: 4 | F145: Create new infrastructure
C146: SW17 | D146: Learn more | E146: Deactivate | F146: Procure new vehicles for solid waste collection and transportation | Z146: ='Perf assessment'!U236 -> 0
D147: Baseline | F147: - Maximum quantity of waste that can be transported with present vehicles of ULB | G147: Metric tonnes/day | H147: =SUMPRODUCT('WSS info'!$F$413:$F$418,'WSS info'!$G$413:$G$418,IF($E$123="Activate",'SW Plan'!$H$127:$H$132, $G$127:$G$132)) -> 0
D148: Improvement | F148: Aadditional vehicles to be procured: | G148: Number | H148: Capacity (Tonnes)
F149: - Three wheeler auto tippers
F150: - Tipper trucks
F151: - Tractor trailer
F152: - Mini lorries
F153: - Dumper placers
F154: - Trucks
F155: Maximum trips possible in a day:
F156: - Three wheeler auto tippers | G156: Trips/ day
F157: - Tipper trucks | G157: Trips/ day
F158: - Tractor trailer | G158: Trips/ day
F159: - Mini lorries | G159: Trips/ day
F160: - Dumper placers | G160: Trips/ day
F161: - Trucks | G161: Trips/ day
D162: Finance | F162: - Total cost to procure all vehicles | G162: Lump-sum
F163: - O&M expenses | G163: % of CapEx/ annum
C164: SW18 | D164: Learn more | E164: Deactivate | F164: Construct new solid waste transfer station | Z164: ='Perf assessment'!U237 -> 0
D165: Baseline | F165: - Existing number of transfer station in ULB | G165: Numbers | H165: ='WSS info'!$G$395 -> 0
F166: - Aggregate storage capacity at all the transfer stations | G166: Metric tonnes/ day | H166: ='WSS info'!$G$396 -> 0
D167: Improvement | F167: - Additional transfer stations to be constructed | G167: Numbers
F168: - Aggregate additional storage capacity to be created | G168: Metric tonnes/day
D169: Finance | F169: - Cost to develop one site | G169: Cost per site
F170: - O&M expenses | G170: % of CapEx/ annum
C171: SW19 | D171: Learn more | E171: Deactivate | F171: Install weigh bridges to quantify solid waste collected and transported | Z171: ='Perf assessment'!U238 -> 0
D172: Improvement | F172: - Number of weigh bridges to be installed | G172: Numbers
D173: Finance | F173: - Cost of Installation of one weigh bridge | G173: per unit
F174: - O&M expenses | G174: % of CapEx/ annum
C175: SW20 | D175: Learn more | E175: Deactivate | F175: Construct new solid waste processing plant | Z175: ='Perf assessment'!U239 -> 0
D176: Baseline | F176: - Existing capacity of solid waste processing plant | G176: Metric tonnes/day | H176: ='WSS info'!$G$437 -> 0
D177: Improvement | F177: - Construct new solid waste processing plant | G177: Metric tonnes/day
F178: - If city already has a processing plant, percentage of solid waste to be processed at this new facility | G178: %
F179: Details of by-products derived from solid waste processed at the plant:
F180: - Percentage of compost derived from solid waste | G180: %
F181: - Percentage of refuse-derive fuel (RDF)/fluff derived from solid waste | G181: %
F182: - Percentage of recyclable material segregated from solid waste reaching at the plant | G182: %
F183: - Year till when entire production of by-products shall be sold commercially | G183: Year
D184: Finance | F184: - Block cost to construct solid waste processing plant | G184: per MT/day
F185: - Selling price of compost, if sold commercially by ULB | G185: Per MT
F186: - Selling price of RDF/fluff, if sold commercially by ULB | G186: Per MT
F187: - Selling price of recyclable material, if sold commercially by ULB | G187: Per MT
F188: - O&M expenses to operate the plant | G188: % of CapEx/annum
D192: III | E192: Efficiency in service operations
E194: 1 | F194: Process/Policy improvement measures
C195: SW21 | D195: Learn more | E195: Deactivate | F195: Improve processes for management of consumer complaints | Z195: ='Perf assessment'!U245 -> 0
C196: SW22 | D196: Learn more | E196: Deactivate | F196: Process for allotment of government land for processing and disposal of solid waste | Z196: ='Perf assessment'!U246 -> 0
C197: SW23 | D197: Learn more | E197: Deactivate | F197: Process to obtain authorisation from concerned authorities and furnish annual report of compliance | Z197: ='Perf assessment'!U247 -> 0
C198: SW24 | D198: Learn more | E198: Deactivate | F198: Review of operating practices at scientific landfill sites to ensure compliance with MSW Rules 2000 | Z198: ='Perf assessment'!U248 -> 0
E201: 2 | F201: Existing system improvement measures
C202: SW25 | D202: Learn more | E202: Deactivate | F202: Improve consumer grievance redressal system | Z202: ='Perf assessment'!U250 -> 0
D203: Baseline | F203: - Current level of consumer grievance redressal (percentage complaints resolved in 24 hours) | G203: % | H203: =IFERROR('WSS info'!G407/'WSS info'!G406,0) -> 0
D204: Improvement | F204: - Targeted level of consumer grievance redressal | G204: %
D205: Finance | F205: - One time cost of improvement in the system for recording and solving complaints (lump-sum) | G205: Lump-sum
E208: 3 | F208: Create new infrastructure
C209: SW26 | D209: Learn more | E209: Deactivate | F209: Construct sanitary landfill facility for solid waste disposal | Z209: ='Perf assessment'!U252 -> 0
D210: Baseline | F210: - Presence of sanitary landfill facility in city | G210: Yes / No | H210: ='WSS info'!$G$445 -> No
F211: - Remaining capacity of sanitary landfill site, if present | G211: Metric tonnes | H211: ='WSS info'!$G$447 -> 0
D212: Improvement | F212: - Construct new sanitary landfill facility | G212: Metric tonnes
D213: Finance | F213: - Total cost of construction of landfill site (lump-sum) | G213: Lump-sum
F214: - O&M expenses | G214: % of CapEx/annum
C215: SW27 | D215: Learn more | E215: Deactivate | F215: Closure of existing dumping site in scientific manner as prescribed by MSW Rules 2000 | Z215: ='Perf assessment'!U253 -> 0
D216: Finance | F216: - Total cost of closing the site (lump-sum) | G216: Lump-sum
D220: IV | E220: Financial sustainability
E222: 1 | F222: Process/Policy improvement measures
C223: SW28 | D223: Learn more | E223: Deactivate | F223: Improve billing and collection of solid waste bills | Z223: ='Perf assessment'!U259 -> 0
E226: 2 | F226: Existing system improvement measures
C227: SW29 | D227: Learn more | E227: Deactivate | F227: Improve collection efficiency of solid waste charges and taxes | Z227: ='Perf assessment'!U261 -> 0
D228: Baseline | F228: - Present collection efficiency of current demand from solid waste related charges and taxes | G228: % | H228: =IFERROR('Finance info'!J81/'Finance info'!I81,0) -> 0
F229: - Present collection efficiency of solid waste related arrears | G229: % | H229: =IFERROR('Finance info'!J88/'Finance info'!I88,0) -> 0
D230: Improvement | F230: - Targeted level of current collection efficiency | G230: %
F231: - Targeted level of arrear collection efficiency | G231: %
D232: Finance | F232: - One time cost of improvement in collection system | G232: Lump-sum
E236: Customised actions
E239: Deactivate | F239: SW Customised action 1 | L239: Description of customised actions
D240: Baseline
D241: Improvement
D242: Finance | F242: - Revenue generation by implementing the action, if any (Rs.lakhs/yr)
F243: - Cost of carrying out of the activity (lump-sum) | G243: Lump-sum
... 7 more rows

Sheet Summary of PIP
C2: PERFORMANCE ASSESSMENT SYSTEM PROJECT
C4: SANIPLAN - A Performance Improvement Planning Model
C6: MODULE II: ACTION PLANNING
C8: SUMMARY OF PIP ACTION PLAN
A9: Click | C9: PAS performance indicators | G9: Standardised Service Level Benchmark Report
C10: Instructions for using this sheet:
C11: Improvement actions activated for each theme will have a combined effect on performance of all KPIs. This impact on service performance levels is assessed through Key Performance Indicators (KPIs) as well as their corresponding Local Action Indicators (LAIs) for all four performance measurement themes. These KPIs and LAIs have been developed under the PAS Project. LAIs are essentially drilled down indicators, to supplement the main KPIs and help establish contextual relevance. Definitions of each performance indicator (KPIs and LAIs) are also provided along with each indicator. To assess the impact of Action Plan, traffic light analysis is done across the 10-year time line with respect to benchmark values of KPIs. An option is also provided to customise these benchmark values from default benchmarks, which were adopted from 'Standardised Service Level Benchmarks (SSLB)' of MoUD, GoI. The first set of tables use the full set of Indictors developed under the PAS Project. A second table (row 198 onwards) also reports separately on KPIs specified by SSLB -MOUD for the 10-year period
Q13: Traffic light analysis of Key Performance Indicators
R14: Traffic light analysis based on KPI values compared against benchmark values
C16: NOTE: TO CALCULATE FINANCE INDICATORS, PLEASE FILL 'FINANCIAL PROJECTIONS' SHEET FIRST FOR FOERCASTING OF BUSINESS AS USUAL SCENARIO OF MUNICIPAL FINANCE. | R16: Select method for fixing traffic light ranges | T16: Red | U16: Orange | V16: Green
R17: I. STANDARD SLB BENCHMARKS | T17: < 50% | U17: 50%-90% | V17: > 90%
B18: I | C18: PAS performance indicators | R18: Option I: Standard SLB benchmarks recommended by MoUD, GoI Option II: Customize KPI benchmarks as per your priorities
C19: View/edit ranges for traffic light analysis of Key performance indicators - pl see the table on the right column Q onwards
B20: A | C20: Performance of Water supply services | R20: Ranges for Water Supply KPIs | AA20: FALSE
AA21: 0
C22: Performance levels | D22: =D$220 ->  | E22: =E$220 ->  | AA22: 0.5
C23: Access and coverage | R23: SLB Benchmark | S23: Customise value | T23: Red | U23: Orange | V23: Green | AA23: 0.9
C24: Coverage of individual water supply connections in city | D24: ='WS calcu'!E170 -> 0 | E24: ='WS calcu'!F170 -> 0 | F24: ='WS calcu'!G170 -> 0 | G24: ='WS calcu'!H170 -> 0 | H24: ='WS calcu'!I170 -> 0 | I24: ='WS calcu'!J170 -> 0 | J24: ='WS calcu'!K170 -> 0 | K24: ='WS calcu'!L170 -> 0 | L24: ='WS calcu'!M170 -> 0 | M24: ='WS calcu'!N170 -> 0 | N24: ='WS calcu'!O170 -> 0 | R24: 1 | T24: =IF($R$17="II. CUSTOMIZE BENCHMARKS",$S24,$R24)*$AA$21 -> 0 | U24: =IF($R$17="II. CUSTOMIZE BENCHMARKS",$S24,$R24)*$AA$22 -> 0.5 | V24: =IF($R$17="II. CUSTOMIZE BENCHMARKS",$S24,$R24)*$AA$23 -> 0.9
C25: Number of households connected to water supply network with a private (not shared) service connection, as percentage of total households in city.
C26: Coverage of individual water supply connections in slum | D26: ='WS calcu'!E171 -> 0 | E26: ='WS calcu'!F171 -> 0 | F26: ='WS calcu'!G171 -> 0 | G26: ='WS calcu'!H171 -> 0 | H26: ='WS calcu'!I171 -> 0 | I26: ='WS calcu'!J171 -> 0 | J26: ='WS calcu'!K171 -> 0 | K26: ='WS calcu'!L171 -> 0 | L26: ='WS calcu'!M171 -> 0 | M26: ='WS calcu'!N171 -> 0 | N26: ='WS calcu'!O171 -> 0 | R26: 1 | T26: =IF($R$17="II. CUSTOMIZE BENCHMARKS",$S26,$R26)*$AA$21 -> 0 | U26: =IF($R$17="II. CUSTOMIZE BENCHMARKS",$S26,$R26)*$AA$22 -> 0.5 | V26: =IF($R$17="II. CUSTOMIZE BENCHMARKS",$S26,$R26)*$AA$23 -> 0.9
C27: Number of households in slum settlements connected to water supply network with a private (not shared) service connection, as percentage of total slum household.
C28: Coverage of improved water supply services | D28: ='WS calcu'!E172 -> 0 | E28: ='WS calcu'!F172 -> 0 | F28: ='WS calcu'!G172 -> 0 | G28: ='WS calcu'!H172 -> 0 | H28: ='WS calcu'!I172 -> 0 | I28: ='WS calcu'!J172 -> 0 | J28: ='WS calcu'!K172 -> 0 | K28: ='WS calcu'!L172 -> 0 | L28: ='WS calcu'!M172 -> 0 | M28: ='WS calcu'!N172 -> 0 | N28: ='WS calcu'!O172 -> 0
C29: Population with access to potable water supply (includes group connections, public taps and stand posts), as percentage of total population in city (as per JMP).
C30: Spatial coverage of water supply distribution network | D30: ='WS calcu'!E173 -> 0 | E30: ='WS calcu'!F173 -> 0 | F30: ='WS calcu'!G173 -> 0 | G30: ='WS calcu'!H173 -> 0 | H30: ='WS calcu'!I173 -> 0 | I30: ='WS calcu'!J173 -> 0 | J30: ='WS calcu'!K173 -> 0 | K30: ='WS calcu'!L173 -> 0 | L30: ='WS calcu'!M173 -> 0 | M30: ='WS calcu'!N173 -> 0 | N30: ='WS calcu'!O173 -> 0
C31: Municipal area covered by water supply distribution network as percentage of total jurisdictional area of city.
C32: Unauthorised water supply connections | D32: ='WS calcu'!E131 -> 0 | E32: ='WS calcu'!F131 -> 0 | F32: ='WS calcu'!G131 -> 0 | G32: ='WS calcu'!H131 -> 0 | H32: ='WS calcu'!I131 -> 0 | I32: ='WS calcu'!J131 -> 0 | J32: ='WS calcu'!K131 -> 0 | K32: ='WS calcu'!L131 -> 0 | L32: ='WS calcu'!M131 -> 0 | M32: ='WS calcu'!N131 -> 0 | N32: ='WS calcu'!O131 -> 0
C33: Number of estimated illegal water supply connections as percentage of total water supply connections in city.
C34: Service levels and quality | R34: SLB Benchmark | S34: Customise value | T34: Red | U34: Orange | V34: Green
C35: Per capita supply of water at consumer end (lpcd) | D35: ='WS calcu'!E251 -> 0 | E35: ='WS calcu'!F251 -> 0 | F35: ='WS calcu'!G251 -> 0 | G35: ='WS calcu'!H251 -> 0 | H35: ='WS calcu'!I251 -> 0 | I35: ='WS calcu'!J251 -> 0 | J35: ='WS calcu'!K251 -> 0 | K35: ='WS calcu'!L251 -> 0 | L35: ='WS calcu'!M251 -> 0 | M35: ='WS calcu'!N251 -> 0 | N35: ='WS calcu'!O251 -> 0 | R35: ='Indicator info'!E19 -> 100 | T35: =IF($R$17="II. CUSTOMIZE BENCHMARKS",$S35,$R35)*$AA$21 -> 0 | U35: =IF($R$17="II. CUSTOMIZE BENCHMARKS",$S35,$R35)*$AA$22 -> 50 | V35: =IF($R$17="II. CUSTOMIZE BENCHMARKS",$S35,$R35)*$AA$23 -> 90
C36: Total water supplied to consumers (authorised billed and unbilled residential consumers) expressed by population served per day.
C37: Continuity of water supply (hours/day) | D37: ='WS calcu'!E267 -> 0 | E37: ='WS calcu'!F267 -> 0 | F37: ='WS calcu'!G267 -> 0 | G37: ='WS calcu'!H267 -> 0 | H37: ='WS calcu'!I267 -> 0 | I37: ='WS calcu'!J267 -> 0 | J37: ='WS calcu'!K267 -> 0 | K37: ='WS calcu'!L267 -> 0 | L37: ='WS calcu'!M267 -> 0 | M37: ='WS calcu'!N267 -> 0 | N37: ='WS calcu'!O267 -> 0 | R37: 24 | T37: =IF($R$17="II. CUSTOMIZE BENCHMARKS",$S37,$R37)*$AA$21 -> 0 | U37: =IF($R$17="II. CUSTOMIZE BENCHMARKS",$S37,$R37)*$AA$22 -> 12 | V37: =IF($R$17="II. CUSTOMIZE BENCHMARKS",$S37,$R37)*$AA$23 -> 21.6
C38: Average number of hours of water supplied per day (number of hours in a week divided by days of supply in a week).
C39: Quality of water supplied | D39: ='WS calcu'!E268 -> 0 | E39: ='WS calcu'!F268 -> 0 | F39: ='WS calcu'!G268 -> 0 | G39: ='WS calcu'!H268 -> 0 | H39: ='WS calcu'!I268 -> 0 | I39: ='WS calcu'!J268 -> 0 | J39: ='WS calcu'!K268 -> 0 | K39: ='WS calcu'!L268 -> 0 | L39: ='WS calcu'!M268 -> 0 | M39: ='WS calcu'!N268 -> 0 | N39: ='WS calcu'!O268 -> 0 | R39: 1 | T39: =IF($R$17="II. CUSTOMIZE BENCHMARKS",$S39,$R39)*$AA$21 -> 0 | U39: =IF($R$17="II. CUSTOMIZE BENCHMARKS",$S39,$R39)*$AA$22 -> 0.5 | V39: =IF($R$17="II. CUSTOMIZE BENCHMARKS",$S39,$R39)*$AA$23 -> 0.9
C40: Percentage of water samples meeting CPHEEO potable water standards and sampling regime at treatment plant outlet and consumer points.
C41: Adequacy of water treatment capacity | D41: ='WS calcu'!E804 -> 0 | E41: ='WS calcu'!F804 -> 0 | F41: ='WS calcu'!G804 -> 0 | G41: ='WS calcu'!H804 -> 0 | H41: ='WS calcu'!I804 -> 0 | I41: ='WS calcu'!J804 -> 0 | J41: ='WS calcu'!K804 -> 0 | K41: ='WS calcu'!L804 -> 0 | L41: ='WS calcu'!M804 -> 0 | M41: ='WS calcu'!N804 -> 0 | N41: ='WS calcu'!O804 -> 0
C42: Aggregate functional capacity of all water treatment plants in city as compared to total raw water augmented.
C43: Adequacy of water storage capacity | D43: ='WS calcu'!E806 -> 0 | E43: ='WS calcu'!F806 -> 0 | F43: ='WS calcu'!G806 -> 0 | G43: ='WS calcu'!H806 -> 0 | H43: ='WS calcu'!I806 -> 0 | I43: ='WS calcu'!J806 -> 0 | J43: ='WS calcu'!K806 -> 0 | K43: ='WS calcu'!L806 -> 0 | L43: ='WS calcu'!M806 -> 0 | M43: ='WS calcu'!N806 -> 0 | N43: ='WS calcu'!O806 -> 0
C44: Aggregate capacity of all water storage reservoirs in city as compared to total water to be distributed (storage capacity should be one third of total water to be distributed).
C45: Per capita water supplied | D45: ='WS calcu'!E260 -> 0 | E45: ='WS calcu'!F260 -> 0 | F45: ='WS calcu'!G260 -> 0 | G45: ='WS calcu'!H260 -> 0 | H45: ='WS calcu'!I260 -> 0 | I45: ='WS calcu'!J260 -> 0 | J45: ='WS calcu'!K260 -> 0 | K45: ='WS calcu'!L260 -> 0 | L45: ='WS calcu'!M260 -> 0 | M45: ='WS calcu'!N260 -> 0 | N45: ='WS calcu'!O260 -> 0
C46: Total water supplied at source expressed by population served per day.
C47: Days of water supply in a month | D47: ='WS calcu'!E266 -> 0 | E47: ='WS calcu'!F266 -> 0 | F47: ='WS calcu'!G266 -> 0 | G47: ='WS calcu'!H266 -> 0 | H47: ='WS calcu'!I266 -> 0 | I47: ='WS calcu'!J266 -> 0 | J47: ='WS calcu'!K266 -> 0 | K47: ='WS calcu'!L266 -> 0 | L47: ='WS calcu'!M266 -> 0 | M47: ='WS calcu'!N266 -> 0 | N47: ='WS calcu'!O266 -> 0
C48: Number of days in a month that receive municipal water supply.
C49: Efficiency in service operations | R49: SLB Benchmark | S49: Customise value | T49: Red | U49: Orange | V49: Green
C50: Extent of Non-Revenue Water | D50: ='WS calcu'!E32 -> 0 | E50: ='WS calcu'!F32 -> 0 | F50: ='WS calcu'!G32 -> 0 | G50: ='WS calcu'!H32 -> 0 | H50: ='WS calcu'!I32 -> 0 | I50: ='WS calcu'!J32 -> 0 | J50: ='WS calcu'!K32 -> 0 | K50: ='WS calcu'!L32 -> 0 | L50: ='WS calcu'!M32 -> 0 | M50: ='WS calcu'!N32 -> 0 | N50: ='WS calcu'!O32 -> 0 | R50: 0.15 | T50: =IF($R$17="II. CUSTOMIZE BENCHMARKS",$S50,$R50)*$AA$23 -> 0.135 | U50: =IF($R$17="II. CUSTOMIZE BENCHMARKS",$S50,$R50)*$AA$22 -> 0.075 | V50: =IF($R$17="II. CUSTOMIZE BENCHMARKS",$S50,$R50)*$AA$21 -> 0
C51: Difference between total water produced and water sold (excludes physical losses, unauthorised and authorised unbilled consumption), as percentage of total water produced.
C52: Extent of functional metering of water supply connections | D52: ='WS calcu'!E296 -> 0 | E52: ='WS calcu'!F296 -> 0 | F52: ='WS calcu'!G296 -> 0 | G52: ='WS calcu'!H296 -> 0 | H52: ='WS calcu'!I296 -> 0 | I52: ='WS calcu'!J296 -> 0 | J52: ='WS calcu'!K296 -> 0 | K52: ='WS calcu'!L296 -> 0 | L52: ='WS calcu'!M296 -> 0 | M52: ='WS calcu'!N296 -> 0 | N52: ='WS calcu'!O296 -> 0 | R52: 1 | T52: =IF($R$17="II. CUSTOMIZE BENCHMARKS",$S52,$R52)*$AA$21 -> 0 | U52: =IF($R$17="II. CUSTOMIZE BENCHMARKS",$S52,$R52)*$AA$22 -> 0.5 | V52: =IF($R$17="II. CUSTOMIZE BENCHMARKS",$S52,$R52)*$AA$23 -> 0.9
C53: Number of water supply connections with functional meters as percentage of total water supply connections.
C54: Efficiency in redressal of customer complaints | D54: ='WS calcu'!E264 -> 0 | E54: ='WS calcu'!F264 -> 0 | F54: ='WS calcu'!G264 -> 0 | G54: ='WS calcu'!H264 -> 0 | H54: ='WS calcu'!I264 -> 0 | I54: ='WS calcu'!J264 -> 0 | J54: ='WS calcu'!K264 -> 0 | K54: ='WS calcu'!L264 -> 0 | L54: ='WS calcu'!M264 -> 0 | M54: ='WS calcu'!N264 -> 0 | N54: ='WS calcu'!O264 -> 0 | R54: 0.8 | T54: =IF($R$17="II. CUSTOMIZE BENCHMARKS",$S54,$R54)*$AA$21 -> 0 | U54: =IF($R$17="II. CUSTOMIZE BENCHMARKS",$S54,$R54)*$AA$22 -> 0.4 | V54: =IF($R$17="II. CUSTOMIZE BENCHMARKS",$S54,$R54)*$AA$23 -> 0.72
C55: Number of water supply related complaints redressed within time stipulated in service charter of LG as percentage of total water supply complaints.
C56: Water losses between source and treatment plant | D56: ='WS calcu'!E9 -> 0 | E56: ='WS calcu'!F9 -> 0 | F56: ='WS calcu'!G9 -> 0 | G56: ='WS calcu'!H9 -> 0 | H56: ='WS calcu'!I9 -> 0 | I56: ='WS calcu'!J9 -> 0 | J56: ='WS calcu'!K9 -> 0 | K56: ='WS calcu'!L9 -> 0 | L56: ='WS calcu'!M9 -> 0 | M56: ='WS calcu'!N9 -> 0 | N56: ='WS calcu'!O9 -> 0
C57: Quantum of water lost in transition between source to treatment plant as percentage of total water supplied.
C58: Water losses between treatment plant and distribution stations | D58: ='WS calcu'!E23 -> 0 | E58: ='WS calcu'!F23 -> 0 | F58: ='WS calcu'!G23 -> 0 | G58: ='WS calcu'!H23 -> 0 | H58: ='WS calcu'!I23 -> 0 | I58: ='WS calcu'!J23 -> 0 | J58: ='WS calcu'!K23 -> 0 | K58: ='WS calcu'!L23 -> 0 | L58: ='WS calcu'!M23 -> 0 | M58: ='WS calcu'!N23 -> 0 | N58: ='WS calcu'!O23 -> 0
C59: Quantum of water lost in transition between treatment plant to water distribution stations as percentage of total treated water supplied.
C60: Water losses between distribution stations and consumer end | D60: ='WS calcu'!E25 -> 0 | E60: ='WS calcu'!F25 -> 0 | F60: ='WS calcu'!G25 -> 0 | G60: ='WS calcu'!H25 -> 0 | H60: ='WS calcu'!I25 -> 0 | I60: ='WS calcu'!J25 -> 0 | J60: ='WS calcu'!K25 -> 0 | K60: ='WS calcu'!L25 -> 0 | L60: ='WS calcu'!M25 -> 0 | M60: ='WS calcu'!N25 -> 0 | N60: ='WS calcu'!O25 -> 0
C61: Quantum of water lost in transition between water distribution station to final consumption point (includes service connection leaks and unauthorised consumption), as percentage of total water distributed.
C62: Water supply connections with meters | D62: ='WS calcu'!E297 -> 0 | E62: ='WS calcu'!F297 -> 0 | F62: ='WS calcu'!G297 -> 0 | G62: ='WS calcu'!H297 -> 0 | H62: ='WS calcu'!I297 -> 0 | I62: ='WS calcu'!J297 -> 0 | J62: ='WS calcu'!K297 -> 0 | K62: ='WS calcu'!L297 -> 0 | L62: ='WS calcu'!M297 -> 0 | M62: ='WS calcu'!N297 -> 0 | N62: ='WS calcu'!O297 -> 0
C63: Number of water supply connections with meters (functional and non-functional), as percentage of total water supply connections.
C64: Financial sustainability | R64: SLB Benchmark | S64: Customise value | T64: Red | U64: Orange | V64: Green
C65: Efficiency in collection of water supply charges and taxes | D65: ='WS calcu'!E651 -> 0 | E65: ='WS calcu'!F651 -> 0 | F65: ='WS calcu'!G651 -> 0 | G65: ='WS calcu'!H651 -> 0 | H65: ='WS calcu'!I651 -> 0 | I65: ='WS calcu'!J651 -> 0 | J65: ='WS calcu'!K651 -> 0 | K65: ='WS calcu'!L651 -> 0 | L65: ='WS calcu'!M651 -> 0 | M65: ='WS calcu'!N651 -> 0 | N65: ='WS calcu'!O651 -> 0 | R65: 0.9 | T65: =IF($R$17="II. CUSTOMIZE BENCHMARKS",$S65,$R65)*$AA$21 -> 0 | U65: =IF($R$17="II. CUSTOMIZE BENCHMARKS",$S65,$R65)*$AA$22 -> 0.45 | V65: =IF($R$17="II. CUSTOMIZE BENCHMARKS",$S65,$R65)*$AA$23 -> 0.81
C66: Total water supply revenues collected from current year demand as percentage of total current billed demand from water supply related taxes and charges
C67: Cost recovery in water supply services | D67: ='WS calcu'!E672 -> 0 | E67: ='WS calcu'!F672 -> 0 | F67: ='WS calcu'!G672 -> 0 | G67: ='WS calcu'!H672 -> 0 | H67: ='WS calcu'!I672 -> 0 | I67: ='WS calcu'!J672 -> 0 | J67: ='WS calcu'!K672 -> 0 | K67: ='WS calcu'!L672 -> 0 | L67: ='WS calcu'!M672 -> 0 | M67: ='WS calcu'!N672 -> 0 | N67: ='WS calcu'!O672 -> 0 | R67: 1 | T67: =IF($R$17="II. CUSTOMIZE BENCHMARKS",$S67,$R67)*$AA$21 -> 0 | U67: =IF($R$17="II. CUSTOMIZE BENCHMARKS",$S67,$R67)*$AA$22 -> 0.5 | V67: =IF($R$17="II. CUSTOMIZE BENCHMARKS",$S67,$R67)*$AA$23 -> 0.9
C68: Total annual operating revenues from water supply taxes and charges (current billed demand) as compared to total operating expenses of water supply services.
C69: Unit production cost of water supply (Rs/kl) | D69: ='WS calcu'!E673 -> 0 | E69: ='WS calcu'!F673 -> 0 | F69: ='WS calcu'!G673 -> 0 | G69: ='WS calcu'!H673 -> 0 | H69: ='WS calcu'!I673 -> 0 | I69: ='WS calcu'!J673 -> 0 | J69: ='WS calcu'!K673 -> 0 | K69: ='WS calcu'!L673 -> 0 | L69: ='WS calcu'!M673 -> 0 | M69: ='WS calcu'!N673 -> 0 | N69: ='WS calcu'!O673 -> 0
C70: Total water supply operating expenditure as compared to total water produced by the city
C71: Per capita revenue expenditure | D71: ='WS calcu'!E674 -> 0 | E71: ='WS calcu'!F674 -> 0 | F71: ='WS calcu'!G674 -> 0 | G71: ='WS calcu'!H674 -> 0 | H71: ='WS calcu'!I674 -> 0 | I71: ='WS calcu'!J674 -> 0 | J71: ='WS calcu'!K674 -> 0 | K71: ='WS calcu'!L674 -> 0 | L71: ='WS calcu'!M674 -> 0 | M71: ='WS calcu'!N674 -> 0 | N71: ='WS calcu'!O674 -> 0
C72: Total water supply operating expenditure as compared to total population in the city
C73: Per capita revenue income | D73: ='WS calcu'!E675 -> 0 | E73: ='WS calcu'!F675 -> 0 | F73: ='WS calcu'!G675 -> 0 | G73: ='WS calcu'!H675 -> 0 | H73: ='WS calcu'!I675 -> 0 | I73: ='WS calcu'!J675 -> 0 | J73: ='WS calcu'!K675 -> 0 | K73: ='WS calcu'!L675 -> 0 | L73: ='WS calcu'!M675 -> 0 | M73: ='WS calcu'!N675 -> 0 | N73: ='WS calcu'!O675 -> 0
C74: Total water supply revenue income as compared to total population in the city.
C75: Billed arrears to total billed demand | D75: ='WS calcu'!E666 -> 0 | E75: ='WS calcu'!F666 -> 0 | F75: ='WS calcu'!G666 -> 0 | G75: ='WS calcu'!H666 -> 0 | H75: ='WS calcu'!I666 -> 0 | I75: ='WS calcu'!J666 -> 0 | J75: ='WS calcu'!K666 -> 0 | K75: ='WS calcu'!L666 -> 0 | L75: ='WS calcu'!M666 -> 0 | M75: ='WS calcu'!N666 -> 0 | N75: ='WS calcu'!O666 -> 0
C76: Total water supply billed demand from arrears as percentage of total billed demand (arrear and current) from water supply related taxes and charges.
C77: Collection efficiency of arrear demand | D77: ='WS calcu'!E656 -> 0 | E77: ='WS calcu'!F656 -> 0 | F77: ='WS calcu'!G656 -> 0 | G77: ='WS calcu'!H656 -> 0 | H77: ='WS calcu'!I656 -> 0 | I77: ='WS calcu'!J656 -> 0 | J77: ='WS calcu'!K656 -> 0 | K77: ='WS calcu'!L656 -> 0 | L77: ='WS calcu'!M656 -> 0 | M77: ='WS calcu'!N656 -> 0 | N77: ='WS calcu'!O656 -> 0
C78: Total water supply revenues collected from arrear demand as percentage of total arrear demand of water supply related taxes and charges.
B81: B | C81: Performance of FSM and Wastewater services | R81: Ranges for Wastewater KPIs
C83: Performance levels | D83: =D$220 ->  | E83: =E$220 -> 
C84: Access and coverage | R84: SLB Benchmark | S84: Customise value | T84: Red | U84: Orange | V84: Green
C85: Coverage of households with individual and group toilets in city | D85: ='WW calcu'!E218 -> 0 | E85: ='WW calcu'!F218 -> 0 | F85: ='WW calcu'!G218 -> 0 | G85: ='WW calcu'!H218 -> 0 | H85: ='WW calcu'!I218 -> 0 | I85: ='WW calcu'!J218 -> 0 | J85: ='WW calcu'!K218 -> 0 | K85: ='WW calcu'!L218 -> 0 | L85: ='WW calcu'!M218 -> 0 | M85: ='WW calcu'!N218 -> 0 | N85: ='WW calcu'!O218 -> 0 | R85: 1 | S85: 0.6 | T85: =IF($R$17="II. CUSTOMIZE BENCHMARKS",$S85,$R85)*$AA$21 -> 0 | U85: =IF($R$17="II. CUSTOMIZE BENCHMARKS",$S85,$R85)*$AA$22 -> 0.5 | V85: =IF($R$17="II. CUSTOMIZE BENCHMARKS",$S85,$R85)*$AA$23 -> 0.9
C86: Number of households with access to individual and group toilets as percentage of total households in city.
C87: Coverage of households with individual and group toilets in slums | D87: ='WW calcu'!E219 -> 0 | E87: ='WW calcu'!F219 -> 0 | F87: ='WW calcu'!G219 -> 0 | G87: ='WW calcu'!H219 -> 0 | H87: ='WW calcu'!I219 -> 0 | I87: ='WW calcu'!J219 -> 0 | J87: ='WW calcu'!K219 -> 0 | K87: ='WW calcu'!L219 -> 0 | L87: ='WW calcu'!M219 -> 0 | M87: ='WW calcu'!N219 -> 0 | N87: ='WW calcu'!O219 -> 0 | R87: 1 | T87: =IF($R$17="II. CUSTOMIZE BENCHMARKS",$S87,$R87)*$AA$21 -> 0 | U87: =IF($R$17="II. CUSTOMIZE BENCHMARKS",$S87,$R87)*$AA$22 -> 0.5 | V87: =IF($R$17="II. CUSTOMIZE BENCHMARKS",$S87,$R87)*$AA$23 -> 0.9
C88: Number of households in slum settlements with access to individual and group toilets as percentage of total slum households.
C89: Coverage of households with improved sanitation facility in city | D89: ='WW calcu'!E223 -> 0 | E89: ='WW calcu'!F223 -> 0 | F89: ='WW calcu'!G223 -> 0 | G89: ='WW calcu'!H223 -> 0 | H89: ='WW calcu'!I223 -> 0 | I89: ='WW calcu'!J223 -> 0 | J89: ='WW calcu'!K223 -> 0 | K89: ='WW calcu'!L223 -> 0 | L89: ='WW calcu'!M223 -> 0 | M89: ='WW calcu'!N223 -> 0 | N89: ='WW calcu'!O223 -> 0
C90: Number of households with access to some kind of toilet facility (individual and community toilet), as percentage of total households in city (as defined by Joint Monitoring Program
C91: Households resorting to open defecation in city | D91: ='WW calcu'!E225 -> 1 | E91: ='WW calcu'!F225 -> 1 | F91: ='WW calcu'!G225 -> 1 | G91: ='WW calcu'!H225 -> 1 | H91: ='WW calcu'!I225 -> 1 | I91: ='WW calcu'!J225 -> 1 | J91: ='WW calcu'!K225 -> 1 | K91: ='WW calcu'!L225 -> 1 | L91: ='WW calcu'!M225 -> 1 | M91: ='WW calcu'!N225 -> 1 | N91: ='WW calcu'!O225 -> 1
C92: Number of households in city without any safe sanitation facility and resort to open defecation, as percentage of total households in city.
C93: Households dependent on community toilet facilities | D93: ='WW calcu'!E223-'WW calcu'!E213 -> 0 | E93: ='WW calcu'!F223-'WW calcu'!F213 -> 0 | F93: ='WW calcu'!G223-'WW calcu'!G213 -> 0 | G93: ='WW calcu'!H223-'WW calcu'!H213 -> 0 | H93: ='WW calcu'!I223-'WW calcu'!I213 -> 0 | I93: ='WW calcu'!J223-'WW calcu'!J213 -> 0 | J93: ='WW calcu'!K223-'WW calcu'!K213 -> 0 | K93: ='WW calcu'!L223-'WW calcu'!L213 -> 0 | L93: ='WW calcu'!M223-'WW calcu'!M213 -> 0 | M93: ='WW calcu'!N223-'WW calcu'!N213 -> 0 | N93: ='WW calcu'!O223-'WW calcu'!O213 -> 0
C94: Number of households dependent on functional community toilet facilities near their houses as percentage of total households in city.
C95: Non-functional community and public toilets | D95: ='WW calcu'!D1028 -> 0 | E95: ='WW calcu'!E1028 -> 0 | F95: ='WW calcu'!F1028 -> 0 | G95: ='WW calcu'!G1028 -> 0 | H95: ='WW calcu'!H1028 -> 0 | I95: ='WW calcu'!I1028 -> 0 | J95: ='WW calcu'!J1028 -> 0 | K95: ='WW calcu'!K1028 -> 0 | L95: ='WW calcu'!L1028 -> 0 | M95: ='WW calcu'!M1028 -> 0 | N95: ='WW calcu'!N1028 -> 0
C96: Number of non-functional community and public toilet seats as percentage of total community and public toilet seats.
C97: Service level and quality | R97: SLB Benchmark | S97: Customise value | T97: Red | U97: Orange | V97: Green
C98: Coverage of households with adequate sanitation system | D98: ='WW calcu'!E494 -> 0 | E98: ='WW calcu'!F494 -> 0 | F98: ='WW calcu'!G494 -> 0 | G98: ='WW calcu'!H494 -> 0 | H98: ='WW calcu'!I494 -> 0 | I98: ='WW calcu'!J494 -> 0 | J98: ='WW calcu'!K494 -> 0 | K98: ='WW calcu'!L494 -> 0 | L98: ='WW calcu'!M494 -> 0 | M98: ='WW calcu'!N494 -> 0 | N98: ='WW calcu'!O494 -> 0 | R98: 1 | T98: =IF($R$17="II. CUSTOMIZE BENCHMARKS",$S98,$R98)*$AA$21 -> 0 | U98: =IF($R$17="II. CUSTOMIZE BENCHMARKS",$S98,$R98)*$AA$22 -> 0.5 | V98: =IF($R$17="II. CUSTOMIZE BENCHMARKS",$S98,$R98)*$AA$23 -> 0.9
C99: Number of households with access to safe and adequate sanitation system for wastewater disposal (sewerage or on-site) as percentage of total households in city.
C100: Efficiency of wastewater and septage collection system | D100: ='WW calcu'!E609 -> 0 | E100: ='WW calcu'!F609 -> 0 | F100: ='WW calcu'!G609 -> 0 | G100: ='WW calcu'!H609 -> 0 | H100: ='WW calcu'!I609 -> 0 | I100: ='WW calcu'!J609 -> 0 | J100: ='WW calcu'!K609 -> 0 | K100: ='WW calcu'!L609 -> 0 | L100: ='WW calcu'!M609 -> 0 | M100: ='WW calcu'!N609 -> 0 | N100: ='WW calcu'!O609 -> 0 | R100: 1 | T100: =IF($R$17="II. CUSTOMIZE BENCHMARKS",$S100,$R100)*$AA$21 -> 0 | U100: =IF($R$17="II. CUSTOMIZE BENCHMARKS",$S100,$R100)*$AA$22 -> 0.5 | V100: =IF($R$17="II. CUSTOMIZE BENCHMARKS",$S100,$R100)*$AA$23 -> 0.9
C101: Aggregate quantum of wastewater collected (through sewerage and settled sewer network) at the intake of treatment plant and wastewater discharged through soak pits as percentage of normative wastewater generated in city. This indicator is calculated based on weighted average of households and wastewater collection systems.
C102: Adequacy of wastewater and septage treatment capacity | D102: =MIN('WW calcu'!E776,1) -> 0 | E102: =MIN('WW calcu'!F776,1) -> 0 | F102: =MIN('WW calcu'!G776,1) -> 0 | G102: =MIN('WW calcu'!H776,1) -> 0 | H102: =MIN('WW calcu'!I776,1) -> 0 | I102: =MIN('WW calcu'!J776,1) -> 0 | J102: =MIN('WW calcu'!K776,1) -> 0 | K102: =MIN('WW calcu'!L776,1) -> 0 | L102: =MIN('WW calcu'!M776,1) -> 0 | M102: =MIN('WW calcu'!N776,1) -> 0 | N102: =MINA('WW calcu'!O776,1) -> 0 | R102: 1 | T102: =IF($R$17="II. CUSTOMIZE BENCHMARKS",$S102,$R102)*$AA$21 -> 0 | U102: =IF($R$17="II. CUSTOMIZE BENCHMARKS",$S102,$R102)*$AA$22 -> 0.5 | V102: =IF($R$17="II. CUSTOMIZE BENCHMARKS",$S102,$R102)*$AA$23 -> 0.9
C103: Aggregate quantum of sewage, sludge and sullage to be treated with present treatment facilities as percentage of normative wastewater generated in city. This indicator is calculated based on weighted average of households and wastewater treatment facilities.
C104: Households with full on-site sanitation system | D104: ='WW calcu'!E325 -> 0 | E104: ='WW calcu'!F325 -> 0 | F104: ='WW calcu'!G325 -> 0 | G104: ='WW calcu'!H325 -> 0 | H104: ='WW calcu'!I325 -> 0 | I104: ='WW calcu'!J325 -> 0 | J104: ='WW calcu'!K325 -> 0 | K104: ='WW calcu'!L325 -> 0 | L104: ='WW calcu'!M325 -> 0 | M104: ='WW calcu'!N325 -> 0 | N104: ='WW calcu'!O325 -> 0
C105: Number of households with full on-site sanitation disposal system as septic tanks connected to soak pits for grey water disposal, as percentage of total households in city.
C106: Households with on-site sanitation and settled sewer | D106: ='WW calcu'!E378 -> 0 | E106: ='WW calcu'!F378 -> 0 | F106: ='WW calcu'!G378 -> 0 | G106: ='WW calcu'!H378 -> 0 | H106: ='WW calcu'!I378 -> 0 | I106: ='WW calcu'!J378 -> 0 | J106: ='WW calcu'!K378 -> 0 | K106: ='WW calcu'!L378 -> 0 | L106: ='WW calcu'!M378 -> 0 | M106: ='WW calcu'!N378 -> 0 | N106: ='WW calcu'!O378 -> 0
C107: Number of households with on-site black water disposal system as septic tanks connected to settled sewer/ small bore sewers for grey water disposal, as percentage of total households in city.
C108: Households with sewerage network services | D108: ='WW calcu'!E493 -> 0 | E108: ='WW calcu'!F493 -> 0 | F108: ='WW calcu'!G493 -> 0 | G108: ='WW calcu'!H493 -> 0 | H108: ='WW calcu'!I493 -> 0 | I108: ='WW calcu'!J493 -> 0 | J108: ='WW calcu'!K493 -> 0 | K108: ='WW calcu'!L493 -> 0 | L108: ='WW calcu'!M493 -> 0 | M108: ='WW calcu'!N493 -> 0 | N108: ='WW calcu'!O493 -> 0
C109: Number of households with individual connections to sewerage network, as percentage of total households in city.
C110: Spatial coverage of closed surface drains | D110: ='WW calcu'!E575 -> 0 | E110: ='WW calcu'!F575 -> 0 | F110: ='WW calcu'!G575 -> 0 | G110: ='WW calcu'!H575 -> 0 | H110: ='WW calcu'!I575 -> 0 | I110: ='WW calcu'!J575 -> 0 | J110: ='WW calcu'!K575 -> 0 | K110: ='WW calcu'!L575 -> 0 | L110: ='WW calcu'!M575 -> 0 | M110: ='WW calcu'!N575 -> 0 | N110: ='WW calcu'!O575 -> 0
C111: Municipal area covered by closed surface drains for storm water drainage as percentage of total jurisdictional area of city.
C112: Septic tanks cleaned annually in city | D112: ='WW calcu'!E683 -> 0 | E112: ='WW calcu'!F683 -> 0 | F112: ='WW calcu'!G683 -> 0 | G112: ='WW calcu'!H683 -> 0 | H112: ='WW calcu'!I683 -> 0 | I112: ='WW calcu'!J683 -> 0 | J112: ='WW calcu'!K683 -> 0 | K112: ='WW calcu'!L683 -> 0 | L112: ='WW calcu'!M683 -> 0 | M112: ='WW calcu'!N683 -> 0 | N112: ='WW calcu'!O683 -> 0
C113: Number of septic tanks (includes septic tanks of individual toilets, community and public toilets) cleaned annually as percentage of total septic tanks in city.
C114: Adequacy of sewage treatment capacity | D114: ='WW calcu'!E717 -> 0 | E114: ='WW calcu'!F717 -> 0 | F114: ='WW calcu'!G717 -> 0 | G114: ='WW calcu'!H717 -> 0 | H114: ='WW calcu'!I717 -> 0 | I114: ='WW calcu'!J717 -> 0 | J114: ='WW calcu'!K717 -> 0 | K114: ='WW calcu'!L717 -> 0 | L114: ='WW calcu'!M717 -> 0 | M114: ='WW calcu'!N717 -> 0 | N114: ='WW calcu'!O717 -> 0
C115: Quantum of sewage that can be treated at secondary treatment plants as percentage of normative sewage collected by sewerage network.
C116: Adequacy of treatment plant capacity for effluent and sullage | D116: ='WW calcu'!E748 -> 0 | E116: ='WW calcu'!F748 -> 0 | F116: ='WW calcu'!G748 -> 0 | G116: ='WW calcu'!H748 -> 0 | H116: ='WW calcu'!I748 -> 0 | I116: ='WW calcu'!J748 -> 0 | J116: ='WW calcu'!K748 -> 0 | K116: ='WW calcu'!L748 -> 0 | L116: ='WW calcu'!M748 -> 0 | M116: ='WW calcu'!N748 -> 0 | N116: ='WW calcu'!O748 -> 0
C117: Quantum of sullage and effluent that can be treated at primary treatment plants as percentage of normative sullage and effluent collected by settled sewer or drains (unsafe way).
C118: Adequacy of septage treatment capacity | D118: ='WW calcu'!E775 -> 0 | E118: ='WW calcu'!F775 -> 0 | F118: ='WW calcu'!G775 -> 0 | G118: ='WW calcu'!H775 -> 0 | H118: ='WW calcu'!I775 -> 0 | I118: ='WW calcu'!J775 -> 0 | J118: ='WW calcu'!K775 -> 0 | K118: ='WW calcu'!L775 -> 0 | L118: ='WW calcu'!M775 -> 0 | M118: ='WW calcu'!N775 -> 0 | N118: ='WW calcu'!O775 -> 0
C119: Quantum of septage that can be treated at faecal sludge treatment plant as percentage of normative septage generated in city.
C120: Efficiency in service operation | R120: SLB Benchmark | S120: Customise value | T120: Red | U120: Orange | V120: Green
C121: Extent of reuse/recycling of treated wastewater and septage | D121: ='WW calcu'!E824 -> 0 | E121: ='WW calcu'!F824 -> 0 | F121: ='WW calcu'!G824 -> 0 | G121: ='WW calcu'!H824 -> 0 | H121: ='WW calcu'!I824 -> 0 | I121: ='WW calcu'!J824 -> 0 | J121: ='WW calcu'!K824 -> 0 | K121: ='WW calcu'!L824 -> 0 | L121: ='WW calcu'!M824 -> 0 | M121: ='WW calcu'!N824 -> 0 | N121: ='WW calcu'!O824 -> 0 | R121: 0.2 | T121: =IF($R$17="II. CUSTOMIZE BENCHMARKS",$S121,$R121)*$AA$21 -> 0 | U121: =IF($R$17="II. CUSTOMIZE BENCHMARKS",$S121,$R121)*$AA$22 -> 0.1 | V121: =IF($R$17="II. CUSTOMIZE BENCHMARKS",$S121,$R121)*$AA$23 -> 0.18
C122: Quantum of wastewater and septage that is recycled or reused after treatment as percentage of normative wastewater and septage generated in city. This indicator is calculated based on weighted average of households and treated wastewater and septage.
C123: Quality of wastewater and septage treatment | D123: ='WW calcu'!E839 -> 0 | E123: ='WW calcu'!F839 -> 0 | F123: ='WW calcu'!G839 -> 0 | G123: ='WW calcu'!H839 -> 0 | H123: ='WW calcu'!I839 -> 0 | I123: ='WW calcu'!J839 -> 0 | J123: ='WW calcu'!K839 -> 0 | K123: ='WW calcu'!L839 -> 0 | L123: ='WW calcu'!M839 -> 0 | M123: ='WW calcu'!N839 -> 0 | N123: ='WW calcu'!O839 -> 0 | R123: 1 | T123: =IF($R$17="II. CUSTOMIZE BENCHMARKS",$S123,$R123)*$AA$21 -> 0 | U123: =IF($R$17="II. CUSTOMIZE BENCHMARKS",$S123,$R123)*$AA$22 -> 0.5 | V123: =IF($R$17="II. CUSTOMIZE BENCHMARKS",$S123,$R123)*$AA$23 -> 0.9
C124: Percentage of wastewater and septage samples meeting Pollution Control Board standards at treatment plant outlets. This indicator is calculated based on weighted average of households and wastewater and septage samples.
C125: Efficiency in redressal of customer complaints | D125: ='WW calcu'!E841 -> 0 | E125: ='WW calcu'!F841 -> 0 | F125: ='WW calcu'!G841 -> 0 | G125: ='WW calcu'!H841 -> 0 | H125: ='WW calcu'!I841 -> 0 | I125: ='WW calcu'!J841 -> 0 | J125: ='WW calcu'!K841 -> 0 | K125: ='WW calcu'!L841 -> 0 | L125: ='WW calcu'!M841 -> 0 | M125: ='WW calcu'!N841 -> 0 | N125: ='WW calcu'!O841 -> 0 | R125: 0.8 | T125: =IF($R$17="II. CUSTOMIZE BENCHMARKS",$S125,$R125)*$AA$21 -> 0 | U125: =IF($R$17="II. CUSTOMIZE BENCHMARKS",$S125,$R125)*$AA$22 -> 0.4 | V125: =IF($R$17="II. CUSTOMIZE BENCHMARKS",$S125,$R125)*$AA$23 -> 0.72
C126: Number of wastewater related complaints redressed within time stipulated in service charter of LG as percentage of total wastewater complaints.
C127: Extent of sewage reuse/recycle | D127: ='WW calcu'!E821 -> 0 | E127: ='WW calcu'!F821 -> 0 | F127: ='WW calcu'!G821 -> 0 | G127: ='WW calcu'!H821 -> 0 | H127: ='WW calcu'!I821 -> 0 | I127: ='WW calcu'!J821 -> 0 | J127: ='WW calcu'!K821 -> 0 | K127: ='WW calcu'!L821 -> 0 | L127: ='WW calcu'!M821 -> 0 | M127: ='WW calcu'!N821 -> 0 | N127: ='WW calcu'!O821 -> 0
C128: Quantum of sewage that is reused after treatment as percentage of normative sewage generated in city.
C129: Extent of wastewater or sullage reuse/recycle | D129: ='WW calcu'!E822 -> 0 | E129: ='WW calcu'!F822 -> 0 | F129: ='WW calcu'!G822 -> 0 | G129: ='WW calcu'!H822 -> 0 | H129: ='WW calcu'!I822 -> 0 | I129: ='WW calcu'!J822 -> 0 | J129: ='WW calcu'!K822 -> 0 | K129: ='WW calcu'!L822 -> 0 | L129: ='WW calcu'!M822 -> 0 | M129: ='WW calcu'!N822 -> 0 | N129: ='WW calcu'!O822 -> 0
C130: Quantum of wastewater and sullage that is reused after treatment as percentage of normative wastewater and sullage generated in city.
C131: Extent of septage reuse/recycle | D131: ='WW calcu'!E823 -> 0 | E131: ='WW calcu'!F823 -> 0 | F131: ='WW calcu'!G823 -> 0 | G131: ='WW calcu'!H823 -> 0 | H131: ='WW calcu'!I823 -> 0 | I131: ='WW calcu'!J823 -> 0 | J131: ='WW calcu'!K823 -> 0 | K131: ='WW calcu'!L823 -> 0 | L131: ='WW calcu'!M823 -> 0 | M131: ='WW calcu'!N823 -> 0 | N131: ='WW calcu'!O823 -> 0
C132: Quantum of septage that is reused after treatment as percentage of normative septage generated in city.
C133: Financial sustainability | R133: SLB Benchmark | S133: Customise value | T133: Red | U133: Orange | V133: Green
C134: Efficiency in collection of wastewater charges and taxes | D134: =D237 -> 0 | E134: =E237 ->  | R134: 0.9 | T134: =IF($R$17="II. CUSTOMIZE BENCHMARKS",$S134,$R134)*$AA$21 -> 0 | U134: =IF($R$17="II. CUSTOMIZE BENCHMARKS",$S134,$R134)*$AA$22 -> 0.45 | V134: =IF($R$17="II. CUSTOMIZE BENCHMARKS",$S134,$R134)*$AA$23 -> 0.81
C135: Total wastewater revenues collected from current year demand as percentage of total current billed demand from wastewater related taxes and charges.
C136: Extent of cost recovery in wastewater services | D136: ='WW calcu'!E924 -> 0 | E136: ='WW calcu'!F924 -> 0 | F136: ='WW calcu'!G924 -> 0 | G136: ='WW calcu'!H924 -> 0 | H136: ='WW calcu'!I924 -> 0 | I136: ='WW calcu'!J924 -> 0 | J136: ='WW calcu'!K924 -> 0 | K136: ='WW calcu'!L924 -> 0 | L136: ='WW calcu'!M924 -> 0 | M136: ='WW calcu'!N924 -> 0 | N136: ='WW calcu'!O924 -> 0 | R136: 1 | T136: =IF($R$17="II. CUSTOMIZE BENCHMARKS",$S136,$R136)*$AA$21 -> 0 | U136: =IF($R$17="II. CUSTOMIZE BENCHMARKS",$S136,$R136)*$AA$22 -> 0.5 | V136: =IF($R$17="II. CUSTOMIZE BENCHMARKS",$S136,$R136)*$AA$23 -> 0.9
C137: Total annual operating revenues from wastewater taxes and charges (current billed demand) as compared to total operating expenses of wastewater services.
C138: Unit cost of collection/disposal of wastewater | D138: ='WW calcu'!E925 -> 0 | E138: ='WW calcu'!F925 -> 0 | F138: ='WW calcu'!G925 -> 0 | G138: ='WW calcu'!H925 -> 0 | H138: ='WW calcu'!I925 -> 0 | I138: ='WW calcu'!J925 -> 0 | J138: ='WW calcu'!K925 -> 0 | K138: ='WW calcu'!L925 -> 0 | L138: ='WW calcu'!M925 -> 0 | M138: ='WW calcu'!N925 -> 0 | N138: ='WW calcu'!O925 -> 0
C139: Total wastewater operating expenditure as compared to total wastewater generated in the city.
C140: Per capita revenue expenditure | D140: ='WW calcu'!E926 -> 0 | E140: ='WW calcu'!F926 -> 0 | F140: ='WW calcu'!G926 -> 0 | G140: ='WW calcu'!H926 -> 0 | H140: ='WW calcu'!I926 -> 0 | I140: ='WW calcu'!J926 -> 0 | J140: ='WW calcu'!K926 -> 0 | K140: ='WW calcu'!L926 -> 0 | L140: ='WW calcu'!M926 -> 0 | M140: ='WW calcu'!N926 -> 0 | N140: ='WW calcu'!O926 -> 0
C141: Total wastewater operating expenditure as compared to total population in the city.
C142: Per capita revenue income | D142: ='WW calcu'!E927 -> 0 | E142: ='WW calcu'!F927 -> 0 | F142: ='WW calcu'!G927 -> 0 | G142: ='WW calcu'!H927 -> 0 | H142: ='WW calcu'!I927 -> 0 | I142: ='WW calcu'!J927 -> 0 | J142: ='WW calcu'!K927 -> 0 | K142: ='WW calcu'!L927 -> 0 | L142: ='WW calcu'!M927 -> 0 | M142: ='WW calcu'!N927 -> 0 | N142: ='WW calcu'!O927 -> 0
C143: Total wastewater revenue income as compared to total population in the city.
C144: Billed arrears to total billed demand | D144: ='WW calcu'!E913 -> 0 | E144: ='WW calcu'!F913 -> 0 | F144: ='WW calcu'!G913 -> 0 | G144: ='WW calcu'!H913 -> 0 | H144: ='WW calcu'!I913 -> 0 | I144: ='WW calcu'!J913 -> 0 | J144: ='WW calcu'!K913 -> 0 | K144: ='WW calcu'!L913 -> 0 | L144: ='WW calcu'!M913 -> 0 | M144: ='WW calcu'!N913 -> 0 | N144: ='WW calcu'!O913 -> 0
C145: Total wastewater billed demand from arrears as percentage of total billed demand (arrear and current) from wastewater related taxes and charges.
C146: Collection efficiency of arrear demand | D146: ='WW calcu'!E903 -> 0 | E146: ='WW calcu'!F903 -> 0 | F146: ='WW calcu'!G903 -> 0 | G146: ='WW calcu'!H903 -> 0 | H146: ='WW calcu'!I903 -> 0 | I146: ='WW calcu'!J903 -> 0 | J146: ='WW calcu'!K903 -> 0 | K146: ='WW calcu'!L903 -> 0 | L146: ='WW calcu'!M903 -> 0 | M146: ='WW calcu'!N903 -> 0 | N146: ='WW calcu'!O903 -> 0
C147: Total wastewater revenues collected from arrear demand as percentage of total arrear demand of wastewater related taxes and charges.
B150: C | C150: Performance of Solid waste management | R150: Ranges for Solid Waste KPIs
C152: Performance levels | D152: =D$220 ->  | E152: =E$220 -> 
C153: Access and coverage | R153: SLB Benchmark | S153: Customise value | T153: Red | U153: Orange | V153: Green
C154: Coverage of household level solid waste services in city | D154: ='MSW calcu'!F65 -> 0 | E154: ='MSW calcu'!G65 -> 0 | F154: ='MSW calcu'!H65 -> 0 | G154: ='MSW calcu'!I65 -> 0 | H154: ='MSW calcu'!J65 -> 0 | I154: ='MSW calcu'!K65 -> 0 | J154: ='MSW calcu'!L65 -> 0 | K154: ='MSW calcu'!M65 -> 0 | L154: ='MSW calcu'!N65 -> 0 | M154: ='MSW calcu'!O65 -> 0 | N154: ='MSW calcu'!P65 -> 0 | R154: 1 | T154: =IF($R$17="II. CUSTOMIZE BENCHMARKS",$S154,$R154)*$AA$21 -> 0 | U154: =IF($R$17="II. CUSTOMIZE BENCHMARKS",$S154,$R154)*$AA$22 -> 0.5 | V154: =IF($R$17="II. CUSTOMIZE BENCHMARKS",$S154,$R154)*$AA$23 -> 0.9
C155: Number of households served by door to door collection of solid waste as percentage of total households in city.
C156: Coverage of household level solid waste services in slums | D156: ='MSW calcu'!F66 -> 0 | E156: ='MSW calcu'!G66 -> 0 | F156: ='MSW calcu'!H66 -> 0 | G156: ='MSW calcu'!I66 -> 0 | H156: ='MSW calcu'!J66 -> 0 | I156: ='MSW calcu'!K66 -> 0 | J156: ='MSW calcu'!L66 -> 0 | K156: ='MSW calcu'!M66 -> 0 | L156: ='MSW calcu'!N66 -> 0 | M156: ='MSW calcu'!O66 -> 0 | N156: ='MSW calcu'!P66 -> 0 | R156: 1 | T156: =IF($R$17="II. CUSTOMIZE BENCHMARKS",$S156,$R156)*$AA$21 -> 0 | U156: =IF($R$17="II. CUSTOMIZE BENCHMARKS",$S156,$R156)*$AA$22 -> 0.5 | V156: =IF($R$17="II. CUSTOMIZE BENCHMARKS",$S156,$R156)*$AA$23 -> 0.9
C157: Number of households in slum settlements served by door to door collection of solid waste as percentage of total slum households in city.
C158: Households served by secondary bin collection system in city | D158: ='MSW calcu'!F67 -> 0 | E158: ='MSW calcu'!G67 -> 0 | F158: ='MSW calcu'!H67 -> 0 | G158: ='MSW calcu'!I67 -> 0 | H158: ='MSW calcu'!J67 -> 0 | I158: ='MSW calcu'!K67 -> 0 | J158: ='MSW calcu'!L67 -> 0 | K158: ='MSW calcu'!M67 -> 0 | L158: ='MSW calcu'!N67 -> 0 | M158: ='MSW calcu'!O67 -> 0 | N158: ='MSW calcu'!P67 -> 0
C159: Number of households served by secondary storage bin collection system (at gate, road or bin level collection) of solid waste as percentage of total households in city.
C160: Service level and quality | R160: SLB Benchmark | S160: Customise value | T160: Red | U160: Orange | V160: Green
C161: Efficiency of solid waste collection | D161: ='MSW calcu'!F148 -> 0 | E161: ='MSW calcu'!G148 -> 0 | F161: ='MSW calcu'!H148 -> 0 | G161: ='MSW calcu'!I148 -> 0 | H161: ='MSW calcu'!J148 -> 0 | I161: ='MSW calcu'!K148 -> 0 | J161: ='MSW calcu'!L148 -> 0 | K161: ='MSW calcu'!M148 -> 0 | L161: ='MSW calcu'!N148 -> 0 | M161: ='MSW calcu'!O148 -> 0 | N161: ='MSW calcu'!P148 -> 0 | R161: 1 | T161: =IF($R$17="II. CUSTOMIZE BENCHMARKS",$S161,$R161)*$AA$21 -> 0 | U161: =IF($R$17="II. CUSTOMIZE BENCHMARKS",$S161,$R161)*$AA$22 -> 0.5 | V161: =IF($R$17="II. CUSTOMIZE BENCHMARKS",$S161,$R161)*$AA$23 -> 0.9
C162: Quantum of solid waste collected from households, establishments and common collection points as percentage of total solid waste generated in city.
C163: Extent of segregation of solid waste | D163: ='MSW calcu'!F149 -> 0 | E163: ='MSW calcu'!G149 -> 0 | F163: ='MSW calcu'!H149 -> 0 | G163: ='MSW calcu'!I149 -> 0 | H163: ='MSW calcu'!J149 -> 0 | I163: ='MSW calcu'!K149 -> 0 | J163: ='MSW calcu'!L149 -> 0 | K163: ='MSW calcu'!M149 -> 0 | L163: ='MSW calcu'!N149 -> 0 | M163: ='MSW calcu'!O149 -> 0 | N163: ='MSW calcu'!P149 -> 0 | R163: 1 | T163: =IF($R$17="II. CUSTOMIZE BENCHMARKS",$S163,$R163)*$AA$21 -> 0 | U163: =IF($R$17="II. CUSTOMIZE BENCHMARKS",$S163,$R163)*$AA$22 -> 0.5 | V163: =IF($R$17="II. CUSTOMIZE BENCHMARKS",$S163,$R163)*$AA$23 -> 0.9
C164: Quantum of solid waste received in segregated manner at processing or disposal facility as percentage of total waste collected.
C165: Extent of solid waste recovered | D165: ='MSW calcu'!F170 -> 0 | E165: ='MSW calcu'!G170 -> 0 | F165: ='MSW calcu'!H170 -> 0 | G165: ='MSW calcu'!I170 -> 0 | H165: ='MSW calcu'!J170 -> 0 | I165: ='MSW calcu'!K170 -> 0 | J165: ='MSW calcu'!L170 -> 0 | K165: ='MSW calcu'!M170 -> 0 | L165: ='MSW calcu'!N170 -> 0 | M165: ='MSW calcu'!O170 -> 0 | N165: ='MSW calcu'!P170 -> 0 | R165: 0.8 | T165: =IF($R$17="II. CUSTOMIZE BENCHMARKS",$S165,$R165)*$AA$21 -> 0 | U165: =IF($R$17="II. CUSTOMIZE BENCHMARKS",$S165,$R165)*$AA$22 -> 0.4 | V165: =IF($R$17="II. CUSTOMIZE BENCHMARKS",$S165,$R165)*$AA$23 -> 0.72
C166: Quantum of collected solid waste either recycled or processed as percentage of total solid waste collected.
C167: Adequacy of solid waste storage capacity | D167: ='MSW calcu'!F94 -> 0 | E167: ='MSW calcu'!G94 -> 0 | F167: ='MSW calcu'!H94 -> 0 | G167: ='MSW calcu'!I94 -> 0 | H167: ='MSW calcu'!J94 -> 0 | I167: ='MSW calcu'!K94 -> 0 | J167: ='MSW calcu'!L94 -> 0 | K167: ='MSW calcu'!M94 -> 0 | L167: ='MSW calcu'!N94 -> 0 | M167: ='MSW calcu'!O94 -> 0 | N167: ='MSW calcu'!P94 -> 0
C168: Aggregate capacity of solid waste storage bins and containers as percentage of total solid waste collected.
C169: Adequacy of solid waste transportation capacity | D169: ='MSW calcu'!F114 -> 0 | E169: ='MSW calcu'!G114 -> 0 | F169: ='MSW calcu'!H114 -> 0 | G169: ='MSW calcu'!I114 -> 0 | H169: ='MSW calcu'!J114 -> 0 | I169: ='MSW calcu'!K114 -> 0 | J169: ='MSW calcu'!L114 -> 0 | K169: ='MSW calcu'!M114 -> 0 | L169: ='MSW calcu'!N114 -> 0 | M169: ='MSW calcu'!O114 -> 0 | N169: ='MSW calcu'!P114 -> 0
C170: Aggregate capacity of solid waste transportation vehicles as percentage of total solid waste collected.
C171: Adequacy of solid waste processing facilities | D171: ='MSW calcu'!F122 -> 0 | E171: ='MSW calcu'!G122 -> 0 | F171: ='MSW calcu'!H122 -> 0 | G171: ='MSW calcu'!I122 -> 0 | H171: ='MSW calcu'!J122 -> 0 | I171: ='MSW calcu'!K122 -> 0 | J171: ='MSW calcu'!L122 -> 0 | K171: ='MSW calcu'!M122 -> 0 | L171: ='MSW calcu'!N122 -> 0 | M171: ='MSW calcu'!O122 -> 0 | N171: ='MSW calcu'!P122 -> 0
C172: Aggregate capacity of solid waste processing and recycling facility as percentage of total solid waste transported to processing facility.
C173: Efficiency in service operation | R173: SLB Benchmark | S173: Customise value | T173: Red | U173: Orange | V173: Green
C174: Extent of scientific disposal of solid waste | D174: ='MSW calcu'!F150 -> 0 | E174: ='MSW calcu'!G150 -> 0 | F174: ='MSW calcu'!H150 -> 0 | G174: ='MSW calcu'!I150 -> 0 | H174: ='MSW calcu'!J150 -> 0 | I174: ='MSW calcu'!K150 -> 0 | J174: ='MSW calcu'!L150 -> 0 | K174: ='MSW calcu'!M150 -> 0 | L174: ='MSW calcu'!N150 -> 0 | M174: ='MSW calcu'!O150 -> 0 | N174: ='MSW calcu'!P150 -> 0 | R174: 1 | T174: =IF($R$17="II. CUSTOMIZE BENCHMARKS",$S174,$R174)*$AA$21 -> 0 | U174: =IF($R$17="II. CUSTOMIZE BENCHMARKS",$S174,$R174)*$AA$22 -> 0.5 | V174: =IF($R$17="II. CUSTOMIZE BENCHMARKS",$S174,$R174)*$AA$23 -> 0.9
C175: Quantum of solid waste disposed at scientific/complaint landfill site as percentage of total solid waste disposed in complaint and open disposal sites.
C176: Efficiency in redressal of customer complaints | D176: ='MSW calcu'!F70 -> 0 | E176: ='MSW calcu'!G70 -> 0 | F176: ='MSW calcu'!H70 -> 0 | G176: ='MSW calcu'!I70 -> 0 | H176: ='MSW calcu'!J70 -> 0 | I176: ='MSW calcu'!K70 -> 0 | J176: ='MSW calcu'!L70 -> 0 | K176: ='MSW calcu'!M70 -> 0 | L176: ='MSW calcu'!N70 -> 0 | M176: ='MSW calcu'!O70 -> 0 | N176: ='MSW calcu'!P70 -> 0 | R176: 0.8 | T176: =IF($R$17="II. CUSTOMIZE BENCHMARKS",$S176,$R176)*$AA$21 -> 0 | U176: =IF($R$17="II. CUSTOMIZE BENCHMARKS",$S176,$R176)*$AA$22 -> 0.4 | V176: =IF($R$17="II. CUSTOMIZE BENCHMARKS",$S176,$R176)*$AA$23 -> 0.72
C177: Number of solid waste related complaints redressed within time stipulated in service charter of LG as percentage of total solid waste complaints.
C178: Extent of solid waste disposal in open dump sites | D178: ='MSW calcu'!F142 -> 0 | E178: ='MSW calcu'!G142 -> 0 | F178: ='MSW calcu'!H142 -> 0 | G178: ='MSW calcu'!I142 -> 0 | H178: ='MSW calcu'!J142 -> 0 | I178: ='MSW calcu'!K142 -> 0 | J178: ='MSW calcu'!L142 -> 0 | K178: ='MSW calcu'!M142 -> 0 | L178: ='MSW calcu'!N142 -> 0 | M178: ='MSW calcu'!O142 -> 0 | N178: ='MSW calcu'!P142 -> 0
C179: Quantum of solid waste not recycled or disposed at scientific landfill site and dumped at open sites in unsafe manner as percentage of total solid waste transported to processing/ disposal site.
C180: Financial sustainability | R180: SLB Benchmark | S180: Customise value | T180: Red | U180: Orange | V180: Green
C181: Efficiency in collection of solid waste charges and taxes | D181: =D261 -> 0 | E181: =E261 -> 0 | F181: =F261 -> 0 | G181: 0 | H181: 0 | I181: 0 | J181: 0 | K181: 0 | L181: 0 | M181: 0 | N181: 0 | R181: 0.9 | T181: =IF($R$17="II. CUSTOMIZE BENCHMARKS",$S181,$R181)*$AA$21 -> 0 | U181: =IF($R$17="II. CUSTOMIZE BENCHMARKS",$S181,$R181)*$AA$22 -> 0.45 | V181: =IF($R$17="II. CUSTOMIZE BENCHMARKS",$S181,$R181)*$AA$23 -> 0.81
C182: Total solid waste revenues collected from current year demand as percentage of total current billed demand from solid waste related taxes and charges.
C183: Extent of cost recovery in solid waste services | D183: ='MSW calcu'!F228 -> 0 | E183: ='MSW calcu'!G228 -> 0 | F183: ='MSW calcu'!H228 -> 0 | G183: ='MSW calcu'!I228 -> 0 | H183: ='MSW calcu'!J228 -> 0 | I183: ='MSW calcu'!K228 -> 0 | J183: ='MSW calcu'!L228 -> 0 | K183: ='MSW calcu'!M228 -> 0 | L183: ='MSW calcu'!N228 -> 0 | M183: ='MSW calcu'!O228 -> 0 | N183: ='MSW calcu'!P228 -> 0 | R183: 1 | T183: =IF($R$17="II. CUSTOMIZE BENCHMARKS",$S183,$R183)*$AA$21 -> 0 | U183: =IF($R$17="II. CUSTOMIZE BENCHMARKS",$S183,$R183)*$AA$22 -> 0.5 | V183: =IF($R$17="II. CUSTOMIZE BENCHMARKS",$S183,$R183)*$AA$23 -> 0.9
C184: Total annual operating revenues from solid waste taxes and charges (current billed demand) as compared to total operating expenses of solid waste services.
C185: Unit cost of solid waste services (Rs./kg) | D185: ='MSW calcu'!F229 -> 0 | E185: ='MSW calcu'!G229 -> 0 | F185: ='MSW calcu'!H229 -> 0 | G185: ='MSW calcu'!I229 -> 0 | H185: ='MSW calcu'!J229 -> 0 | I185: ='MSW calcu'!K229 -> 0 | J185: ='MSW calcu'!L229 -> 0 | K185: ='MSW calcu'!M229 -> 0 | L185: ='MSW calcu'!N229 -> 0 | M185: ='MSW calcu'!O229 -> 0 | N185: ='MSW calcu'!P229 -> 0
C186: Total solid waste operating expenditure as compared to total solid waste generated in the city
C187: Per capita revenue expenditure | D187: ='MSW calcu'!F230 -> 0 | E187: ='MSW calcu'!G230 -> 0 | F187: ='MSW calcu'!H230 -> 0 | G187: ='MSW calcu'!I230 -> 0 | H187: ='MSW calcu'!J230 -> 0 | I187: ='MSW calcu'!K230 -> 0 | J187: ='MSW calcu'!L230 -> 0 | K187: ='MSW calcu'!M230 -> 0 | L187: ='MSW calcu'!N230 -> 0 | M187: ='MSW calcu'!O230 -> 0 | N187: ='MSW calcu'!P230 -> 0
C188: Total solid waste operating expenditure as compared to total population in the city.
C189: Per capita revenue income | D189: ='MSW calcu'!F231 -> 0 | E189: ='MSW calcu'!G231 -> 0 | F189: ='MSW calcu'!H231 -> 0 | G189: ='MSW calcu'!I231 -> 0 | H189: ='MSW calcu'!J231 -> 0 | I189: ='MSW calcu'!K231 -> 0 | J189: ='MSW calcu'!L231 -> 0 | K189: ='MSW calcu'!M231 -> 0 | L189: ='MSW calcu'!N231 -> 0 | M189: ='MSW calcu'!O231 -> 0 | N189: ='MSW calcu'!P231 -> 0
C190: Total solid waste revenue income as compared to total population in the city.
C191: Billed arrears to total billed demand | D191: ='MSW calcu'!F223 -> 0 | E191: ='MSW calcu'!G223 -> 0 | F191: ='MSW calcu'!H223 -> 0 | G191: ='MSW calcu'!I223 -> 0 | H191: ='MSW calcu'!J223 -> 0 | I191: ='MSW calcu'!K223 -> 0 | J191: ='MSW calcu'!L223 -> 0 | K191: ='MSW calcu'!M223 -> 0 | L191: ='MSW calcu'!N223 -> 0 | M191: ='MSW calcu'!O223 -> 0 | N191: ='MSW calcu'!P223 -> 0
C192: Total solid waste billed demand from arrears as percentage of total billed demand (arrear and current) from solid waste related taxes and charges.
C193: Collection efficiency of arrear demand | D193: ='MSW calcu'!F213 -> 0 | E193: ='MSW calcu'!G213 -> 0 | F193: ='MSW calcu'!H213 -> 0 | G193: ='MSW calcu'!I213 -> 0 | H193: ='MSW calcu'!J213 -> 0 | I193: ='MSW calcu'!K213 -> 0 | J193: ='MSW calcu'!L213 -> 0 | K193: ='MSW calcu'!M213 -> 0 | L193: ='MSW calcu'!N213 -> 0 | M193: ='MSW calcu'!O213 -> 0 | N193: ='MSW calcu'!P213 -> 0
C194: Total solid waste revenues collected from arrear demand as percentage of total arrear demand of solid waste related taxes and charges.
B198: II | C198: Standardised Service Level Benchmark (SLB) report | R198: Ranges for SLB KPIs
C200: Water supply services | D200: =IF('General info'!$E$20=0,"",'General info'!$E$20) ->  | E200: =IFERROR(D200+1,"") ->  | F200: =IFERROR(E200+1,"") ->  | G200: =IFERROR(F200+1,"") ->  | H200: =IFERROR(G200+1,"") ->  | R200: SLB Benchmark | S200: Customise value | T200: Red | U200: Orange | V200: Green
C201: Coverage of water supply connections | D201: ='WS calcu'!E170 -> 0 | E201: ='WS calcu'!F170 -> 0 | F201: ='WS calcu'!G170 -> 0 | G201: ='WS calcu'!H170 -> 0 | H201: ='WS calcu'!I170 -> 0 | I201: ='WS calcu'!J170 -> 0 | J201: ='WS calcu'!K170 -> 0 | K201: ='WS calcu'!L170 -> 0 | L201: ='WS calcu'!M170 -> 0 | M201: ='WS calcu'!N170 -> 0 | N201: ='WS calcu'!O170 -> 0 | R201: 1 | T201: =IF($R$17="II. CUSTOMIZE BENCHMARKS",$S201,$R201)*$AA$21 -> 0 | U201: =IF($R$17="II. CUSTOMIZE BENCHMARKS",$S201,$R201)*$AA$22 -> 0.5 | V201: =IF($R$17="II. CUSTOMIZE BENCHMARKS",$S201,$R201)*$AA$23 -> 0.9
C202: Total households with direct water supply network connection as percentage of total households in city.
C203: Per capita available of water at consumer end (lpcd) | D203: ='WS calcu'!E254 -> 0 | E203: ='WS calcu'!F254 -> 0 | F203: ='WS calcu'!G254 -> 0 | G203: ='WS calcu'!H254 -> 0 | H203: ='WS calcu'!I254 -> 0 | I203: ='WS calcu'!J254 -> 0 | J203: ='WS calcu'!K254 -> 0 | K203: ='WS calcu'!L254 -> 0 | L203: ='WS calcu'!M254 -> 0 | M203: ='WS calcu'!N254 -> 0 | N203: ='WS calcu'!O254 -> 0 | R203: =Population!M158 -> 0 | T203: =IF($R$17="II. CUSTOMIZE BENCHMARKS",$S203,$R203)*$AA$21 -> 0 | U203: =IF($R$17="II. CUSTOMIZE BENCHMARKS",$S203,$R203)*$AA$22 -> 0 | V203: =IF($R$17="II. CUSTOMIZE BENCHMARKS",$S203,$R203)*$AA$23 -> 0
C204: Total water supplied to consumers expressed by population served per day.
C205: Extent of metering of water connections | D205: ='WS calcu'!E296 -> 0 | E205: ='WS calcu'!F296 -> 0 | F205: ='WS calcu'!G296 -> 0 | G205: ='WS calcu'!H296 -> 0 | H205: ='WS calcu'!I296 -> 0 | I205: ='WS calcu'!J296 -> 0 | J205: ='WS calcu'!K296 -> 0 | K205: ='WS calcu'!L296 -> 0 | L205: ='WS calcu'!M296 -> 0 | M205: ='WS calcu'!N296 -> 0 | N205: ='WS calcu'!O296 -> 0 | R205: 1 | T205: =IF($R$17="II. CUSTOMIZE BENCHMARKS",$S205,$R205)*$AA$21 -> 0 | U205: =IF($R$17="II. CUSTOMIZE BENCHMARKS",$S205,$R205)*$AA$22 -> 0.5 | V205: =IF($R$17="II. CUSTOMIZE BENCHMARKS",$S205,$R205)*$AA$23 -> 0.9
C206: Number of functional metered water connections as percentage of total water supply connections.
C207: Extent of Non-Revenue Water | D207: ='WS calcu'!E31 -> 0 | E207: ='WS calcu'!F31 -> 0 | F207: ='WS calcu'!G31 -> 0 | G207: ='WS calcu'!H31 -> 0 | H207: ='WS calcu'!I31 -> 0 | I207: ='WS calcu'!J31 -> 0 | J207: ='WS calcu'!K31 -> 0 | K207: ='WS calcu'!L31 -> 0 | L207: ='WS calcu'!M31 -> 0 | M207: ='WS calcu'!N31 -> 0 | N207: ='WS calcu'!O31 -> 0 | R207: 0.15 | T207: =IF($R$17="II. CUSTOMIZE BENCHMARKS",$S207,$R207)*$AA$23 -> 0.135 | U207: =IF($R$17="II. CUSTOMIZE BENCHMARKS",$S207,$R207)*$AA$22 -> 0.075 | V207: =IF($R$17="II. CUSTOMIZE BENCHMARKS",$S207,$R207)*$AA$21 -> 0
C208: Difference between total water produced (ex-treatment plant) and total water sold expressed as percentage of total water produced.
C209: Continuity of water supply (hours/day) | D209: ='WS calcu'!E267 -> 0 | E209: ='WS calcu'!F267 -> 0 | F209: ='WS calcu'!G267 -> 0 | G209: ='WS calcu'!H267 -> 0 | H209: ='WS calcu'!I267 -> 0 | I209: ='WS calcu'!J267 -> 0 | J209: ='WS calcu'!K267 -> 0 | K209: ='WS calcu'!L267 -> 0 | L209: ='WS calcu'!M267 -> 0 | M209: ='WS calcu'!N267 -> 0 | N209: ='WS calcu'!O267 -> 0 | R209: 24 | T209: =IF($R$17="II. CUSTOMIZE BENCHMARKS",$S209,$R209)*$AA$21 -> 0 | U209: =IF($R$17="II. CUSTOMIZE BENCHMARKS",$S209,$R209)*$AA$22 -> 12 | V209: =IF($R$17="II. CUSTOMIZE BENCHMARKS",$S209,$R209)*$AA$23 -> 21.6
C210: Average number of hours of pressurised water supply per day.
C211: Quality of water supplied | D211: ='WS calcu'!E268 -> 0 | E211: ='WS calcu'!F268 -> 0 | F211: ='WS calcu'!G268 -> 0 | G211: ='WS calcu'!H268 -> 0 | H211: ='WS calcu'!I268 -> 0 | I211: ='WS calcu'!J268 -> 0 | J211: ='WS calcu'!K268 -> 0 | K211: ='WS calcu'!L268 -> 0 | L211: ='WS calcu'!M268 -> 0 | M211: ='WS calcu'!N268 -> 0 | N211: ='WS calcu'!O268 -> 0 | R211: 1 | T211: =IF($R$17="II. CUSTOMIZE BENCHMARKS",$S211,$R211)*$AA$21 -> 0 | U211: =IF($R$17="II. CUSTOMIZE BENCHMARKS",$S211,$R211)*$AA$22 -> 0.5 | V211: =IF($R$17="II. CUSTOMIZE BENCHMARKS",$S211,$R211)*$AA$23 -> 0.9
C212: Percentage of water samples that meet or exceed specified potable water standards as defined by CPHEEO.
C213: Efficiency in redressal of customer complaints | D213: ='WS calcu'!E264 -> 0 | E213: ='WS calcu'!F264 -> 0 | F213: ='WS calcu'!G264 -> 0 | G213: ='WS calcu'!H264 -> 0 | H213: ='WS calcu'!I264 -> 0 | I213: ='WS calcu'!J264 -> 0 | J213: ='WS calcu'!K264 -> 0 | K213: ='WS calcu'!L264 -> 0 | L213: ='WS calcu'!M264 -> 0 | M213: ='WS calcu'!N264 -> 0 | N213: ='WS calcu'!O264 -> 0 | R213: 0.8 | T213: =IF($R$17="II. CUSTOMIZE BENCHMARKS",$S213,$R213)*$AA$21 -> 0 | U213: =IF($R$17="II. CUSTOMIZE BENCHMARKS",$S213,$R213)*$AA$22 -> 0.4 | V213: =IF($R$17="II. CUSTOMIZE BENCHMARKS",$S213,$R213)*$AA$23 -> 0.72
C214: Number of water supply related complaints redressed within 24 hours as percentage of total number of water supply related complaints received.
C215: Cost recovery in water supply services | D215: ='WS calcu'!E672 -> 0 | E215: ='WS calcu'!F672 -> 0 | F215: ='WS calcu'!G672 -> 0 | G215: ='WS calcu'!H672 -> 0 | H215: ='WS calcu'!I672 -> 0 | I215: ='WS calcu'!J672 -> 0 | J215: ='WS calcu'!K672 -> 0 | K215: ='WS calcu'!L672 -> 0 | L215: ='WS calcu'!M672 -> 0 | M215: ='WS calcu'!N672 -> 0 | N215: ='WS calcu'!O672 -> 0 | R215: 1 | T215: =IF($R$17="II. CUSTOMIZE BENCHMARKS",$S215,$R215)*$AA$21 -> 0 | U215: =IF($R$17="II. CUSTOMIZE BENCHMARKS",$S215,$R215)*$AA$22 -> 0.5 | V215: =IF($R$17="II. CUSTOMIZE BENCHMARKS",$S215,$R215)*$AA$23 -> 0.9
C216: Total operating revenues expressed as percentage of total operating expenses incurred in the corresponding time period.
... 43 more rows

Sheet MSW calcu (hidden)
A2: A | C2: Quantity of MSW generated
C3: S. No. | D3: Particulars | E3: Unit | F3: ='WS calcu'!E$3 -> 0 | G3: ='WS calcu'!F$3 -> 0 | H3: ='WS calcu'!G$3 -> 0 | I3: ='WS calcu'!H$3 -> 0 | J3: ='WS calcu'!I$3 -> 0 | K3: ='WS calcu'!J$3 -> 0 | L3: ='WS calcu'!K$3 -> 0 | M3: ='WS calcu'!L$3 -> 0 | N3: ='WS calcu'!M$3 -> 0 | O3: ='WS calcu'!N$3 -> 0 | P3: ='WS calcu'!O$3 -> 0
D4: Waste generation quantity
C5: 1 | D5: Per capita generation of waste | E5: Kg/ Capita/ day | F5: =IFERROR('WSS info'!$G$372*10^3/30/Population!E$24,0) -> 0 | G5: =F5*(1+'WSS info'!$G$374) -> 0 | H5: =G5*(1+'WSS info'!$G$374) -> 0 | I5: =H5*(1+'WSS info'!$G$374) -> 0 | J5: =I5*(1+'WSS info'!$G$374) -> 0 | K5: =J5*(1+'WSS info'!$G$374) -> 0 | L5: =K5*(1+'WSS info'!$G$374) -> 0 | M5: =L5*(1+'WSS info'!$G$374) -> 0 | N5: =M5*(1+'WSS info'!$G$374) -> 0 | O5: =N5*(1+'WSS info'!$G$374) -> 0 | P5: =O5*(1+'WSS info'!$G$374) -> 0
C6: 2 | D6: Per household generation of waste | E6: Kg/ HH/ day | F6: =F5*Population!E34 -> 0 | G6: =G5*Population!F34 -> 0 | H6: =H5*Population!G34 -> 0 | I6: =I5*Population!H34 -> 0 | J6: =J5*Population!I34 -> 0 | K6: =K5*Population!J34 -> 0 | L6: =L5*Population!K34 -> 0 | M6: =M5*Population!L34 -> 0 | N6: =N5*Population!M34 -> 0 | O6: =O5*Population!N34 -> 0 | P6: =P5*Population!O34 -> 0
C7: 3 | D7: Total generation of waste per day | E7: Tons/ day | F7: ='WSS info'!$G$372/30 -> 0 | G7: =Population!F24*G5/1000 -> 0 | H7: =Population!G24*H5/1000 -> 0 | I7: =Population!H24*I5/1000 -> 0 | J7: =Population!I24*J5/1000 -> 0 | K7: =Population!J24*K5/1000 -> 0 | L7: =Population!K24*L5/1000 -> 0 | M7: =Population!L24*M5/1000 -> 0 | N7: =Population!M24*N5/1000 -> 0 | O7: =Population!N24*O5/1000 -> 0 | P7: =Population!O24*P5/1000 -> 0
D8: Household growth rate | F8: =Population!E32 -> 0 | G8: =Population!F32 -> 0 | H8: =Population!G32 -> 0 | I8: =Population!H32 -> 0 | J8: =Population!I32 -> 0 | K8: =Population!J32 -> 0 | L8: =Population!K32 -> 0 | M8: =Population!L32 -> 0 | N8: =Population!M32 -> 0 | O8: =Population!N32 -> 0 | P8: =Population!O32 -> 0
D9: Waste collection coverage
D10: Total number of HHs & non resi properties - HHs | F10: =Population!E$31 -> 0 | G10: =Population!F$31 -> 0 | H10: =Population!G$31 -> 0 | I10: =Population!H$31 -> 0 | J10: =Population!I$31 -> 0 | K10: =Population!J$31 -> 0 | L10: =Population!K$31 -> 0 | M10: =Population!L$31 -> 0 | N10: =Population!M$31 -> 0 | O10: =Population!N$31 -> 0 | P10: =Population!O$31 -> 0
D11: Total number of HHs & non resi properties - Estab. | F11: =+Population!E$40 -> 0 | G11: =+Population!F$40 -> 0 | H11: =+Population!G$40 -> 0 | I11: =+Population!H$40 -> 0 | J11: =+Population!I$40 -> 0 | K11: =+Population!J$40 -> 0 | L11: =+Population!K$40 -> 0 | M11: =+Population!L$40 -> 0 | N11: =+Population!M$40 -> 0 | O11: =+Population!N$40 -> 0 | P11: =+Population!O$40 -> 0
D12: Total potential slum HHs | F12: =Population!E30 -> 0 | G12: =Population!F30 -> 0 | H12: =Population!G30 -> 0 | I12: =Population!H30 -> 0 | J12: =Population!I30 -> 0 | K12: =Population!J30 -> 0 | L12: =Population!K30 -> 0 | M12: =Population!L30 -> 0 | N12: =Population!M30 -> 0 | O12: =Population!N30 -> 0 | P12: =Population!O30 -> 0
C14: 1 | D14: Population growth - Inc in TOTAL HHs | F14: 0 | G14: =G18-F18 -> 0 | H14: =H18-G18 -> 0 | I14: 0 | J14: 0 | K14: 0 | L14: 0 | M14: 0 | N14: 0 | O14: 0 | P14: 0
D15: Inc in SLUM HHs | F15: 0 | G15: =G19-F19 -> 0 | H15: =H19-G19 -> 0 | I15: 0 | J15: 0 | K15: 0 | L15: 0 | M15: 0 | N15: 0 | O15: 0 | P15: 0
D16: Inc in ESTAB. | F16: 0 | G16: =G20-F20 -> 0 | H16: =H20-G20 -> 0 | I16: 0 | J16: 0 | K16: 0 | L16: 0 | M16: 0 | N16: 0 | O16: 0 | P16: 0
D17: Actual MSW generators | E17: =IFERROR(F17/F10,0) -> 0 | F17: =F18+F20 -> 0 | G17: =G18+G20 -> 0 | H17: 0 | I17: 0 | J17: 0 | K17: 0 | L17: 0 | M17: 0 | N17: 0 | O17: 0 | P17: 0
D18: Pop inc_ HHs TOTAL | E18: =IFERROR(F18/F10,0) -> 0 | F18: ='WSS info'!$G$380+'WSS info'!$G$381 -> 0 | G18: =F18*(1+G8) -> 0 | H18: =G18*(1+H8) -> 0 | I18: 0 | J18: 0 | K18: 0 | L18: 0 | M18: 0 | N18: 0 | O18: 0 | P18: 0
D19: Pop inc_ HHs SLUMS | E19: =IFERROR(F19/F18,0) -> 0 | F19: ='WSS info'!$G$381 -> 0 | G19: =F19*(1+G8) -> 0 | H19: =G19*(1+H8) -> 0 | I19: 0 | J19: 0 | K19: 0 | L19: 0 | M19: 0 | N19: 0 | O19: 0 | P19: 0
D20: Pop inc_ ESTAB. | E20: =IFERROR(F20/F17,0) -> 0 | F20: ='WSS info'!$G$382 -> 0 | G20: =F20*(1+Population!$E$42) -> 0 | H20: =G20*(1+Population!$E$42) -> 0 | I20: =H20*(1+Population!$E$42) -> 0 | J20: =I20*(1+Population!$E$42) -> 0 | K20: =J20*(1+Population!$E$42) -> 0 | L20: =K20*(1+Population!$E$42) -> 0 | M20: =L20*(1+Population!$E$42) -> 0 | N20: =M20*(1+Population!$E$42) -> 0 | O20: =N20*(1+Population!$E$42) -> 0 | P20: =O20*(1+Population!$E$42) -> 0
C22: 2 | D22: Increase in HHs with add staff - CITY | F22: 0 | G22: =G23+G24 -> 0 | H22: =H23+H24 -> 0 | I22: 0 | J22: 0 | K22: 0 | L22: 0 | M22: 0 | N22: 0 | O22: 0 | P22: 0
D23: Increase in HHs with add staff - NON SLUMS | G23: =IF('SW Plan'!$E$59="Activate",IF(AND(G$3>='SW Plan'!$G$65,G$3<'SW Plan'!$H$65+1),'SW Plan'!$H$67/('SW Plan'!$H$65-'SW Plan'!$G$65+1),0),0) -> 0 | H23: =IF('SW Plan'!$E$59="Activate",IF(AND(H$3>='SW Plan'!$G$65,H$3<'SW Plan'!$H$65+1),'SW Plan'!$H$67/('SW Plan'!$H$65-'SW Plan'!$G$65+1),0),0) -> 0 | I23: =IF('SW Plan'!$E$59="Activate",IF(AND(I$3>='SW Plan'!$G$65,I$3<'SW Plan'!$H$65+1),'SW Plan'!$H$67/('SW Plan'!$H$65-'SW Plan'!$G$65+1),0),0) -> 0 | J23: =IF('SW Plan'!$E$59="Activate",IF(AND(J$3>='SW Plan'!$G$65,J$3<'SW Plan'!$H$65+1),'SW Plan'!$H$67/('SW Plan'!$H$65-'SW Plan'!$G$65+1),0),0) -> 0 | K23: =IF('SW Plan'!$E$59="Activate",IF(AND(K$3>='SW Plan'!$G$65,K$3<'SW Plan'!$H$65+1),'SW Plan'!$H$67/('SW Plan'!$H$65-'SW Plan'!$G$65+1),0),0) -> 0 | L23: =IF('SW Plan'!$E$59="Activate",IF(AND(L$3>='SW Plan'!$G$65,L$3<'SW Plan'!$H$65+1),'SW Plan'!$H$67/('SW Plan'!$H$65-'SW Plan'!$G$65+1),0),0) -> 0 | M23: =IF('SW Plan'!$E$59="Activate",IF(AND(M$3>='SW Plan'!$G$65,M$3<'SW Plan'!$H$65+1),'SW Plan'!$H$67/('SW Plan'!$H$65-'SW Plan'!$G$65+1),0),0) -> 0 | N23: =IF('SW Plan'!$E$59="Activate",IF(AND(N$3>='SW Plan'!$G$65,N$3<'SW Plan'!$H$65+1),'SW Plan'!$H$67/('SW Plan'!$H$65-'SW Plan'!$G$65+1),0),0) -> 0 | O23: =IF('SW Plan'!$E$59="Activate",IF(AND(O$3>='SW Plan'!$G$65,O$3<'SW Plan'!$H$65+1),'SW Plan'!$H$67/('SW Plan'!$H$65-'SW Plan'!$G$65+1),0),0) -> 0 | P23: =IF('SW Plan'!$E$59="Activate",IF(AND(P$3>='SW Plan'!$G$65,P$3<'SW Plan'!$H$65+1),'SW Plan'!$H$67/('SW Plan'!$H$65-'SW Plan'!$G$65+1),0),0) -> 0
D24: Increase in HHs with add staff - SLUMS | E24: ='SW Plan'!$H$68 -> 0 | F24: 0 | G24: =IF(G23<>0,$E$24/('SW Plan'!$H$65+1-'SW Plan'!$G$65),0) -> 0 | H24: =IF(H23<>0,$E$24/('SW Plan'!$H$65+1-'SW Plan'!$G$65),0) -> 0 | I24: =IF(I23<>0,$E$24/('SW Plan'!$H$65+1-'SW Plan'!$G$65),0) -> 0 | J24: =IF(J23<>0,$E$24/('SW Plan'!$H$65+1-'SW Plan'!$G$65),0) -> 0 | K24: =IF(K23<>0,$E$24/('SW Plan'!$H$65+1-'SW Plan'!$G$65),0) -> 0 | L24: =IF(L23<>0,$E$24/('SW Plan'!$H$65+1-'SW Plan'!$G$65),0) -> 0 | M24: =IF(M23<>0,$E$24/('SW Plan'!$H$65+1-'SW Plan'!$G$65),0) -> 0 | N24: =IF(N23<>0,$E$24/('SW Plan'!$H$65+1-'SW Plan'!$G$65),0) -> 0 | O24: =IF(O23<>0,$E$24/('SW Plan'!$H$65+1-'SW Plan'!$G$65),0) -> 0 | P24: =IF(P23<>0,$E$24/('SW Plan'!$H$65+1-'SW Plan'!$G$65),0) -> 0
D25: Increase in HHs with add staff - ESTAB. | F25: 0 | G25: =$E$20*G22 -> 0 | H25: =$E$20*H22 -> 0 | I25: 0 | J25: 0 | K25: 0 | L25: 0 | M25: 0 | N25: 0 | O25: 0 | P25: 0
D26: Add staff_HHs TOTAL | F26: =F18 -> 0 | G26: =F26+G$22+G$14 -> 0 | H26: =G26+H22+H14 -> 0 | I26: 0 | J26: 0 | K26: 0 | L26: 0 | M26: 0 | N26: 0 | O26: 0 | P26: 0
D27: Add staff_HHs SLUMS | F27: =F19 -> 0 | G27: =F27+G$24+G$15 -> 0 | H27: =G27+H$24+H$15 -> 0 | I27: 0 | J27: 0 | K27: 0 | L27: 0 | M27: 0 | N27: 0 | O27: 0 | P27: 0
D28: Add staff_ESTAB. | F28: ='WSS info'!$G$382 -> 0 | G28: =F28+G$25+G$16 -> 0 | H28: =G28+H$25+H$16 -> 0 | I28: 0 | J28: 0 | K28: 0 | L28: 0 | M28: 0 | N28: 0 | O28: 0 | P28: 0
C30: 3 | D30: Pvt. Contract - Inc in HHs - CITY | F30: =F31+F32 -> 0 | G30: =G31+G32 -> 0 | H30: 0 | I30: 0 | J30: 0 | K30: 0 | L30: 0 | M30: 0 | N30: 0 | O30: 0 | P30: 0
D31: Pvt. Contract - Inc in HHs - NON SLUMS | G31: =IF('SW Plan'!$E$70="Activate",IF(AND(G$3>='SW Plan'!$G$76,G$3<'SW Plan'!$H$76+1),'SW Plan'!$H$77/('SW Plan'!$H$76-'SW Plan'!$G$76+1),0),0) -> 0 | H31: =IF('SW Plan'!$E$70="Activate",IF(AND(H$3>='SW Plan'!$G$76,H$3<'SW Plan'!$H$76+1),'SW Plan'!$H$77/('SW Plan'!$H$76-'SW Plan'!$G$76+1),0),0) -> 0 | I31: =IF('SW Plan'!$E$70="Activate",IF(AND(I$3>='SW Plan'!$G$76,I$3<'SW Plan'!$H$76+1),'SW Plan'!$H$77/('SW Plan'!$H$76-'SW Plan'!$G$76+1),0),0) -> 0 | J31: =IF('SW Plan'!$E$70="Activate",IF(AND(J$3>='SW Plan'!$G$76,J$3<'SW Plan'!$H$76+1),'SW Plan'!$H$77/('SW Plan'!$H$76-'SW Plan'!$G$76+1),0),0) -> 0 | K31: =IF('SW Plan'!$E$70="Activate",IF(AND(K$3>='SW Plan'!$G$76,K$3<'SW Plan'!$H$76+1),'SW Plan'!$H$77/('SW Plan'!$H$76-'SW Plan'!$G$76+1),0),0) -> 0 | L31: =IF('SW Plan'!$E$70="Activate",IF(AND(L$3>='SW Plan'!$G$76,L$3<'SW Plan'!$H$76+1),'SW Plan'!$H$77/('SW Plan'!$H$76-'SW Plan'!$G$76+1),0),0) -> 0 | M31: =IF('SW Plan'!$E$70="Activate",IF(AND(M$3>='SW Plan'!$G$76,M$3<'SW Plan'!$H$76+1),'SW Plan'!$H$77/('SW Plan'!$H$76-'SW Plan'!$G$76+1),0),0) -> 0 | N31: =IF('SW Plan'!$E$70="Activate",IF(AND(N$3>='SW Plan'!$G$76,N$3<'SW Plan'!$H$76+1),'SW Plan'!$H$77/('SW Plan'!$H$76-'SW Plan'!$G$76+1),0),0) -> 0 | O31: =IF('SW Plan'!$E$70="Activate",IF(AND(O$3>='SW Plan'!$G$76,O$3<'SW Plan'!$H$76+1),'SW Plan'!$H$77/('SW Plan'!$H$76-'SW Plan'!$G$76+1),0),0) -> 0 | P31: =IF('SW Plan'!$E$70="Activate",IF(AND(P$3>='SW Plan'!$G$76,P$3<'SW Plan'!$H$76+1),'SW Plan'!$H$77/('SW Plan'!$H$76-'SW Plan'!$G$76+1),0),0) -> 0
D32: Pvt. Contract - Inc in HHs - SLUMS | E32: ='SW Plan'!$H$78 -> 0 | F32: 0 | G32: =IF(G31<>0,$E$32/('SW Plan'!$H$76+1-'SW Plan'!$G$76),0) -> 0 | H32: =IF(H31<>0,$E$32/('SW Plan'!$H$76+1-'SW Plan'!$G$76),0) -> 0 | I32: =IF(I31<>0,$E$32/('SW Plan'!$H$76+1-'SW Plan'!$G$76),0) -> 0 | J32: =IF(J31<>0,$E$32/('SW Plan'!$H$76+1-'SW Plan'!$G$76),0) -> 0 | K32: =IF(K31<>0,$E$32/('SW Plan'!$H$76+1-'SW Plan'!$G$76),0) -> 0 | L32: =IF(L31<>0,$E$32/('SW Plan'!$H$76+1-'SW Plan'!$G$76),0) -> 0 | M32: =IF(M31<>0,$E$32/('SW Plan'!$H$76+1-'SW Plan'!$G$76),0) -> 0 | N32: =IF(N31<>0,$E$32/('SW Plan'!$H$76+1-'SW Plan'!$G$76),0) -> 0 | O32: =IF(O31<>0,$E$32/('SW Plan'!$H$76+1-'SW Plan'!$G$76),0) -> 0 | P32: =IF(P31<>0,$E$32/('SW Plan'!$H$76+1-'SW Plan'!$G$76),0) -> 0
D33: Pvt. Contract - Inc in ESTAB. | F33: 0 | G33: =$E$20*G30 -> 0 | H33: =$E$20*H30 -> 0 | I33: 0 | J33: 0 | K33: 0 | L33: 0 | M33: 0 | N33: 0 | O33: 0 | P33: 0
D34: Pvt contract_HHs TOTAL | F34: =F26 -> 0 | G34: =F34+G$22+G$14+G$30 -> 0 | H34: =G34+H$22+H$14+H$30 -> 0 | I34: 0 | J34: 0 | K34: 0 | L34: 0 | M34: 0 | N34: 0 | O34: 0 | P34: 0
D35: Pvt contract_HHs SLUMS | F35: =F27 -> 0 | G35: =F35+G$24+G$15+G$32 -> 0 | H35: =G35+H$24+H$15+H$32 -> 0 | I35: 0 | J35: 0 | K35: 0 | L35: 0 | M35: 0 | N35: 0 | O35: 0 | P35: 0
D36: Pvt contract_ESTAB. | F36: =F28 -> 0 | G36: =F36+G$25+G$16+G$33 -> 0 | H36: =G36+H$25+H$16+H$33 -> 0 | I36: 0 | J36: 0 | K36: 0 | L36: 0 | M36: 0 | N36: 0 | O36: 0 | P36: 0
C38: 4 | D38: Buying new equipments, Inc in HHs covered - CITY | F38: =F39+F40 -> 0 | G38: =G39+G40 -> 0 | H38: 0 | I38: 0 | J38: 0 | K38: 0 | L38: 0 | M38: 0 | N38: 0 | O38: 0 | P38: 0
D39: Inc in HHs covered - NON SLUMS | G39: =IF('SW Plan'!$E$45="Activate",IF(AND(G$3>='SW Plan'!$G$49,G$3<'SW Plan'!$H$49+1),'SW Plan'!$H$50/('SW Plan'!$H$49-'SW Plan'!$G$49+1),0),0) -> 0 | H39: =IF('SW Plan'!$E$45="Activate",IF(AND(H$3>='SW Plan'!$G$49,H$3<'SW Plan'!$H$49+1),'SW Plan'!$H$50/('SW Plan'!$H$49-'SW Plan'!$G$49+1),0),0) -> 0 | I39: =IF('SW Plan'!$E$45="Activate",IF(AND(I$3>='SW Plan'!$G$49,I$3<'SW Plan'!$H$49+1),'SW Plan'!$H$50/('SW Plan'!$H$49-'SW Plan'!$G$49+1),0),0) -> 0 | J39: =IF('SW Plan'!$E$45="Activate",IF(AND(J$3>='SW Plan'!$G$49,J$3<'SW Plan'!$H$49+1),'SW Plan'!$H$50/('SW Plan'!$H$49-'SW Plan'!$G$49+1),0),0) -> 0 | K39: =IF('SW Plan'!$E$45="Activate",IF(AND(K$3>='SW Plan'!$G$49,K$3<'SW Plan'!$H$49+1),'SW Plan'!$H$50/('SW Plan'!$H$49-'SW Plan'!$G$49+1),0),0) -> 0 | L39: =IF('SW Plan'!$E$45="Activate",IF(AND(L$3>='SW Plan'!$G$49,L$3<'SW Plan'!$H$49+1),'SW Plan'!$H$50/('SW Plan'!$H$49-'SW Plan'!$G$49+1),0),0) -> 0 | M39: =IF('SW Plan'!$E$45="Activate",IF(AND(M$3>='SW Plan'!$G$49,M$3<'SW Plan'!$H$49+1),'SW Plan'!$H$50/('SW Plan'!$H$49-'SW Plan'!$G$49+1),0),0) -> 0 | N39: =IF('SW Plan'!$E$45="Activate",IF(AND(N$3>='SW Plan'!$G$49,N$3<'SW Plan'!$H$49+1),'SW Plan'!$H$50/('SW Plan'!$H$49-'SW Plan'!$G$49+1),0),0) -> 0 | O39: =IF('SW Plan'!$E$45="Activate",IF(AND(O$3>='SW Plan'!$G$49,O$3<'SW Plan'!$H$49+1),'SW Plan'!$H$50/('SW Plan'!$H$49-'SW Plan'!$G$49+1),0),0) -> 0 | P39: =IF('SW Plan'!$E$45="Activate",IF(AND(P$3>='SW Plan'!$G$49,P$3<'SW Plan'!$H$49+1),'SW Plan'!$H$50/('SW Plan'!$H$49-'SW Plan'!$G$49+1),0),0) -> 0
D40: Inc in HHs covered - SLUMS | E40: ='SW Plan'!$H$51 -> 0 | F40: 0 | G40: =IF(G39<>0,$E$40/('SW Plan'!$H$49+1-'SW Plan'!$G$49),0) -> 0 | H40: =IF(H39<>0,$E$40/('SW Plan'!$H$49+1-'SW Plan'!$G$49),0) -> 0 | I40: =IF(I39<>0,$E$40/('SW Plan'!$H$49+1-'SW Plan'!$G$49),0) -> 0 | J40: =IF(J39<>0,$E$40/('SW Plan'!$H$49+1-'SW Plan'!$G$49),0) -> 0 | K40: =IF(K39<>0,$E$40/('SW Plan'!$H$49+1-'SW Plan'!$G$49),0) -> 0 | L40: =IF(L39<>0,$E$40/('SW Plan'!$H$49+1-'SW Plan'!$G$49),0) -> 0 | M40: =IF(M39<>0,$E$40/('SW Plan'!$H$49+1-'SW Plan'!$G$49),0) -> 0 | N40: =IF(N39<>0,$E$40/('SW Plan'!$H$49+1-'SW Plan'!$G$49),0) -> 0 | O40: =IF(O39<>0,$E$40/('SW Plan'!$H$49+1-'SW Plan'!$G$49),0) -> 0 | P40: =IF(P39<>0,$E$40/('SW Plan'!$H$49+1-'SW Plan'!$G$49),0) -> 0
D41: Inc in establishments covered | F41: 0 | G41: =G38*$E$20 -> 0 | H41: =H38*$E$20 -> 0 | I41: 0 | J41: 0 | K41: 0 | L41: 0 | M41: 0 | N41: 0 | O41: 0 | P41: 0
D42: Equipments_HHs TOTAL | F42: =F34 -> 0 | G42: =F42+G$22+G$14+G$30+G$38 -> 0 | H42: =G42+H$22+H$14+H$30+H$38 -> 0 | I42: 0 | J42: 0 | K42: 0 | L42: 0 | M42: 0 | N42: 0 | O42: 0 | P42: 0
D43: Equipments_HHs SLUMs | F43: =F35 -> 0 | G43: =F43+G$24+G$15+G$32+G$40 -> 0 | H43: =G43+H$24+H$15+H$32+H$40 -> 0 | I43: 0 | J43: 0 | K43: 0 | L43: 0 | M43: 0 | N43: 0 | O43: 0 | P43: 0
D44: Equipments_ESTAB. | F44: =F36 -> 0 | G44: =F44+G$25+G$16+G$33+G$41 -> 0 | H44: =G44+H$25+H$16+H$33+H$41 -> 0 | I44: 0 | J44: 0 | K44: 0 | L44: 0 | M44: 0 | N44: 0 | O44: 0 | P44: 0
D45: Total MSW generators | F45: =F42+F44 -> 0 | G45: =G42+G44 -> 0 | H45: 0 | I45: 0 | J45: 0 | K45: 0 | L45: 0 | M45: 0 | N45: 0 | O45: 0 | P45: 0
D46: PIP Capex Finance - for improving present services | E46: ='SW Plan'!$H$48 -> 0 | G46: =(IF('SW Plan'!$E$45="Activate",IF(AND(G$3>='SW Plan'!$G$46,G$3<'SW Plan'!$H$46+1),'SW Plan'!$H$47/('SW Plan'!$H$46-'SW Plan'!$G$46+1),0),0)*'PIP finance'!G$1) -> 0 | H46: =(IF('SW Plan'!$E$45="Activate",IF(AND(H$3>='SW Plan'!$G$46,H$3<'SW Plan'!$H$46+1),'SW Plan'!$H$47/('SW Plan'!$H$46-'SW Plan'!$G$46+1),0),0)*'PIP finance'!H$1) -> 0 | I46: =(IF('SW Plan'!$E$45="Activate",IF(AND(I$3>='SW Plan'!$G$46,I$3<'SW Plan'!$H$46+1),'SW Plan'!$H$47/('SW Plan'!$H$46-'SW Plan'!$G$46+1),0),0)*'PIP finance'!I$1) -> 0 | J46: =(IF('SW Plan'!$E$45="Activate",IF(AND(J$3>='SW Plan'!$G$46,J$3<'SW Plan'!$H$46+1),'SW Plan'!$H$47/('SW Plan'!$H$46-'SW Plan'!$G$46+1),0),0)*'PIP finance'!J$1) -> 0 | K46: =(IF('SW Plan'!$E$45="Activate",IF(AND(K$3>='SW Plan'!$G$46,K$3<'SW Plan'!$H$46+1),'SW Plan'!$H$47/('SW Plan'!$H$46-'SW Plan'!$G$46+1),0),0)*'PIP finance'!K$1) -> 0 | L46: =(IF('SW Plan'!$E$45="Activate",IF(AND(L$3>='SW Plan'!$G$46,L$3<'SW Plan'!$H$46+1),'SW Plan'!$H$47/('SW Plan'!$H$46-'SW Plan'!$G$46+1),0),0)*'PIP finance'!L$1) -> 0 | M46: =(IF('SW Plan'!$E$45="Activate",IF(AND(M$3>='SW Plan'!$G$46,M$3<'SW Plan'!$H$46+1),'SW Plan'!$H$47/('SW Plan'!$H$46-'SW Plan'!$G$46+1),0),0)*'PIP finance'!M$1) -> 0 | N46: =(IF('SW Plan'!$E$45="Activate",IF(AND(N$3>='SW Plan'!$G$46,N$3<'SW Plan'!$H$46+1),'SW Plan'!$H$47/('SW Plan'!$H$46-'SW Plan'!$G$46+1),0),0)*'PIP finance'!N$1) -> 0 | O46: =(IF('SW Plan'!$E$45="Activate",IF(AND(O$3>='SW Plan'!$G$46,O$3<'SW Plan'!$H$46+1),'SW Plan'!$H$47/('SW Plan'!$H$46-'SW Plan'!$G$46+1),0),0)*'PIP finance'!O$1) -> 0 | P46: =(IF('SW Plan'!$E$45="Activate",IF(AND(P$3>='SW Plan'!$G$46,P$3<'SW Plan'!$H$46+1),'SW Plan'!$H$47/('SW Plan'!$H$46-'SW Plan'!$G$46+1),0),0)*'PIP finance'!P$1) -> 0
D47: PIP Capex Finance - forservicing unserved areas | E47: ='SW Plan'!$H$53 -> 0 | G47: =(IF('SW Plan'!$E$45="Activate",IF(AND(G$3>='SW Plan'!$G$49,G$3<'SW Plan'!$H$49+1),'SW Plan'!$H$52/('SW Plan'!$H$49-'SW Plan'!$G$49+1),0),0)*'PIP finance'!G$1) -> 0 | H47: =(IF('SW Plan'!$E$45="Activate",IF(AND(H$3>='SW Plan'!$G$49,H$3<'SW Plan'!$H$49+1),'SW Plan'!$H$52/('SW Plan'!$H$49-'SW Plan'!$G$49+1),0),0)*'PIP finance'!H$1) -> 0 | I47: =(IF('SW Plan'!$E$45="Activate",IF(AND(I$3>='SW Plan'!$G$49,I$3<'SW Plan'!$H$49+1),'SW Plan'!$H$52/('SW Plan'!$H$49-'SW Plan'!$G$49+1),0),0)*'PIP finance'!I$1) -> 0 | J47: =(IF('SW Plan'!$E$45="Activate",IF(AND(J$3>='SW Plan'!$G$49,J$3<'SW Plan'!$H$49+1),'SW Plan'!$H$52/('SW Plan'!$H$49-'SW Plan'!$G$49+1),0),0)*'PIP finance'!J$1) -> 0 | K47: =(IF('SW Plan'!$E$45="Activate",IF(AND(K$3>='SW Plan'!$G$49,K$3<'SW Plan'!$H$49+1),'SW Plan'!$H$52/('SW Plan'!$H$49-'SW Plan'!$G$49+1),0),0)*'PIP finance'!K$1) -> 0 | L47: =(IF('SW Plan'!$E$45="Activate",IF(AND(L$3>='SW Plan'!$G$49,L$3<'SW Plan'!$H$49+1),'SW Plan'!$H$52/('SW Plan'!$H$49-'SW Plan'!$G$49+1),0),0)*'PIP finance'!L$1) -> 0 | M47: =(IF('SW Plan'!$E$45="Activate",IF(AND(M$3>='SW Plan'!$G$49,M$3<'SW Plan'!$H$49+1),'SW Plan'!$H$52/('SW Plan'!$H$49-'SW Plan'!$G$49+1),0),0)*'PIP finance'!M$1) -> 0 | N47: =(IF('SW Plan'!$E$45="Activate",IF(AND(N$3>='SW Plan'!$G$49,N$3<'SW Plan'!$H$49+1),'SW Plan'!$H$52/('SW Plan'!$H$49-'SW Plan'!$G$49+1),0),0)*'PIP finance'!N$1) -> 0 | O47: =(IF('SW Plan'!$E$45="Activate",IF(AND(O$3>='SW Plan'!$G$49,O$3<'SW Plan'!$H$49+1),'SW Plan'!$H$52/('SW Plan'!$H$49-'SW Plan'!$G$49+1),0),0)*'PIP finance'!O$1) -> 0 | P47: =(IF('SW Plan'!$E$45="Activate",IF(AND(P$3>='SW Plan'!$G$49,P$3<'SW Plan'!$H$49+1),'SW Plan'!$H$52/('SW Plan'!$H$49-'SW Plan'!$G$49+1),0),0)*'PIP finance'!P$1) -> 0
C49: 5 | D49: Waste segregation in already served areas
D50: HHs already served_CITY | E50: =E53 -> 0 | F50: 0 | G50: =(IF('SW Plan'!$E$101="Activate",IF(AND(G$3>='SW Plan'!$G$101,G$3<'SW Plan'!$H$101+1,'SW Plan'!$H$103<>0),'SW Plan'!$H$103/('SW Plan'!$H$101-'SW Plan'!$G$101+1),0),0))*$E$53 -> 0 | H50: =(IF('SW Plan'!$E$101="Activate",IF(AND(H$3>='SW Plan'!$G$101,H$3<'SW Plan'!$H$101+1,'SW Plan'!$H$103<>0),'SW Plan'!$H$103/('SW Plan'!$H$101-'SW Plan'!$G$101+1),0),0))*$E$53 -> 0 | I50: =(IF('SW Plan'!$E$101="Activate",IF(AND(I$3>='SW Plan'!$G$101,I$3<'SW Plan'!$H$101+1,'SW Plan'!$H$103<>0),'SW Plan'!$H$103/('SW Plan'!$H$101-'SW Plan'!$G$101+1),0),0))*$E$53 -> 0 | J50: =(IF('SW Plan'!$E$101="Activate",IF(AND(J$3>='SW Plan'!$G$101,J$3<'SW Plan'!$H$101+1,'SW Plan'!$H$103<>0),'SW Plan'!$H$103/('SW Plan'!$H$101-'SW Plan'!$G$101+1),0),0))*$E$53 -> 0 | K50: =(IF('SW Plan'!$E$101="Activate",IF(AND(K$3>='SW Plan'!$G$101,K$3<'SW Plan'!$H$101+1,'SW Plan'!$H$103<>0),'SW Plan'!$H$103/('SW Plan'!$H$101-'SW Plan'!$G$101+1),0),0))*$E$53 -> 0 | L50: =(IF('SW Plan'!$E$101="Activate",IF(AND(L$3>='SW Plan'!$G$101,L$3<'SW Plan'!$H$101+1,'SW Plan'!$H$103<>0),'SW Plan'!$H$103/('SW Plan'!$H$101-'SW Plan'!$G$101+1),0),0))*$E$53 -> 0 | M50: =(IF('SW Plan'!$E$101="Activate",IF(AND(M$3>='SW Plan'!$G$101,M$3<'SW Plan'!$H$101+1,'SW Plan'!$H$103<>0),'SW Plan'!$H$103/('SW Plan'!$H$101-'SW Plan'!$G$101+1),0),0))*$E$53 -> 0 | N50: =(IF('SW Plan'!$E$101="Activate",IF(AND(N$3>='SW Plan'!$G$101,N$3<'SW Plan'!$H$101+1,'SW Plan'!$H$103<>0),'SW Plan'!$H$103/('SW Plan'!$H$101-'SW Plan'!$G$101+1),0),0))*$E$53 -> 0 | O50: =(IF('SW Plan'!$E$101="Activate",IF(AND(O$3>='SW Plan'!$G$101,O$3<'SW Plan'!$H$101+1,'SW Plan'!$H$103<>0),'SW Plan'!$H$103/('SW Plan'!$H$101-'SW Plan'!$G$101+1),0),0))*$E$53 -> 0 | P50: =(IF('SW Plan'!$E$101="Activate",IF(AND(P$3>='SW Plan'!$G$101,P$3<'SW Plan'!$H$101+1,'SW Plan'!$H$103<>0),'SW Plan'!$H$103/('SW Plan'!$H$101-'SW Plan'!$G$101+1),0),0))*$E$53 -> 0
D51: Establishments - CITY | E51: =E54 -> 0 | F51: 0 | G51: =IFERROR((G50*$E$51),0) -> 0 | H51: =IFERROR((H50*$E$51),0) -> 0 | I51: 0 | J51: 0 | K51: 0 | L51: 0 | M51: 0 | N51: 0 | O51: 0 | P51: 0
D52: Waste segregation in new areas
D53: Inc in HHs with segregation - CITY | E53: =E18 -> 0 | F53: 0 | G53: =(IF('SW Plan'!$E$101="Activate",IF(AND(G$3>='SW Plan'!$G$101,G$3<'SW Plan'!$H$101+1,'SW Plan'!$H$104<>0),'SW Plan'!$H$104/('SW Plan'!$H$101-'SW Plan'!$G$101+1),0),0))*$E$53 -> 0 | H53: =(IF('SW Plan'!$E$101="Activate",IF(AND(H$3>='SW Plan'!$G$101,H$3<'SW Plan'!$H$101+1,'SW Plan'!$H$104<>0),'SW Plan'!$H$104/('SW Plan'!$H$101-'SW Plan'!$G$101+1),0),0))*$E$53 -> 0 | I53: =(IF('SW Plan'!$E$101="Activate",IF(AND(I$3>='SW Plan'!$G$101,I$3<'SW Plan'!$H$101+1,'SW Plan'!$H$104<>0),'SW Plan'!$H$104/('SW Plan'!$H$101-'SW Plan'!$G$101+1),0),0))*$E$53 -> 0 | J53: =(IF('SW Plan'!$E$101="Activate",IF(AND(J$3>='SW Plan'!$G$101,J$3<'SW Plan'!$H$101+1,'SW Plan'!$H$104<>0),'SW Plan'!$H$104/('SW Plan'!$H$101-'SW Plan'!$G$101+1),0),0))*$E$53 -> 0 | K53: =(IF('SW Plan'!$E$101="Activate",IF(AND(K$3>='SW Plan'!$G$101,K$3<'SW Plan'!$H$101+1,'SW Plan'!$H$104<>0),'SW Plan'!$H$104/('SW Plan'!$H$101-'SW Plan'!$G$101+1),0),0))*$E$53 -> 0 | L53: =(IF('SW Plan'!$E$101="Activate",IF(AND(L$3>='SW Plan'!$G$101,L$3<'SW Plan'!$H$101+1,'SW Plan'!$H$104<>0),'SW Plan'!$H$104/('SW Plan'!$H$101-'SW Plan'!$G$101+1),0),0))*$E$53 -> 0 | M53: =(IF('SW Plan'!$E$101="Activate",IF(AND(M$3>='SW Plan'!$G$101,M$3<'SW Plan'!$H$101+1,'SW Plan'!$H$104<>0),'SW Plan'!$H$104/('SW Plan'!$H$101-'SW Plan'!$G$101+1),0),0))*$E$53 -> 0 | N53: =(IF('SW Plan'!$E$101="Activate",IF(AND(N$3>='SW Plan'!$G$101,N$3<'SW Plan'!$H$101+1,'SW Plan'!$H$104<>0),'SW Plan'!$H$104/('SW Plan'!$H$101-'SW Plan'!$G$101+1),0),0))*$E$53 -> 0 | O53: =(IF('SW Plan'!$E$101="Activate",IF(AND(O$3>='SW Plan'!$G$101,O$3<'SW Plan'!$H$101+1,'SW Plan'!$H$104<>0),'SW Plan'!$H$104/('SW Plan'!$H$101-'SW Plan'!$G$101+1),0),0))*$E$53 -> 0 | P53: =(IF('SW Plan'!$E$101="Activate",IF(AND(P$3>='SW Plan'!$G$101,P$3<'SW Plan'!$H$101+1,'SW Plan'!$H$104<>0),'SW Plan'!$H$104/('SW Plan'!$H$101-'SW Plan'!$G$101+1),0),0))*$E$53 -> 0
D54: Establishments - CITY | E54: =E20 -> 0 | F54: 0 | G54: =IFERROR((G53*$E$54),0) -> 0 | H54: =IFERROR((H53*$E$54),0) -> 0 | I54: 0 | J54: 0 | K54: 0 | L54: 0 | M54: 0 | N54: 0 | O54: 0 | P54: 0
D55: Seg_HHs CITY | F55: =F42 -> 0 | G55: =F55+G$22+G$14+G$30+G$38+G53 -> 0 | H55: =G55+H$22+H$14+H$30+H$38+H53 -> 0 | I55: 0 | J55: 0 | K55: 0 | L55: 0 | M55: 0 | N55: 0 | O55: 0 | P55: 0
D56: Seg_HHs SLUMS | F56: =F43 -> 0 | G56: =G43 -> 0 | H56: =H43 -> 0 | I56: 0 | J56: 0 | K56: 0 | L56: 0 | M56: 0 | N56: 0 | O56: 0 | P56: 0
D57: Seg_Estab CITY | F57: =F44 -> 0 | G57: =F57+G$25+G$16+G$33+G$41+G54 -> 0 | H57: =G57+H$25+H$16+H$33+H$41+H54 -> 0 | I57: 0 | J57: 0 | K57: 0 | L57: 0 | M57: 0 | N57: 0 | O57: 0 | P57: 0
D58: Total MSW segregated generators | F58: =F55+F57 -> 0 | G58: 0 | H58: 0 | I58: 0 | J58: 0 | K58: 0 | L58: 0 | M58: 0 | N58: 0 | O58: 0 | P58: 0
C60: 6 | D60: Final HHs served | E60: =IFERROR(F42/SUM(F$42,F$44),0) -> 0 | F60: =F55 -> 0 | G60: =G55 -> 0 | H60: 0 | I60: 0 | J60: 0 | K60: 0 | L60: 0 | M60: 0 | N60: 0 | O60: 0 | P60: 0
D61: Final Slum HHs served | E61: =IFERROR(F43/SUM(F$42,F$44),0) -> 0 | F61: =F56 -> 0 | G61: =G56 -> 0 | H61: 0 | I61: 0 | J61: 0 | K61: 0 | L61: 0 | M61: 0 | N61: 0 | O61: 0 | P61: 0
D62: Final Estab. served | E62: =IFERROR(F44/SUM(F$42,F$44),0) -> 0 | F62: =F57 -> 0 | G62: =G57 -> 0 | H62: 0 | I62: 0 | J62: 0 | K62: 0 | L62: 0 | M62: 0 | N62: 0 | O62: 0 | P62: 0
D63: TOTAL MSW GENERATORS | F63: =F58 -> 0 | G63: =G58 -> 0 | H63: 0 | I63: 0 | J63: 0 | K63: 0 | L63: 0 | M63: 0 | N63: 0 | O63: 0 | P63: 0
D65: Overall coverage of doorstep collection | F65: =MIN(IFERROR(F60/Population!E31,0),100%) -> 0 | G65: =MIN(IFERROR(G60/Population!F31,0),100%) -> 0 | H65: =MIN(IFERROR(H60/Population!G31,0),100%) -> 0 | I65: =MIN(IFERROR(I60/Population!H31,0),100%) -> 0 | J65: =MIN(IFERROR(J60/Population!I31,0),100%) -> 0 | K65: =MIN(IFERROR(K60/Population!J31,0),100%) -> 0 | L65: =MIN(IFERROR(L60/Population!K31,0),100%) -> 0 | M65: =MIN(IFERROR(M60/Population!L31,0),100%) -> 0 | N65: =MIN(IFERROR(N60/Population!M31,0),100%) -> 0 | O65: =MIN(IFERROR(O60/Population!N31,0),100%) -> 0 | P65: =MIN(IFERROR(P60/Population!O31,0),100%) -> 0
D66: Slum coverage of doorstep collection | F66: =MIN(IFERROR(F61/F12,0),100%) -> 0 | G66: 0 | H66: 0 | I66: 0 | J66: 0 | K66: 0 | L66: 0 | M66: 0 | N66: 0 | O66: 0 | P66: 0
D67: HHs served by secondary solid waste collection system in city | F67: =MIN(IFERROR(F80/Population!E31,0),100%) -> 0 | G67: =MIN(IFERROR(G80/Population!F31,0),100%) -> 0 | H67: =MIN(IFERROR(H80/Population!G31,0),100%) -> 0 | I67: =MIN(IFERROR(I80/Population!H31,0),100%) -> 0 | J67: =MIN(IFERROR(J80/Population!I31,0),100%) -> 0 | K67: =MIN(IFERROR(K80/Population!J31,0),100%) -> 0 | L67: =MIN(IFERROR(L80/Population!K31,0),100%) -> 0 | M67: =MIN(IFERROR(M80/Population!L31,0),100%) -> 0 | N67: =MIN(IFERROR(N80/Population!M31,0),100%) -> 0 | O67: =MIN(IFERROR(O80/Population!N31,0),100%) -> 0 | P67: =MIN(IFERROR(P80/Population!O31,0),100%) -> 0
D68: Household level coverage of SWM services_SLB | F68: =MIN(IFERROR((F60+F62)/(F10+F11),0),100%) -> 0 | G68: =MIN(IFERROR((G60+G62)/(G10+G11),0),100%) -> 0 | H68: 0 | I68: 0 | J68: 0 | K68: 0 | L68: 0 | M68: 0 | N68: 0 | O68: 0 | P68: 0
D70: Efficiency in redressal of customer complaints (%) | F70: ='SW Plan'!H203 -> 0 | G70: =F70+IF('SW Plan'!$E$202="Activate",IF(AND(G$205>='SW Plan'!$G$202,G$205<'SW Plan'!$H$202+1),('SW Plan'!$H$204-'SW Plan'!$H$203)/('SW Plan'!$H$202+1-'SW Plan'!$G$202),0),0) -> 0 | H70: =G70+IF('SW Plan'!$E$202="Activate",IF(AND(H$205>='SW Plan'!$G$202,H$205<'SW Plan'!$H$202+1),('SW Plan'!$H$204-'SW Plan'!$H$203)/('SW Plan'!$H$202+1-'SW Plan'!$G$202),0),0) -> 0 | I70: =H70+IF('SW Plan'!$E$202="Activate",IF(AND(I$205>='SW Plan'!$G$202,I$205<'SW Plan'!$H$202+1),('SW Plan'!$H$204-'SW Plan'!$H$203)/('SW Plan'!$H$202+1-'SW Plan'!$G$202),0),0) -> 0 | J70: =I70+IF('SW Plan'!$E$202="Activate",IF(AND(J$205>='SW Plan'!$G$202,J$205<'SW Plan'!$H$202+1),('SW Plan'!$H$204-'SW Plan'!$H$203)/('SW Plan'!$H$202+1-'SW Plan'!$G$202),0),0) -> 0 | K70: =J70+IF('SW Plan'!$E$202="Activate",IF(AND(K$205>='SW Plan'!$G$202,K$205<'SW Plan'!$H$202+1),('SW Plan'!$H$204-'SW Plan'!$H$203)/('SW Plan'!$H$202+1-'SW Plan'!$G$202),0),0) -> 0 | L70: =K70+IF('SW Plan'!$E$202="Activate",IF(AND(L$205>='SW Plan'!$G$202,L$205<'SW Plan'!$H$202+1),('SW Plan'!$H$204-'SW Plan'!$H$203)/('SW Plan'!$H$202+1-'SW Plan'!$G$202),0),0) -> 0 | M70: =L70+IF('SW Plan'!$E$202="Activate",IF(AND(M$205>='SW Plan'!$G$202,M$205<'SW Plan'!$H$202+1),('SW Plan'!$H$204-'SW Plan'!$H$203)/('SW Plan'!$H$202+1-'SW Plan'!$G$202),0),0) -> 0 | N70: =M70+IF('SW Plan'!$E$202="Activate",IF(AND(N$205>='SW Plan'!$G$202,N$205<'SW Plan'!$H$202+1),('SW Plan'!$H$204-'SW Plan'!$H$203)/('SW Plan'!$H$202+1-'SW Plan'!$G$202),0),0) -> 0 | O70: =N70+IF('SW Plan'!$E$202="Activate",IF(AND(O$205>='SW Plan'!$G$202,O$205<'SW Plan'!$H$202+1),('SW Plan'!$H$204-'SW Plan'!$H$203)/('SW Plan'!$H$202+1-'SW Plan'!$G$202),0),0) -> 0 | P70: =O70+IF('SW Plan'!$E$202="Activate",IF(AND(P$205>='SW Plan'!$G$202,P$205<'SW Plan'!$H$202+1),('SW Plan'!$H$204-'SW Plan'!$H$203)/('SW Plan'!$H$202+1-'SW Plan'!$G$202),0),0) -> 0
A72: B | C72: MSW collection & transportation
C73: S. No. | D73: Particulars | E73: Unit | F73: =F$3 -> 0 | G73: 0 | H73: 0 | I73: 0 | J73: 0 | K73: 0 | L73: 0 | M73: 0 | N73: 0 | O73: 0 | P73: 0
D74: Waste collection
D75: Primary collection - doorstep collection
D76: HHs served | F76: =MIN(Population!E31,F60) -> 0 | G76: =MIN(Population!F31,G60) -> 0 | H76: =MIN(Population!G31,H60) -> 0 | I76: =MIN(Population!H31,I60) -> 0 | J76: =MIN(Population!I31,J60) -> 0 | K76: =MIN(Population!J31,K60) -> 0 | L76: =MIN(Population!K31,L60) -> 0 | M76: =MIN(Population!L31,M60) -> 0 | N76: =MIN(Population!M31,N60) -> 0 | O76: =MIN(Population!N31,O60) -> 0 | P76: =MIN(Population!O31,P60) -> 0
D77: Waste collected | E77: Tons/ day | F77: =F76*F6/1000 -> 0 | G77: 0 | H77: 0 | I77: 0 | J77: 0 | K77: 0 | L77: 0 | M77: 0 | N77: 0 | O77: 0 | P77: 0
F78: =Population!E31-F76 -> 0 | G78: =Population!F31-G76 -> 0 | H78: =Population!G31-H76 -> 0 | I78: =Population!H31-I76 -> 0 | J78: =Population!I31-J76 -> 0 | K78: =Population!J31-K76 -> 0 | L78: =Population!K31-L76 -> 0 | M78: =Population!L31-M76 -> 0 | N78: =Population!M31-N76 -> 0 | O78: =Population!N31-O76 -> 0 | P78: =Population!O31-P76 -> 0
D79: Primary collection - at secondary storage | G79: =F80*G8 -> 0 | H79: 0 | I79: 0 | J79: 0 | K79: 0 | L79: 0 | M79: 0 | N79: 0 | O79: 0 | P79: 0
D80: HHs served | F80: =MIN('WSS info'!G391+'WSS info'!G392,F78) -> 0 | G80: =MIN((IF('SW Plan'!$E$106="Activate",IF(AND(G$3>='SW Plan'!$G$106,G$3<'SW Plan'!$H$106+1),('SW Plan'!$H$111+'SW Plan'!$H$115)/('SW Plan'!$H$106-'SW Plan'!$G$106+1),0),0))+F80+G79,G78) -> 0 | H80: =MIN((IF('SW Plan'!$E$106="Activate",IF(AND(H$3>='SW Plan'!$G$106,H$3<'SW Plan'!$H$106+1),('SW Plan'!$H$111+'SW Plan'!$H$115)/('SW Plan'!$H$106-'SW Plan'!$G$106+1),0),0))+G80+H79,H78) -> 0 | I80: =MIN((IF('SW Plan'!$E$106="Activate",IF(AND(I$3>='SW Plan'!$G$106,I$3<'SW Plan'!$H$106+1),('SW Plan'!$H$111+'SW Plan'!$H$115)/('SW Plan'!$H$106-'SW Plan'!$G$106+1),0),0))+H80+I79,I78) -> 0 | J80: =MIN((IF('SW Plan'!$E$106="Activate",IF(AND(J$3>='SW Plan'!$G$106,J$3<'SW Plan'!$H$106+1),('SW Plan'!$H$111+'SW Plan'!$H$115)/('SW Plan'!$H$106-'SW Plan'!$G$106+1),0),0))+I80+J79,J78) -> 0 | K80: =MIN((IF('SW Plan'!$E$106="Activate",IF(AND(K$3>='SW Plan'!$G$106,K$3<'SW Plan'!$H$106+1),('SW Plan'!$H$111+'SW Plan'!$H$115)/('SW Plan'!$H$106-'SW Plan'!$G$106+1),0),0))+J80+K79,K78) -> 0 | L80: =MIN((IF('SW Plan'!$E$106="Activate",IF(AND(L$3>='SW Plan'!$G$106,L$3<'SW Plan'!$H$106+1),('SW Plan'!$H$111+'SW Plan'!$H$115)/('SW Plan'!$H$106-'SW Plan'!$G$106+1),0),0))+K80+L79,L78) -> 0 | M80: =MIN((IF('SW Plan'!$E$106="Activate",IF(AND(M$3>='SW Plan'!$G$106,M$3<'SW Plan'!$H$106+1),('SW Plan'!$H$111+'SW Plan'!$H$115)/('SW Plan'!$H$106-'SW Plan'!$G$106+1),0),0))+L80+M79,M78) -> 0 | N80: =MIN((IF('SW Plan'!$E$106="Activate",IF(AND(N$3>='SW Plan'!$G$106,N$3<'SW Plan'!$H$106+1),('SW Plan'!$H$111+'SW Plan'!$H$115)/('SW Plan'!$H$106-'SW Plan'!$G$106+1),0),0))+M80+N79,N78) -> 0 | O80: =MIN((IF('SW Plan'!$E$106="Activate",IF(AND(O$3>='SW Plan'!$G$106,O$3<'SW Plan'!$H$106+1),('SW Plan'!$H$111+'SW Plan'!$H$115)/('SW Plan'!$H$106-'SW Plan'!$G$106+1),0),0))+N80+O79,O78) -> 0 | P80: =MIN((IF('SW Plan'!$E$106="Activate",IF(AND(P$3>='SW Plan'!$G$106,P$3<'SW Plan'!$H$106+1),('SW Plan'!$H$111+'SW Plan'!$H$115)/('SW Plan'!$H$106-'SW Plan'!$G$106+1),0),0))+O80+P79,P78) -> 0
D81: Waste collected | E81: Tons/ day | F81: =F80*F6/1000 -> 0 | G81: 0 | H81: 0 | I81: 0 | J81: 0 | K81: 0 | L81: 0 | M81: 0 | N81: 0 | O81: 0 | P81: 0
D82: Total waste collected
D83: MSW collected | E83: Tons/ day | F83: =F81+F77 -> 0 | G83: =MIN(G81+G77,G7) -> 0 | H83: 0 | I83: 0 | J83: 0 | K83: 0 | L83: 0 | M83: 0 | N83: 0 | O83: 0 | P83: 0
D84: Secondary storage capacity
D85: Secondary storage bins
D86: Storage capacity at bins | E86: Tons/ day | F86: ='WSS info'!$G$394 -> 0 | G86: =F86+IF('SW Plan'!$E$106="Activate",IF(AND(G$3>='SW Plan'!$G$106,G$3<'SW Plan'!$H$106+1),'SW Plan'!$H$114/('SW Plan'!$H$106-'SW Plan'!$G$106+1),0)) -> 0 | H86: =G86+IF('SW Plan'!$E$106="Activate",IF(AND(H$3>='SW Plan'!$G$106,H$3<'SW Plan'!$H$106+1),'SW Plan'!$H$114/('SW Plan'!$H$106-'SW Plan'!$G$106+1),0)) -> 0 | I86: =H86+IF('SW Plan'!$E$106="Activate",IF(AND(I$3>='SW Plan'!$G$106,I$3<'SW Plan'!$H$106+1),'SW Plan'!$H$114/('SW Plan'!$H$106-'SW Plan'!$G$106+1),0)) -> 0 | J86: =I86+IF('SW Plan'!$E$106="Activate",IF(AND(J$3>='SW Plan'!$G$106,J$3<'SW Plan'!$H$106+1),'SW Plan'!$H$114/('SW Plan'!$H$106-'SW Plan'!$G$106+1),0)) -> 0 | K86: =J86+IF('SW Plan'!$E$106="Activate",IF(AND(K$3>='SW Plan'!$G$106,K$3<'SW Plan'!$H$106+1),'SW Plan'!$H$114/('SW Plan'!$H$106-'SW Plan'!$G$106+1),0)) -> 0 | L86: =K86+IF('SW Plan'!$E$106="Activate",IF(AND(L$3>='SW Plan'!$G$106,L$3<'SW Plan'!$H$106+1),'SW Plan'!$H$114/('SW Plan'!$H$106-'SW Plan'!$G$106+1),0)) -> 0 | M86: =L86+IF('SW Plan'!$E$106="Activate",IF(AND(M$3>='SW Plan'!$G$106,M$3<'SW Plan'!$H$106+1),'SW Plan'!$H$114/('SW Plan'!$H$106-'SW Plan'!$G$106+1),0)) -> 0 | N86: =M86+IF('SW Plan'!$E$106="Activate",IF(AND(N$3>='SW Plan'!$G$106,N$3<'SW Plan'!$H$106+1),'SW Plan'!$H$114/('SW Plan'!$H$106-'SW Plan'!$G$106+1),0)) -> 0 | O86: =N86+IF('SW Plan'!$E$106="Activate",IF(AND(O$3>='SW Plan'!$G$106,O$3<'SW Plan'!$H$106+1),'SW Plan'!$H$114/('SW Plan'!$H$106-'SW Plan'!$G$106+1),0)) -> 0 | P86: =O86+IF('SW Plan'!$E$106="Activate",IF(AND(P$3>='SW Plan'!$G$106,P$3<'SW Plan'!$H$106+1),'SW Plan'!$H$114/('SW Plan'!$H$106-'SW Plan'!$G$106+1),0)) -> 0
D87: Actual quantity of waste collection permissible with this storage capacity | E87: 1 | F87: =F86/$E$87 -> 0 | G87: =G86/$E$87 -> 0 | H87: =H86/$E$87 -> 0 | I87: 0 | J87: 0 | K87: 0 | L87: 0 | M87: 0 | N87: 0 | O87: 0 | P87: 0
D88: Transfer stations
D89: Storage capacity at the transfer stations | E89: Tons/ day | F89: ='SW Plan'!$H$166 -> 0 | G89: =F89+IF('SW Plan'!$E$164="Activate",IF(G$73='SW Plan'!$H$164,'SW Plan'!$H$168,0)) -> 0 | H89: =G89+IF('SW Plan'!$E$164="Activate",IF(H$73='SW Plan'!$H$164,'SW Plan'!$H$168,0)) -> 0 | I89: =H89+IF('SW Plan'!$E$164="Activate",IF(I$73='SW Plan'!$H$164,'SW Plan'!$H$168,0)) -> 0 | J89: =I89+IF('SW Plan'!$E$164="Activate",IF(J$73='SW Plan'!$H$164,'SW Plan'!$H$168,0)) -> 0 | K89: =J89+IF('SW Plan'!$E$164="Activate",IF(K$73='SW Plan'!$H$164,'SW Plan'!$H$168,0)) -> 0 | L89: =K89+IF('SW Plan'!$E$164="Activate",IF(L$73='SW Plan'!$H$164,'SW Plan'!$H$168,0)) -> 0 | M89: =L89+IF('SW Plan'!$E$164="Activate",IF(M$73='SW Plan'!$H$164,'SW Plan'!$H$168,0)) -> 0 | N89: =M89+IF('SW Plan'!$E$164="Activate",IF(N$73='SW Plan'!$H$164,'SW Plan'!$H$168,0)) -> 0 | O89: =N89+IF('SW Plan'!$E$164="Activate",IF(O$73='SW Plan'!$H$164,'SW Plan'!$H$168,0)) -> 0 | P89: =O89+IF('SW Plan'!$E$164="Activate",IF(P$73='SW Plan'!$H$164,'SW Plan'!$H$168,0)) -> 0
D90: Permissible waste that can be stored in a day | E90: =E87 -> 1 | F90: =F89/$E$90 -> 0 | G90: =G89/$E$90 -> 0 | H90: 0 | I90: 0 | J90: 0 | K90: 0 | L90: 0 | M90: 0 | N90: 0 | O90: 0 | P90: 0
D91: Total storage capacity
D92: Total storage capacity | E92: Tons/ day | F92: =F90+F87 -> 0 | G92: =G90+G87 -> 0 | H92: =H90+H87 -> 0 | I92: 0 | J92: 0 | K92: 0 | L92: 0 | M92: 0 | N92: 0 | O92: 0 | P92: 0
D93: Amount of MSW stored safely | E93: Tons/ day | F93: =MIN(F92,F83) -> 0 | G93: =MIN(G92,G83) -> 0 | H93: 0 | I93: 0 | J93: 0 | K93: 0 | L93: 0 | M93: 0 | N93: 0 | O93: 0 | P93: 0
D94: ='Summary of PIP'!C167 -> Adequacy of solid waste storage capacity | F94: =IFERROR(F92/F83,0) -> 0 | G94: =IFERROR(G92/G83,0) -> 0 | H94: 0 | I94: 0 | J94: 0 | K94: 0 | L94: 0 | M94: 0 | N94: 0 | O94: 0 | P94: 0
D95: Waste transportation
D96: Old vehicles number of trips
D97: - Three wheeler auto tippers | E97: ='WSS info'!$F413*'WSS info'!$G413 -> 0 | F97: ='SW Plan'!$G127 -> 0 | G97: =IF('SW Plan'!$E$123="Activate",IF(AND(G$3>='SW Plan'!$G$123,G$3<'SW Plan'!$H$123+1),F97+(('SW Plan'!$H127-'SW Plan'!$G127)/('SW Plan'!$H$123-'SW Plan'!$G$123+1)),F97),F97) -> 0 | H97: =IF('SW Plan'!$E$123="Activate",IF(AND(H$3>='SW Plan'!$G$123,H$3<'SW Plan'!$H$123+1),G97+(('SW Plan'!$H127-'SW Plan'!$G127)/('SW Plan'!$H$123-'SW Plan'!$G$123+1)),G97),G97) -> 0 | I97: =IF('SW Plan'!$E$123="Activate",IF(AND(I$3>='SW Plan'!$G$123,I$3<'SW Plan'!$H$123+1),H97+(('SW Plan'!$H127-'SW Plan'!$G127)/('SW Plan'!$H$123-'SW Plan'!$G$123+1)),H97),H97) -> 0 | J97: =IF('SW Plan'!$E$123="Activate",IF(AND(J$3>='SW Plan'!$G$123,J$3<'SW Plan'!$H$123+1),I97+(('SW Plan'!$H127-'SW Plan'!$G127)/('SW Plan'!$H$123-'SW Plan'!$G$123+1)),I97),I97) -> 0 | K97: =IF('SW Plan'!$E$123="Activate",IF(AND(K$3>='SW Plan'!$G$123,K$3<'SW Plan'!$H$123+1),J97+(('SW Plan'!$H127-'SW Plan'!$G127)/('SW Plan'!$H$123-'SW Plan'!$G$123+1)),J97),J97) -> 0 | L97: =IF('SW Plan'!$E$123="Activate",IF(AND(L$3>='SW Plan'!$G$123,L$3<'SW Plan'!$H$123+1),K97+(('SW Plan'!$H127-'SW Plan'!$G127)/('SW Plan'!$H$123-'SW Plan'!$G$123+1)),K97),K97) -> 0 | M97: =IF('SW Plan'!$E$123="Activate",IF(AND(M$3>='SW Plan'!$G$123,M$3<'SW Plan'!$H$123+1),L97+(('SW Plan'!$H127-'SW Plan'!$G127)/('SW Plan'!$H$123-'SW Plan'!$G$123+1)),L97),L97) -> 0 | N97: =IF('SW Plan'!$E$123="Activate",IF(AND(N$3>='SW Plan'!$G$123,N$3<'SW Plan'!$H$123+1),M97+(('SW Plan'!$H127-'SW Plan'!$G127)/('SW Plan'!$H$123-'SW Plan'!$G$123+1)),M97),M97) -> 0 | O97: =IF('SW Plan'!$E$123="Activate",IF(AND(O$3>='SW Plan'!$G$123,O$3<'SW Plan'!$H$123+1),N97+(('SW Plan'!$H127-'SW Plan'!$G127)/('SW Plan'!$H$123-'SW Plan'!$G$123+1)),N97),N97) -> 0 | P97: =IF('SW Plan'!$E$123="Activate",IF(AND(P$3>='SW Plan'!$G$123,P$3<'SW Plan'!$H$123+1),O97+(('SW Plan'!$H127-'SW Plan'!$G127)/('SW Plan'!$H$123-'SW Plan'!$G$123+1)),O97),O97) -> 0
D98: - Tipper trucks | E98: ='WSS info'!$F414*'WSS info'!$G414 -> 0 | F98: ='SW Plan'!$G128 -> 0 | G98: =IF('SW Plan'!$E$123="Activate",IF(AND(G$3>='SW Plan'!$G$123,G$3<'SW Plan'!$H$123+1),F98+(('SW Plan'!$H128-'SW Plan'!$G128)/('SW Plan'!$H$123-'SW Plan'!$G$123+1)),F98),F98) -> 0 | H98: =IF('SW Plan'!$E$123="Activate",IF(AND(H$3>='SW Plan'!$G$123,H$3<'SW Plan'!$H$123+1),G98+(('SW Plan'!$H128-'SW Plan'!$G128)/('SW Plan'!$H$123-'SW Plan'!$G$123+1)),G98),G98) -> 0 | I98: =IF('SW Plan'!$E$123="Activate",IF(AND(I$3>='SW Plan'!$G$123,I$3<'SW Plan'!$H$123+1),H98+(('SW Plan'!$H128-'SW Plan'!$G128)/('SW Plan'!$H$123-'SW Plan'!$G$123+1)),H98),H98) -> 0 | J98: =IF('SW Plan'!$E$123="Activate",IF(AND(J$3>='SW Plan'!$G$123,J$3<'SW Plan'!$H$123+1),I98+(('SW Plan'!$H128-'SW Plan'!$G128)/('SW Plan'!$H$123-'SW Plan'!$G$123+1)),I98),I98) -> 0 | K98: =IF('SW Plan'!$E$123="Activate",IF(AND(K$3>='SW Plan'!$G$123,K$3<'SW Plan'!$H$123+1),J98+(('SW Plan'!$H128-'SW Plan'!$G128)/('SW Plan'!$H$123-'SW Plan'!$G$123+1)),J98),J98) -> 0 | L98: =IF('SW Plan'!$E$123="Activate",IF(AND(L$3>='SW Plan'!$G$123,L$3<'SW Plan'!$H$123+1),K98+(('SW Plan'!$H128-'SW Plan'!$G128)/('SW Plan'!$H$123-'SW Plan'!$G$123+1)),K98),K98) -> 0 | M98: =IF('SW Plan'!$E$123="Activate",IF(AND(M$3>='SW Plan'!$G$123,M$3<'SW Plan'!$H$123+1),L98+(('SW Plan'!$H128-'SW Plan'!$G128)/('SW Plan'!$H$123-'SW Plan'!$G$123+1)),L98),L98) -> 0 | N98: =IF('SW Plan'!$E$123="Activate",IF(AND(N$3>='SW Plan'!$G$123,N$3<'SW Plan'!$H$123+1),M98+(('SW Plan'!$H128-'SW Plan'!$G128)/('SW Plan'!$H$123-'SW Plan'!$G$123+1)),M98),M98) -> 0 | O98: =IF('SW Plan'!$E$123="Activate",IF(AND(O$3>='SW Plan'!$G$123,O$3<'SW Plan'!$H$123+1),N98+(('SW Plan'!$H128-'SW Plan'!$G128)/('SW Plan'!$H$123-'SW Plan'!$G$123+1)),N98),N98) -> 0 | P98: =IF('SW Plan'!$E$123="Activate",IF(AND(P$3>='SW Plan'!$G$123,P$3<'SW Plan'!$H$123+1),O98+(('SW Plan'!$H128-'SW Plan'!$G128)/('SW Plan'!$H$123-'SW Plan'!$G$123+1)),O98),O98) -> 0
D99: - Tractor trailer | E99: ='WSS info'!$F415*'WSS info'!$G415 -> 0 | F99: ='SW Plan'!$G129 -> 0 | G99: =IF('SW Plan'!$E$123="Activate",IF(AND(G$3>='SW Plan'!$G$123,G$3<'SW Plan'!$H$123+1),F99+(('SW Plan'!$H129-'SW Plan'!$G129)/('SW Plan'!$H$123-'SW Plan'!$G$123+1)),F99),F99) -> 0 | H99: =IF('SW Plan'!$E$123="Activate",IF(AND(H$3>='SW Plan'!$G$123,H$3<'SW Plan'!$H$123+1),G99+(('SW Plan'!$H129-'SW Plan'!$G129)/('SW Plan'!$H$123-'SW Plan'!$G$123+1)),G99),G99) -> 0 | I99: =IF('SW Plan'!$E$123="Activate",IF(AND(I$3>='SW Plan'!$G$123,I$3<'SW Plan'!$H$123+1),H99+(('SW Plan'!$H129-'SW Plan'!$G129)/('SW Plan'!$H$123-'SW Plan'!$G$123+1)),H99),H99) -> 0 | J99: =IF('SW Plan'!$E$123="Activate",IF(AND(J$3>='SW Plan'!$G$123,J$3<'SW Plan'!$H$123+1),I99+(('SW Plan'!$H129-'SW Plan'!$G129)/('SW Plan'!$H$123-'SW Plan'!$G$123+1)),I99),I99) -> 0 | K99: =IF('SW Plan'!$E$123="Activate",IF(AND(K$3>='SW Plan'!$G$123,K$3<'SW Plan'!$H$123+1),J99+(('SW Plan'!$H129-'SW Plan'!$G129)/('SW Plan'!$H$123-'SW Plan'!$G$123+1)),J99),J99) -> 0 | L99: =IF('SW Plan'!$E$123="Activate",IF(AND(L$3>='SW Plan'!$G$123,L$3<'SW Plan'!$H$123+1),K99+(('SW Plan'!$H129-'SW Plan'!$G129)/('SW Plan'!$H$123-'SW Plan'!$G$123+1)),K99),K99) -> 0 | M99: =IF('SW Plan'!$E$123="Activate",IF(AND(M$3>='SW Plan'!$G$123,M$3<'SW Plan'!$H$123+1),L99+(('SW Plan'!$H129-'SW Plan'!$G129)/('SW Plan'!$H$123-'SW Plan'!$G$123+1)),L99),L99) -> 0 | N99: =IF('SW Plan'!$E$123="Activate",IF(AND(N$3>='SW Plan'!$G$123,N$3<'SW Plan'!$H$123+1),M99+(('SW Plan'!$H129-'SW Plan'!$G129)/('SW Plan'!$H$123-'SW Plan'!$G$123+1)),M99),M99) -> 0 | O99: =IF('SW Plan'!$E$123="Activate",IF(AND(O$3>='SW Plan'!$G$123,O$3<'SW Plan'!$H$123+1),N99+(('SW Plan'!$H129-'SW Plan'!$G129)/('SW Plan'!$H$123-'SW Plan'!$G$123+1)),N99),N99) -> 0 | P99: =IF('SW Plan'!$E$123="Activate",IF(AND(P$3>='SW Plan'!$G$123,P$3<'SW Plan'!$H$123+1),O99+(('SW Plan'!$H129-'SW Plan'!$G129)/('SW Plan'!$H$123-'SW Plan'!$G$123+1)),O99),O99) -> 0
D100: - Mini lorries | E100: ='WSS info'!$F416*'WSS info'!$G416 -> 0 | F100: ='SW Plan'!$G130 -> 0 | G100: =IF('SW Plan'!$E$123="Activate",IF(AND(G$3>='SW Plan'!$G$123,G$3<'SW Plan'!$H$123+1),F100+(('SW Plan'!$H130-'SW Plan'!$G130)/('SW Plan'!$H$123-'SW Plan'!$G$123+1)),F100),F100) -> 0 | H100: =IF('SW Plan'!$E$123="Activate",IF(AND(H$3>='SW Plan'!$G$123,H$3<'SW Plan'!$H$123+1),G100+(('SW Plan'!$H130-'SW Plan'!$G130)/('SW Plan'!$H$123-'SW Plan'!$G$123+1)),G100),G100) -> 0 | I100: =IF('SW Plan'!$E$123="Activate",IF(AND(I$3>='SW Plan'!$G$123,I$3<'SW Plan'!$H$123+1),H100+(('SW Plan'!$H130-'SW Plan'!$G130)/('SW Plan'!$H$123-'SW Plan'!$G$123+1)),H100),H100) -> 0 | J100: =IF('SW Plan'!$E$123="Activate",IF(AND(J$3>='SW Plan'!$G$123,J$3<'SW Plan'!$H$123+1),I100+(('SW Plan'!$H130-'SW Plan'!$G130)/('SW Plan'!$H$123-'SW Plan'!$G$123+1)),I100),I100) -> 0 | K100: =IF('SW Plan'!$E$123="Activate",IF(AND(K$3>='SW Plan'!$G$123,K$3<'SW Plan'!$H$123+1),J100+(('SW Plan'!$H130-'SW Plan'!$G130)/('SW Plan'!$H$123-'SW Plan'!$G$123+1)),J100),J100) -> 0 | L100: =IF('SW Plan'!$E$123="Activate",IF(AND(L$3>='SW Plan'!$G$123,L$3<'SW Plan'!$H$123+1),K100+(('SW Plan'!$H130-'SW Plan'!$G130)/('SW Plan'!$H$123-'SW Plan'!$G$123+1)),K100),K100) -> 0 | M100: =IF('SW Plan'!$E$123="Activate",IF(AND(M$3>='SW Plan'!$G$123,M$3<'SW Plan'!$H$123+1),L100+(('SW Plan'!$H130-'SW Plan'!$G130)/('SW Plan'!$H$123-'SW Plan'!$G$123+1)),L100),L100) -> 0 | N100: =IF('SW Plan'!$E$123="Activate",IF(AND(N$3>='SW Plan'!$G$123,N$3<'SW Plan'!$H$123+1),M100+(('SW Plan'!$H130-'SW Plan'!$G130)/('SW Plan'!$H$123-'SW Plan'!$G$123+1)),M100),M100) -> 0 | O100: =IF('SW Plan'!$E$123="Activate",IF(AND(O$3>='SW Plan'!$G$123,O$3<'SW Plan'!$H$123+1),N100+(('SW Plan'!$H130-'SW Plan'!$G130)/('SW Plan'!$H$123-'SW Plan'!$G$123+1)),N100),N100) -> 0 | P100: =IF('SW Plan'!$E$123="Activate",IF(AND(P$3>='SW Plan'!$G$123,P$3<'SW Plan'!$H$123+1),O100+(('SW Plan'!$H130-'SW Plan'!$G130)/('SW Plan'!$H$123-'SW Plan'!$G$123+1)),O100),O100) -> 0
D101: - Dumper placers | E101: ='WSS info'!$F417*'WSS info'!$G417 -> 0 | F101: ='SW Plan'!$G131 -> 0 | G101: =IF('SW Plan'!$E$123="Activate",IF(AND(G$3>='SW Plan'!$G$123,G$3<'SW Plan'!$H$123+1),F101+(('SW Plan'!$H131-'SW Plan'!$G131)/('SW Plan'!$H$123-'SW Plan'!$G$123+1)),F101),F101) -> 0 | H101: =IF('SW Plan'!$E$123="Activate",IF(AND(H$3>='SW Plan'!$G$123,H$3<'SW Plan'!$H$123+1),G101+(('SW Plan'!$H131-'SW Plan'!$G131)/('SW Plan'!$H$123-'SW Plan'!$G$123+1)),G101),G101) -> 0 | I101: =IF('SW Plan'!$E$123="Activate",IF(AND(I$3>='SW Plan'!$G$123,I$3<'SW Plan'!$H$123+1),H101+(('SW Plan'!$H131-'SW Plan'!$G131)/('SW Plan'!$H$123-'SW Plan'!$G$123+1)),H101),H101) -> 0 | J101: =IF('SW Plan'!$E$123="Activate",IF(AND(J$3>='SW Plan'!$G$123,J$3<'SW Plan'!$H$123+1),I101+(('SW Plan'!$H131-'SW Plan'!$G131)/('SW Plan'!$H$123-'SW Plan'!$G$123+1)),I101),I101) -> 0 | K101: =IF('SW Plan'!$E$123="Activate",IF(AND(K$3>='SW Plan'!$G$123,K$3<'SW Plan'!$H$123+1),J101+(('SW Plan'!$H131-'SW Plan'!$G131)/('SW Plan'!$H$123-'SW Plan'!$G$123+1)),J101),J101) -> 0 | L101: =IF('SW Plan'!$E$123="Activate",IF(AND(L$3>='SW Plan'!$G$123,L$3<'SW Plan'!$H$123+1),K101+(('SW Plan'!$H131-'SW Plan'!$G131)/('SW Plan'!$H$123-'SW Plan'!$G$123+1)),K101),K101) -> 0 | M101: =IF('SW Plan'!$E$123="Activate",IF(AND(M$3>='SW Plan'!$G$123,M$3<'SW Plan'!$H$123+1),L101+(('SW Plan'!$H131-'SW Plan'!$G131)/('SW Plan'!$H$123-'SW Plan'!$G$123+1)),L101),L101) -> 0 | N101: =IF('SW Plan'!$E$123="Activate",IF(AND(N$3>='SW Plan'!$G$123,N$3<'SW Plan'!$H$123+1),M101+(('SW Plan'!$H131-'SW Plan'!$G131)/('SW Plan'!$H$123-'SW Plan'!$G$123+1)),M101),M101) -> 0 | O101: =IF('SW Plan'!$E$123="Activate",IF(AND(O$3>='SW Plan'!$G$123,O$3<'SW Plan'!$H$123+1),N101+(('SW Plan'!$H131-'SW Plan'!$G131)/('SW Plan'!$H$123-'SW Plan'!$G$123+1)),N101),N101) -> 0 | P101: =IF('SW Plan'!$E$123="Activate",IF(AND(P$3>='SW Plan'!$G$123,P$3<'SW Plan'!$H$123+1),O101+(('SW Plan'!$H131-'SW Plan'!$G131)/('SW Plan'!$H$123-'SW Plan'!$G$123+1)),O101),O101) -> 0
D102: - Trucks | E102: ='WSS info'!$F418*'WSS info'!$G418 -> 0 | F102: ='SW Plan'!$G132 -> 0 | G102: =IF('SW Plan'!$E$123="Activate",IF(AND(G$3>='SW Plan'!$G$123,G$3<'SW Plan'!$H$123+1),F102+(('SW Plan'!$H132-'SW Plan'!$G132)/('SW Plan'!$H$123-'SW Plan'!$G$123+1)),F102),F102) -> 0 | H102: =IF('SW Plan'!$E$123="Activate",IF(AND(H$3>='SW Plan'!$G$123,H$3<'SW Plan'!$H$123+1),G102+(('SW Plan'!$H132-'SW Plan'!$G132)/('SW Plan'!$H$123-'SW Plan'!$G$123+1)),G102),G102) -> 0 | I102: =IF('SW Plan'!$E$123="Activate",IF(AND(I$3>='SW Plan'!$G$123,I$3<'SW Plan'!$H$123+1),H102+(('SW Plan'!$H132-'SW Plan'!$G132)/('SW Plan'!$H$123-'SW Plan'!$G$123+1)),H102),H102) -> 0 | J102: =IF('SW Plan'!$E$123="Activate",IF(AND(J$3>='SW Plan'!$G$123,J$3<'SW Plan'!$H$123+1),I102+(('SW Plan'!$H132-'SW Plan'!$G132)/('SW Plan'!$H$123-'SW Plan'!$G$123+1)),I102),I102) -> 0 | K102: =IF('SW Plan'!$E$123="Activate",IF(AND(K$3>='SW Plan'!$G$123,K$3<'SW Plan'!$H$123+1),J102+(('SW Plan'!$H132-'SW Plan'!$G132)/('SW Plan'!$H$123-'SW Plan'!$G$123+1)),J102),J102) -> 0 | L102: =IF('SW Plan'!$E$123="Activate",IF(AND(L$3>='SW Plan'!$G$123,L$3<'SW Plan'!$H$123+1),K102+(('SW Plan'!$H132-'SW Plan'!$G132)/('SW Plan'!$H$123-'SW Plan'!$G$123+1)),K102),K102) -> 0 | M102: =IF('SW Plan'!$E$123="Activate",IF(AND(M$3>='SW Plan'!$G$123,M$3<'SW Plan'!$H$123+1),L102+(('SW Plan'!$H132-'SW Plan'!$G132)/('SW Plan'!$H$123-'SW Plan'!$G$123+1)),L102),L102) -> 0 | N102: =IF('SW Plan'!$E$123="Activate",IF(AND(N$3>='SW Plan'!$G$123,N$3<'SW Plan'!$H$123+1),M102+(('SW Plan'!$H132-'SW Plan'!$G132)/('SW Plan'!$H$123-'SW Plan'!$G$123+1)),M102),M102) -> 0 | O102: =IF('SW Plan'!$E$123="Activate",IF(AND(O$3>='SW Plan'!$G$123,O$3<'SW Plan'!$H$123+1),N102+(('SW Plan'!$H132-'SW Plan'!$G132)/('SW Plan'!$H$123-'SW Plan'!$G$123+1)),N102),N102) -> 0 | P102: =IF('SW Plan'!$E$123="Activate",IF(AND(P$3>='SW Plan'!$G$123,P$3<'SW Plan'!$H$123+1),O102+(('SW Plan'!$H132-'SW Plan'!$G132)/('SW Plan'!$H$123-'SW Plan'!$G$123+1)),O102),O102) -> 0
D103: Increase in no. of trips | G103: =SUM(G97:G102)-SUM(F97:F102) -> 0 | H103: =SUM(H97:H102)-SUM(G97:G102) -> 0 | I103: 0 | J103: 0 | K103: 0 | L103: 0 | M103: 0 | N103: 0 | O103: 0 | P103: 0
D104: Waste generated from old vehicles | F104: =SUMPRODUCT($E$97:$E$102,F97:F102) -> 0 | G104: =SUMPRODUCT($E$97:$E$102,G97:G102) -> 0 | H104: 0 | I104: 0 | J104: 0 | K104: 0 | L104: 0 | M104: 0 | N104: 0 | O104: 0 | P104: 0
D105: New vehicles
D106: - Three wheeler auto tippers | F106: 0 | G106: =F106+IF('SW Plan'!$E$146="Activate",IF(AND(G$3>='SW Plan'!$G$146,G$3<'SW Plan'!$H$146+1),('SW Plan'!$G149*'SW Plan'!$H149*'SW Plan'!$H156)/('SW Plan'!$H$146-'SW Plan'!$G$146+1),0),0) -> 0 | H106: =G106+IF('SW Plan'!$E$146="Activate",IF(AND(H$3>='SW Plan'!$G$146,H$3<'SW Plan'!$H$146+1),('SW Plan'!$G149*'SW Plan'!$H149*'SW Plan'!$H156)/('SW Plan'!$H$146-'SW Plan'!$G$146+1),0),0) -> 0 | I106: =H106+IF('SW Plan'!$E$146="Activate",IF(AND(I$3>='SW Plan'!$G$146,I$3<'SW Plan'!$H$146+1),('SW Plan'!$G149*'SW Plan'!$H149*'SW Plan'!$H156)/('SW Plan'!$H$146-'SW Plan'!$G$146+1),0),0) -> 0 | J106: =I106+IF('SW Plan'!$E$146="Activate",IF(AND(J$3>='SW Plan'!$G$146,J$3<'SW Plan'!$H$146+1),('SW Plan'!$G149*'SW Plan'!$H149*'SW Plan'!$H156)/('SW Plan'!$H$146-'SW Plan'!$G$146+1),0),0) -> 0 | K106: =J106+IF('SW Plan'!$E$146="Activate",IF(AND(K$3>='SW Plan'!$G$146,K$3<'SW Plan'!$H$146+1),('SW Plan'!$G149*'SW Plan'!$H149*'SW Plan'!$H156)/('SW Plan'!$H$146-'SW Plan'!$G$146+1),0),0) -> 0 | L106: =K106+IF('SW Plan'!$E$146="Activate",IF(AND(L$3>='SW Plan'!$G$146,L$3<'SW Plan'!$H$146+1),('SW Plan'!$G149*'SW Plan'!$H149*'SW Plan'!$H156)/('SW Plan'!$H$146-'SW Plan'!$G$146+1),0),0) -> 0 | M106: =L106+IF('SW Plan'!$E$146="Activate",IF(AND(M$3>='SW Plan'!$G$146,M$3<'SW Plan'!$H$146+1),('SW Plan'!$G149*'SW Plan'!$H149*'SW Plan'!$H156)/('SW Plan'!$H$146-'SW Plan'!$G$146+1),0),0) -> 0 | N106: =M106+IF('SW Plan'!$E$146="Activate",IF(AND(N$3>='SW Plan'!$G$146,N$3<'SW Plan'!$H$146+1),('SW Plan'!$G149*'SW Plan'!$H149*'SW Plan'!$H156)/('SW Plan'!$H$146-'SW Plan'!$G$146+1),0),0) -> 0 | O106: =N106+IF('SW Plan'!$E$146="Activate",IF(AND(O$3>='SW Plan'!$G$146,O$3<'SW Plan'!$H$146+1),('SW Plan'!$G149*'SW Plan'!$H149*'SW Plan'!$H156)/('SW Plan'!$H$146-'SW Plan'!$G$146+1),0),0) -> 0 | P106: =O106+IF('SW Plan'!$E$146="Activate",IF(AND(P$3>='SW Plan'!$G$146,P$3<'SW Plan'!$H$146+1),('SW Plan'!$G149*'SW Plan'!$H149*'SW Plan'!$H156)/('SW Plan'!$H$146-'SW Plan'!$G$146+1),0),0) -> 0
D107: - Tipper trucks | F107: 0 | G107: =F107+IF('SW Plan'!$E$146="Activate",IF(AND(G$3>='SW Plan'!$G$146,G$3<'SW Plan'!$H$146+1),('SW Plan'!$G150*'SW Plan'!$H150*'SW Plan'!$H157)/('SW Plan'!$H$146-'SW Plan'!$G$146+1),0),0) -> 0 | H107: =G107+IF('SW Plan'!$E$146="Activate",IF(AND(H$3>='SW Plan'!$G$146,H$3<'SW Plan'!$H$146+1),('SW Plan'!$G150*'SW Plan'!$H150*'SW Plan'!$H157)/('SW Plan'!$H$146-'SW Plan'!$G$146+1),0),0) -> 0 | I107: =H107+IF('SW Plan'!$E$146="Activate",IF(AND(I$3>='SW Plan'!$G$146,I$3<'SW Plan'!$H$146+1),('SW Plan'!$G150*'SW Plan'!$H150*'SW Plan'!$H157)/('SW Plan'!$H$146-'SW Plan'!$G$146+1),0),0) -> 0 | J107: =I107+IF('SW Plan'!$E$146="Activate",IF(AND(J$3>='SW Plan'!$G$146,J$3<'SW Plan'!$H$146+1),('SW Plan'!$G150*'SW Plan'!$H150*'SW Plan'!$H157)/('SW Plan'!$H$146-'SW Plan'!$G$146+1),0),0) -> 0 | K107: =J107+IF('SW Plan'!$E$146="Activate",IF(AND(K$3>='SW Plan'!$G$146,K$3<'SW Plan'!$H$146+1),('SW Plan'!$G150*'SW Plan'!$H150*'SW Plan'!$H157)/('SW Plan'!$H$146-'SW Plan'!$G$146+1),0),0) -> 0 | L107: =K107+IF('SW Plan'!$E$146="Activate",IF(AND(L$3>='SW Plan'!$G$146,L$3<'SW Plan'!$H$146+1),('SW Plan'!$G150*'SW Plan'!$H150*'SW Plan'!$H157)/('SW Plan'!$H$146-'SW Plan'!$G$146+1),0),0) -> 0 | M107: =L107+IF('SW Plan'!$E$146="Activate",IF(AND(M$3>='SW Plan'!$G$146,M$3<'SW Plan'!$H$146+1),('SW Plan'!$G150*'SW Plan'!$H150*'SW Plan'!$H157)/('SW Plan'!$H$146-'SW Plan'!$G$146+1),0),0) -> 0 | N107: =M107+IF('SW Plan'!$E$146="Activate",IF(AND(N$3>='SW Plan'!$G$146,N$3<'SW Plan'!$H$146+1),('SW Plan'!$G150*'SW Plan'!$H150*'SW Plan'!$H157)/('SW Plan'!$H$146-'SW Plan'!$G$146+1),0),0) -> 0 | O107: =N107+IF('SW Plan'!$E$146="Activate",IF(AND(O$3>='SW Plan'!$G$146,O$3<'SW Plan'!$H$146+1),('SW Plan'!$G150*'SW Plan'!$H150*'SW Plan'!$H157)/('SW Plan'!$H$146-'SW Plan'!$G$146+1),0),0) -> 0 | P107: =O107+IF('SW Plan'!$E$146="Activate",IF(AND(P$3>='SW Plan'!$G$146,P$3<'SW Plan'!$H$146+1),('SW Plan'!$G150*'SW Plan'!$H150*'SW Plan'!$H157)/('SW Plan'!$H$146-'SW Plan'!$G$146+1),0),0) -> 0
D108: - Tractor trailer | F108: 0 | G108: =F108+IF('SW Plan'!$E$146="Activate",IF(AND(G$3>='SW Plan'!$G$146,G$3<'SW Plan'!$H$146+1),('SW Plan'!$G151*'SW Plan'!$H151*'SW Plan'!$H158)/('SW Plan'!$H$146-'SW Plan'!$G$146+1),0),0) -> 0 | H108: =G108+IF('SW Plan'!$E$146="Activate",IF(AND(H$3>='SW Plan'!$G$146,H$3<'SW Plan'!$H$146+1),('SW Plan'!$G151*'SW Plan'!$H151*'SW Plan'!$H158)/('SW Plan'!$H$146-'SW Plan'!$G$146+1),0),0) -> 0 | I108: =H108+IF('SW Plan'!$E$146="Activate",IF(AND(I$3>='SW Plan'!$G$146,I$3<'SW Plan'!$H$146+1),('SW Plan'!$G151*'SW Plan'!$H151*'SW Plan'!$H158)/('SW Plan'!$H$146-'SW Plan'!$G$146+1),0),0) -> 0 | J108: =I108+IF('SW Plan'!$E$146="Activate",IF(AND(J$3>='SW Plan'!$G$146,J$3<'SW Plan'!$H$146+1),('SW Plan'!$G151*'SW Plan'!$H151*'SW Plan'!$H158)/('SW Plan'!$H$146-'SW Plan'!$G$146+1),0),0) -> 0 | K108: =J108+IF('SW Plan'!$E$146="Activate",IF(AND(K$3>='SW Plan'!$G$146,K$3<'SW Plan'!$H$146+1),('SW Plan'!$G151*'SW Plan'!$H151*'SW Plan'!$H158)/('SW Plan'!$H$146-'SW Plan'!$G$146+1),0),0) -> 0 | L108: =K108+IF('SW Plan'!$E$146="Activate",IF(AND(L$3>='SW Plan'!$G$146,L$3<'SW Plan'!$H$146+1),('SW Plan'!$G151*'SW Plan'!$H151*'SW Plan'!$H158)/('SW Plan'!$H$146-'SW Plan'!$G$146+1),0),0) -> 0 | M108: =L108+IF('SW Plan'!$E$146="Activate",IF(AND(M$3>='SW Plan'!$G$146,M$3<'SW Plan'!$H$146+1),('SW Plan'!$G151*'SW Plan'!$H151*'SW Plan'!$H158)/('SW Plan'!$H$146-'SW Plan'!$G$146+1),0),0) -> 0 | N108: =M108+IF('SW Plan'!$E$146="Activate",IF(AND(N$3>='SW Plan'!$G$146,N$3<'SW Plan'!$H$146+1),('SW Plan'!$G151*'SW Plan'!$H151*'SW Plan'!$H158)/('SW Plan'!$H$146-'SW Plan'!$G$146+1),0),0) -> 0 | O108: =N108+IF('SW Plan'!$E$146="Activate",IF(AND(O$3>='SW Plan'!$G$146,O$3<'SW Plan'!$H$146+1),('SW Plan'!$G151*'SW Plan'!$H151*'SW Plan'!$H158)/('SW Plan'!$H$146-'SW Plan'!$G$146+1),0),0) -> 0 | P108: =O108+IF('SW Plan'!$E$146="Activate",IF(AND(P$3>='SW Plan'!$G$146,P$3<'SW Plan'!$H$146+1),('SW Plan'!$G151*'SW Plan'!$H151*'SW Plan'!$H158)/('SW Plan'!$H$146-'SW Plan'!$G$146+1),0),0) -> 0
D109: - Mini lorries | F109: 0 | G109: =F109+IF('SW Plan'!$E$146="Activate",IF(AND(G$3>='SW Plan'!$G$146,G$3<'SW Plan'!$H$146+1),('SW Plan'!$G152*'SW Plan'!$H152*'SW Plan'!$H159)/('SW Plan'!$H$146-'SW Plan'!$G$146+1),0),0) -> 0 | H109: =G109+IF('SW Plan'!$E$146="Activate",IF(AND(H$3>='SW Plan'!$G$146,H$3<'SW Plan'!$H$146+1),('SW Plan'!$G152*'SW Plan'!$H152*'SW Plan'!$H159)/('SW Plan'!$H$146-'SW Plan'!$G$146+1),0),0) -> 0 | I109: =H109+IF('SW Plan'!$E$146="Activate",IF(AND(I$3>='SW Plan'!$G$146,I$3<'SW Plan'!$H$146+1),('SW Plan'!$G152*'SW Plan'!$H152*'SW Plan'!$H159)/('SW Plan'!$H$146-'SW Plan'!$G$146+1),0),0) -> 0 | J109: =I109+IF('SW Plan'!$E$146="Activate",IF(AND(J$3>='SW Plan'!$G$146,J$3<'SW Plan'!$H$146+1),('SW Plan'!$G152*'SW Plan'!$H152*'SW Plan'!$H159)/('SW Plan'!$H$146-'SW Plan'!$G$146+1),0),0) -> 0 | K109: =J109+IF('SW Plan'!$E$146="Activate",IF(AND(K$3>='SW Plan'!$G$146,K$3<'SW Plan'!$H$146+1),('SW Plan'!$G152*'SW Plan'!$H152*'SW Plan'!$H159)/('SW Plan'!$H$146-'SW Plan'!$G$146+1),0),0) -> 0 | L109: =K109+IF('SW Plan'!$E$146="Activate",IF(AND(L$3>='SW Plan'!$G$146,L$3<'SW Plan'!$H$146+1),('SW Plan'!$G152*'SW Plan'!$H152*'SW Plan'!$H159)/('SW Plan'!$H$146-'SW Plan'!$G$146+1),0),0) -> 0 | M109: =L109+IF('SW Plan'!$E$146="Activate",IF(AND(M$3>='SW Plan'!$G$146,M$3<'SW Plan'!$H$146+1),('SW Plan'!$G152*'SW Plan'!$H152*'SW Plan'!$H159)/('SW Plan'!$H$146-'SW Plan'!$G$146+1),0),0) -> 0 | N109: =M109+IF('SW Plan'!$E$146="Activate",IF(AND(N$3>='SW Plan'!$G$146,N$3<'SW Plan'!$H$146+1),('SW Plan'!$G152*'SW Plan'!$H152*'SW Plan'!$H159)/('SW Plan'!$H$146-'SW Plan'!$G$146+1),0),0) -> 0 | O109: =N109+IF('SW Plan'!$E$146="Activate",IF(AND(O$3>='SW Plan'!$G$146,O$3<'SW Plan'!$H$146+1),('SW Plan'!$G152*'SW Plan'!$H152*'SW Plan'!$H159)/('SW Plan'!$H$146-'SW Plan'!$G$146+1),0),0) -> 0 | P109: =O109+IF('SW Plan'!$E$146="Activate",IF(AND(P$3>='SW Plan'!$G$146,P$3<'SW Plan'!$H$146+1),('SW Plan'!$G152*'SW Plan'!$H152*'SW Plan'!$H159)/('SW Plan'!$H$146-'SW Plan'!$G$146+1),0),0) -> 0
D110: - Dumper placers | F110: 0 | G110: =F110+IF('SW Plan'!$E$146="Activate",IF(AND(G$3>='SW Plan'!$G$146,G$3<'SW Plan'!$H$146+1),('SW Plan'!$G153*'SW Plan'!$H153*'SW Plan'!$H160)/('SW Plan'!$H$146-'SW Plan'!$G$146+1),0),0) -> 0 | H110: =G110+IF('SW Plan'!$E$146="Activate",IF(AND(H$3>='SW Plan'!$G$146,H$3<'SW Plan'!$H$146+1),('SW Plan'!$G153*'SW Plan'!$H153*'SW Plan'!$H160)/('SW Plan'!$H$146-'SW Plan'!$G$146+1),0),0) -> 0 | I110: =H110+IF('SW Plan'!$E$146="Activate",IF(AND(I$3>='SW Plan'!$G$146,I$3<'SW Plan'!$H$146+1),('SW Plan'!$G153*'SW Plan'!$H153*'SW Plan'!$H160)/('SW Plan'!$H$146-'SW Plan'!$G$146+1),0),0) -> 0 | J110: =I110+IF('SW Plan'!$E$146="Activate",IF(AND(J$3>='SW Plan'!$G$146,J$3<'SW Plan'!$H$146+1),('SW Plan'!$G153*'SW Plan'!$H153*'SW Plan'!$H160)/('SW Plan'!$H$146-'SW Plan'!$G$146+1),0),0) -> 0 | K110: =J110+IF('SW Plan'!$E$146="Activate",IF(AND(K$3>='SW Plan'!$G$146,K$3<'SW Plan'!$H$146+1),('SW Plan'!$G153*'SW Plan'!$H153*'SW Plan'!$H160)/('SW Plan'!$H$146-'SW Plan'!$G$146+1),0),0) -> 0 | L110: =K110+IF('SW Plan'!$E$146="Activate",IF(AND(L$3>='SW Plan'!$G$146,L$3<'SW Plan'!$H$146+1),('SW Plan'!$G153*'SW Plan'!$H153*'SW Plan'!$H160)/('SW Plan'!$H$146-'SW Plan'!$G$146+1),0),0) -> 0 | M110: =L110+IF('SW Plan'!$E$146="Activate",IF(AND(M$3>='SW Plan'!$G$146,M$3<'SW Plan'!$H$146+1),('SW Plan'!$G153*'SW Plan'!$H153*'SW Plan'!$H160)/('SW Plan'!$H$146-'SW Plan'!$G$146+1),0),0) -> 0 | N110: =M110+IF('SW Plan'!$E$146="Activate",IF(AND(N$3>='SW Plan'!$G$146,N$3<'SW Plan'!$H$146+1),('SW Plan'!$G153*'SW Plan'!$H153*'SW Plan'!$H160)/('SW Plan'!$H$146-'SW Plan'!$G$146+1),0),0) -> 0 | O110: =N110+IF('SW Plan'!$E$146="Activate",IF(AND(O$3>='SW Plan'!$G$146,O$3<'SW Plan'!$H$146+1),('SW Plan'!$G153*'SW Plan'!$H153*'SW Plan'!$H160)/('SW Plan'!$H$146-'SW Plan'!$G$146+1),0),0) -> 0 | P110: =O110+IF('SW Plan'!$E$146="Activate",IF(AND(P$3>='SW Plan'!$G$146,P$3<'SW Plan'!$H$146+1),('SW Plan'!$G153*'SW Plan'!$H153*'SW Plan'!$H160)/('SW Plan'!$H$146-'SW Plan'!$G$146+1),0),0) -> 0
D111: - Trucks | F111: 0 | G111: =F111+IF('SW Plan'!$E$146="Activate",IF(AND(G$3>='SW Plan'!$G$146,G$3<'SW Plan'!$H$146+1),('SW Plan'!$G154*'SW Plan'!$H154*'SW Plan'!$H161)/('SW Plan'!$H$146-'SW Plan'!$G$146+1),0),0) -> 0 | H111: =G111+IF('SW Plan'!$E$146="Activate",IF(AND(H$3>='SW Plan'!$G$146,H$3<'SW Plan'!$H$146+1),('SW Plan'!$G154*'SW Plan'!$H154*'SW Plan'!$H161)/('SW Plan'!$H$146-'SW Plan'!$G$146+1),0),0) -> 0 | I111: =H111+IF('SW Plan'!$E$146="Activate",IF(AND(I$3>='SW Plan'!$G$146,I$3<'SW Plan'!$H$146+1),('SW Plan'!$G154*'SW Plan'!$H154*'SW Plan'!$H161)/('SW Plan'!$H$146-'SW Plan'!$G$146+1),0),0) -> 0 | J111: =I111+IF('SW Plan'!$E$146="Activate",IF(AND(J$3>='SW Plan'!$G$146,J$3<'SW Plan'!$H$146+1),('SW Plan'!$G154*'SW Plan'!$H154*'SW Plan'!$H161)/('SW Plan'!$H$146-'SW Plan'!$G$146+1),0),0) -> 0 | K111: =J111+IF('SW Plan'!$E$146="Activate",IF(AND(K$3>='SW Plan'!$G$146,K$3<'SW Plan'!$H$146+1),('SW Plan'!$G154*'SW Plan'!$H154*'SW Plan'!$H161)/('SW Plan'!$H$146-'SW Plan'!$G$146+1),0),0) -> 0 | L111: =K111+IF('SW Plan'!$E$146="Activate",IF(AND(L$3>='SW Plan'!$G$146,L$3<'SW Plan'!$H$146+1),('SW Plan'!$G154*'SW Plan'!$H154*'SW Plan'!$H161)/('SW Plan'!$H$146-'SW Plan'!$G$146+1),0),0) -> 0 | M111: =L111+IF('SW Plan'!$E$146="Activate",IF(AND(M$3>='SW Plan'!$G$146,M$3<'SW Plan'!$H$146+1),('SW Plan'!$G154*'SW Plan'!$H154*'SW Plan'!$H161)/('SW Plan'!$H$146-'SW Plan'!$G$146+1),0),0) -> 0 | N111: =M111+IF('SW Plan'!$E$146="Activate",IF(AND(N$3>='SW Plan'!$G$146,N$3<'SW Plan'!$H$146+1),('SW Plan'!$G154*'SW Plan'!$H154*'SW Plan'!$H161)/('SW Plan'!$H$146-'SW Plan'!$G$146+1),0),0) -> 0 | O111: =N111+IF('SW Plan'!$E$146="Activate",IF(AND(O$3>='SW Plan'!$G$146,O$3<'SW Plan'!$H$146+1),('SW Plan'!$G154*'SW Plan'!$H154*'SW Plan'!$H161)/('SW Plan'!$H$146-'SW Plan'!$G$146+1),0),0) -> 0 | P111: =O111+IF('SW Plan'!$E$146="Activate",IF(AND(P$3>='SW Plan'!$G$146,P$3<'SW Plan'!$H$146+1),('SW Plan'!$G154*'SW Plan'!$H154*'SW Plan'!$H161)/('SW Plan'!$H$146-'SW Plan'!$G$146+1),0),0) -> 0
D112: Total Waste transportation capacity | E112: Tons/ day | F112: =SUM(F104:F111) -> 0 | G112: =SUM(G104:G111) -> 0 | H112: 0 | I112: 0 | J112: 0 | K112: 0 | L112: 0 | M112: 0 | N112: 0 | O112: 0 | P112: 0
D113: Waste actually transported | E113: Tons/ day | F113: =MIN(F83,F112) -> 0 | G113: 0 | H113: 0 | I113: 0 | J113: 0 | K113: 0 | L113: 0 | M113: 0 | N113: 0 | O113: 0 | P113: 0
D114: Adequacy of transportation capacity | F114: =IFERROR(F112/F83,0) -> 0 | G114: =IFERROR(G112/G83,0) -> 0 | H114: 0 | I114: 0 | J114: 0 | K114: 0 | L114: 0 | M114: 0 | N114: 0 | O114: 0 | P114: 0
D115: Waste taken by intermediaries
D116: Waste that is taken away by intermediaries (tons/ day) | E116: ='WSS info'!G440 -> 0 | F116: =F113*$E$116 -> 0 | G116: =G113*$E$116 -> 0 | H116: =H113*$E$116 -> 0 | I116: 0 | J116: 0 | K116: 0 | L116: 0 | M116: 0 | N116: 0 | O116: 0 | P116: 0
D117: Waste treatment
D118: Waste reaching at the processing plant or disposal site | E118: Tons/ day | F118: =F113-F116 -> 0 | G118: 0 | H118: 0 | I118: 0 | J118: 0 | K118: 0 | L118: 0 | M118: 0 | N118: 0 | O118: 0 | P118: 0
D119: Installed capacity of waste processing plant | E119: ='WSS info'!$G$437 -> 0 | F119: ='WSS info'!$G$437 -> 0 | G119: =F119+IF('SW Plan'!$E$175="Activate",IF(G$73='SW Plan'!$H$175,'SW Plan'!$H$177,0),0) -> 0 | H119: =G119+IF('SW Plan'!$E$175="Activate",IF(H$73='SW Plan'!$H$175,'SW Plan'!$H$177,0),0) -> 0 | I119: =H119+IF('SW Plan'!$E$175="Activate",IF(I$73='SW Plan'!$H$175,'SW Plan'!$H$177,0),0) -> 0 | J119: =I119+IF('SW Plan'!$E$175="Activate",IF(J$73='SW Plan'!$H$175,'SW Plan'!$H$177,0),0) -> 0 | K119: =J119+IF('SW Plan'!$E$175="Activate",IF(K$73='SW Plan'!$H$175,'SW Plan'!$H$177,0),0) -> 0 | L119: =K119+IF('SW Plan'!$E$175="Activate",IF(L$73='SW Plan'!$H$175,'SW Plan'!$H$177,0),0) -> 0 | M119: =L119+IF('SW Plan'!$E$175="Activate",IF(M$73='SW Plan'!$H$175,'SW Plan'!$H$177,0),0) -> 0 | N119: =M119+IF('SW Plan'!$E$175="Activate",IF(N$73='SW Plan'!$H$175,'SW Plan'!$H$177,0),0) -> 0 | O119: =N119+IF('SW Plan'!$E$175="Activate",IF(O$73='SW Plan'!$H$175,'SW Plan'!$H$177,0),0) -> 0 | P119: =O119+IF('SW Plan'!$E$175="Activate",IF(P$73='SW Plan'!$H$175,'SW Plan'!$H$177,0),0) -> 0
D120: Functional capacity of processing plant | E120: ='WSS info'!G438 -> 0 | F120: ='WSS info'!G438 -> 0 | G120: =IF(AND('SW Plan'!$E$135="Activate",'MSW calcu'!G$153>'SW Plan'!$H$135),'SW Plan'!$H$138+$F$120,$F$120)+(G119-$F$119) -> 0 | H120: =IF(AND('SW Plan'!$E$135="Activate",'MSW calcu'!H$153>'SW Plan'!$H$135),'SW Plan'!$H$138+$F$120,$F$120)+(H119-$F$119) -> 0 | I120: =IF(AND('SW Plan'!$E$135="Activate",'MSW calcu'!I$153>'SW Plan'!$H$135),'SW Plan'!$H$138+$F$120,$F$120)+(I119-$F$119) -> 0 | J120: =IF(AND('SW Plan'!$E$135="Activate",'MSW calcu'!J$153>'SW Plan'!$H$135),'SW Plan'!$H$138+$F$120,$F$120)+(J119-$F$119) -> 0 | K120: =IF(AND('SW Plan'!$E$135="Activate",'MSW calcu'!K$153>'SW Plan'!$H$135),'SW Plan'!$H$138+$F$120,$F$120)+(K119-$F$119) -> 0 | L120: =IF(AND('SW Plan'!$E$135="Activate",'MSW calcu'!L$153>'SW Plan'!$H$135),'SW Plan'!$H$138+$F$120,$F$120)+(L119-$F$119) -> 0 | M120: =IF(AND('SW Plan'!$E$135="Activate",'MSW calcu'!M$153>'SW Plan'!$H$135),'SW Plan'!$H$138+$F$120,$F$120)+(M119-$F$119) -> 0 | N120: =IF(AND('SW Plan'!$E$135="Activate",'MSW calcu'!N$153>'SW Plan'!$H$135),'SW Plan'!$H$138+$F$120,$F$120)+(N119-$F$119) -> 0 | O120: =IF(AND('SW Plan'!$E$135="Activate",'MSW calcu'!O$153>'SW Plan'!$H$135),'SW Plan'!$H$138+$F$120,$F$120)+(O119-$F$119) -> 0 | P120: =IF(AND('SW Plan'!$E$135="Activate",'MSW calcu'!P$153>'SW Plan'!$H$135),'SW Plan'!$H$138+$F$120,$F$120)+(P119-$F$119) -> 0
D121: Waste to be processed at the processing plant | E121: Tons/ day | F121: =MIN(F120,F118) -> 0 | G121: =MIN(G120,G118) -> 0 | H121: =MIN(H120,H118) -> 0 | I121: 0 | J121: 0 | K121: 0 | L121: 0 | M121: 0 | N121: 0 | O121: 0 | P121: 0
D122: ='Summary of PIP'!C171 -> Adequacy of solid waste processing facilities | F122: =IFERROR(F120/F118,0) -> 0 | G122: =IFERROR(G120/G118,0) -> 0 | H122: =IFERROR(H120/H118,0) -> 0 | I122: 0 | J122: 0 | K122: 0 | L122: 0 | M122: 0 | N122: 0 | O122: 0 | P122: 0
D123: OLD PLANT
D124: Waste to be processed here | F124: =F121-F128 -> 0 | G124: 0 | H124: 0 | I124: 0 | J124: 0 | K124: 0 | L124: 0 | M124: 0 | N124: 0 | O124: 0 | P124: 0
D125: % of waste processed as byproduct | F125: ='WSS info'!G439 -> 0 | G125: =IF(AND('SW Plan'!$E$135="Activate",'MSW calcu'!G$153>'SW Plan'!$H$135),'SW Plan'!$H$139,$F$125) -> 0 | H125: =IF(AND('SW Plan'!$E$135="Activate",'MSW calcu'!H$153>'SW Plan'!$H$135),'SW Plan'!$H$139,$F$125) -> 0 | I125: =IF(AND('SW Plan'!$E$135="Activate",'MSW calcu'!I$153>'SW Plan'!$H$135),'SW Plan'!$H$139,$F$125) -> 0 | J125: =IF(AND('SW Plan'!$E$135="Activate",'MSW calcu'!J$153>'SW Plan'!$H$135),'SW Plan'!$H$139,$F$125) -> 0 | K125: =IF(AND('SW Plan'!$E$135="Activate",'MSW calcu'!K$153>'SW Plan'!$H$135),'SW Plan'!$H$139,$F$125) -> 0 | L125: =IF(AND('SW Plan'!$E$135="Activate",'MSW calcu'!L$153>'SW Plan'!$H$135),'SW Plan'!$H$139,$F$125) -> 0 | M125: =IF(AND('SW Plan'!$E$135="Activate",'MSW calcu'!M$153>'SW Plan'!$H$135),'SW Plan'!$H$139,$F$125) -> 0 | N125: =IF(AND('SW Plan'!$E$135="Activate",'MSW calcu'!N$153>'SW Plan'!$H$135),'SW Plan'!$H$139,$F$125) -> 0 | O125: =IF(AND('SW Plan'!$E$135="Activate",'MSW calcu'!O$153>'SW Plan'!$H$135),'SW Plan'!$H$139,$F$125) -> 0 | P125: =IF(AND('SW Plan'!$E$135="Activate",'MSW calcu'!P$153>'SW Plan'!$H$135),'SW Plan'!$H$139,$F$125) -> 0
D126: Total waste processed as byproduct_OLD PLANT | F126: =F124*$F$125 -> 0 | G126: 0 | H126: 0 | I126: 0 | J126: 0 | K126: 0 | L126: 0 | M126: 0 | N126: 0 | O126: 0 | P126: 0
D127: NEW PLANT
D128: Waste to be processed here | E128: ='SW Plan'!H178 -> 0 | F128: =$E$128*F121 -> 0 | G128: =$E$128*G121 -> 0 | H128: 0 | I128: 0 | J128: 0 | K128: 0 | L128: 0 | M128: 0 | N128: 0 | O128: 0 | P128: 0
D129: % of waste processed as byproduct_NEW PLANT | E129: =SUM('SW Plan'!H180:H182) -> 0 | F129: =IF(F120>$E$120,F128*$E$129,0) -> 0 | G129: =IF(G120>$E$120,G128*$E$129,0) -> 0 | H129: 0 | I129: 0 | J129: 0 | K129: 0 | L129: 0 | M129: 0 | N129: 0 | O129: 0 | P129: 0
D130: Waste sent as rejects to landfill | F130: =F121-F126-F129 -> 0 | G130: 0 | H130: 0 | I130: 0 | J130: 0 | K130: 0 | L130: 0 | M130: 0 | N130: 0 | O130: 0 | P130: 0
D131: Waste not processed at the plant | F131: =MAX(0,F118-F120) -> 0 | G131: =MAX(0,G118-G120) -> 0 | H131: =MAX(0,H118-H120) -> 0 | I131: 0 | J131: 0 | K131: 0 | L131: 0 | M131: 0 | N131: 0 | O131: 0 | P131: 0
D132: Waste disposal
D133: Quantity of waste finally to be disposed off at the site | E133: Tons/ day | F133: =F130+F131 -> 0 | G133: =G130+G131 -> 0 | H133: 0 | I133: 0 | J133: 0 | K133: 0 | L133: 0 | M133: 0 | N133: 0 | O133: 0 | P133: 0
D134: Scientific landfill
D135: Quantity of waste possible to dispose at sanitary landfill (Tons/ day) | E135: Tons/ day | F135: =IF(OR('WSS info'!$G$445="Yes",IF('SW Plan'!$E$209="Activate",IF('MSW calcu'!F$73>='SW Plan'!$H$209,F133,0))),F133,0) -> 0 | G135: =IF(OR('WSS info'!$G$445="Yes",IF('SW Plan'!$E$209="Activate",IF('MSW calcu'!G$73>='SW Plan'!$H$209,G133,0))),G133,0) -> 0 | H135: =IF(OR('WSS info'!$G$445="Yes",IF('SW Plan'!$E$209="Activate",IF('MSW calcu'!H$73>='SW Plan'!$H$209,H133,0))),H133,0) -> 0 | I135: =IF(OR('WSS info'!$G$445="Yes",IF('SW Plan'!$E$209="Activate",IF('MSW calcu'!I$73>='SW Plan'!$H$209,I133,0))),I133,0) -> 0 | J135: =IF(OR('WSS info'!$G$445="Yes",IF('SW Plan'!$E$209="Activate",IF('MSW calcu'!J$73>='SW Plan'!$H$209,J133,0))),J133,0) -> 0 | K135: =IF(OR('WSS info'!$G$445="Yes",IF('SW Plan'!$E$209="Activate",IF('MSW calcu'!K$73>='SW Plan'!$H$209,K133,0))),K133,0) -> 0 | L135: =IF(OR('WSS info'!$G$445="Yes",IF('SW Plan'!$E$209="Activate",IF('MSW calcu'!L$73>='SW Plan'!$H$209,L133,0))),L133,0) -> 0 | M135: =IF(OR('WSS info'!$G$445="Yes",IF('SW Plan'!$E$209="Activate",IF('MSW calcu'!M$73>='SW Plan'!$H$209,M133,0))),M133,0) -> 0 | N135: =IF(OR('WSS info'!$G$445="Yes",IF('SW Plan'!$E$209="Activate",IF('MSW calcu'!N$73>='SW Plan'!$H$209,N133,0))),N133,0) -> 0 | O135: =IF(OR('WSS info'!$G$445="Yes",IF('SW Plan'!$E$209="Activate",IF('MSW calcu'!O$73>='SW Plan'!$H$209,O133,0))),O133,0) -> 0 | P135: =IF(OR('WSS info'!$G$445="Yes",IF('SW Plan'!$E$209="Activate",IF('MSW calcu'!P$73>='SW Plan'!$H$209,P133,0))),P133,0) -> 0
D136: Quantity actually disposed at landfill (calculated based on designed capacity and capacity remaining) - OLD LANDFILL | E136: =IF('SW Plan'!$H$210="Yes",'SW Plan'!$H$211,0) -> 0 | F136: =MAX(F135-IF(SUM($F135:F$135)-$E$136>0,SUM($F135:F$135)-$E$136,0),0) -> 0 | G136: =MAX(G135-IF(SUM($F135:G$135)-$E$136>0,SUM($F135:G$135)-$E$136,0),0) -> 0 | H136: =MAX(H135-IF(SUM($F135:H$135)-$E$136>0,SUM($F135:H$135)-$E$136,0),0) -> 0 | I136: =MAX(I135-IF(SUM($F135:I$135)-$E$136>0,SUM($F135:I$135)-$E$136,0),0) -> 0 | J136: =MAX(J135-IF(SUM($F135:J$135)-$E$136>0,SUM($F135:J$135)-$E$136,0),0) -> 0 | K136: =MAX(K135-IF(SUM($F135:K$135)-$E$136>0,SUM($F135:K$135)-$E$136,0),0) -> 0 | L136: =MAX(L135-IF(SUM($F135:L$135)-$E$136>0,SUM($F135:L$135)-$E$136,0),0) -> 0 | M136: =MAX(M135-IF(SUM($F135:M$135)-$E$136>0,SUM($F135:M$135)-$E$136,0),0) -> 0 | N136: =MAX(N135-IF(SUM($F135:N$135)-$E$136>0,SUM($F135:N$135)-$E$136,0),0) -> 0 | O136: =MAX(O135-IF(SUM($F135:O$135)-$E$136>0,SUM($F135:O$135)-$E$136,0),0) -> 0 | P136: =MAX(P135-IF(SUM($F135:P$135)-$E$136>0,SUM($F135:P$135)-$E$136,0),0) -> 0
D137: Quantity possisle to dispose at new landfill | F137: =IF(AND('SW Plan'!$E$209="Activate",'MSW calcu'!F$73>='SW Plan'!$H$209),F135-F136,0) -> 0 | G137: =IF(AND('SW Plan'!$E$209="Activate",'MSW calcu'!G$73>='SW Plan'!$H$209),G135-G136,0) -> 0 | H137: =IF(AND('SW Plan'!$E$209="Activate",'MSW calcu'!H$73>='SW Plan'!$H$209),H135-H136,0) -> 0 | I137: =IF(AND('SW Plan'!$E$209="Activate",'MSW calcu'!I$73>='SW Plan'!$H$209),I135-I136,0) -> 0 | J137: =IF(AND('SW Plan'!$E$209="Activate",'MSW calcu'!J$73>='SW Plan'!$H$209),J135-J136,0) -> 0 | K137: =IF(AND('SW Plan'!$E$209="Activate",'MSW calcu'!K$73>='SW Plan'!$H$209),K135-K136,0) -> 0 | L137: =IF(AND('SW Plan'!$E$209="Activate",'MSW calcu'!L$73>='SW Plan'!$H$209),L135-L136,0) -> 0 | M137: =IF(AND('SW Plan'!$E$209="Activate",'MSW calcu'!M$73>='SW Plan'!$H$209),M135-M136,0) -> 0 | N137: =IF(AND('SW Plan'!$E$209="Activate",'MSW calcu'!N$73>='SW Plan'!$H$209),N135-N136,0) -> 0 | O137: =IF(AND('SW Plan'!$E$209="Activate",'MSW calcu'!O$73>='SW Plan'!$H$209),O135-O136,0) -> 0 | P137: =IF(AND('SW Plan'!$E$209="Activate",'MSW calcu'!P$73>='SW Plan'!$H$209),P135-P136,0) -> 0
D138: Quantity actually disposed at landfill (calculated based on designed capacity and capacity remaining) - NEW LANDFILL | E138: =IF('SW Plan'!$E$209="Activate",'SW Plan'!$H$212,0) -> 0 | F138: =MAX(F137-IF(SUM($F137:F$137)-$E$138>0,SUM($F137:F$137)-$E$138,0),0) -> 0 | G138: =MAX(G137-IF(SUM($F137:G$137)-$E$138>0,SUM($F137:G$137)-$E$138,0),0) -> 0 | H138: =MAX(H137-IF(SUM($F137:H$137)-$E$138>0,SUM($F137:H$137)-$E$138,0),0) -> 0 | I138: =MAX(I137-IF(SUM($F137:I$137)-$E$138>0,SUM($F137:I$137)-$E$138,0),0) -> 0 | J138: =MAX(J137-IF(SUM($F137:J$137)-$E$138>0,SUM($F137:J$137)-$E$138,0),0) -> 0 | K138: =MAX(K137-IF(SUM($F137:K$137)-$E$138>0,SUM($F137:K$137)-$E$138,0),0) -> 0 | L138: =MAX(L137-IF(SUM($F137:L$137)-$E$138>0,SUM($F137:L$137)-$E$138,0),0) -> 0 | M138: =MAX(M137-IF(SUM($F137:M$137)-$E$138>0,SUM($F137:M$137)-$E$138,0),0) -> 0 | N138: =MAX(N137-IF(SUM($F137:N$137)-$E$138>0,SUM($F137:N$137)-$E$138,0),0) -> 0 | O138: =MAX(O137-IF(SUM($F137:O$137)-$E$138>0,SUM($F137:O$137)-$E$138,0),0) -> 0 | P138: =MAX(P137-IF(SUM($F137:P$137)-$E$138>0,SUM($F137:P$137)-$E$138,0),0) -> 0
D139: Total quantity of waste at scientifc landfill | F139: =F138+F136 -> 0 | G139: =G138+G136 -> 0 | H139: 0 | I139: 0 | J139: 0 | K139: 0 | L139: 0 | M139: 0 | N139: 0 | O139: 0 | P139: 0
D140: Open dump site
D141: Quantity of waste disposed off at open dump site | E141: Tons/ day | F141: =F133-F139 -> 0 | G141: 0 | H141: 0 | I141: 0 | J141: 0 | K141: 0 | L141: 0 | M141: 0 | N141: 0 | O141: 0 | P141: 0
D142: ='Summary of PIP'!C178 -> Extent of solid waste disposal in open dump sites | F142: =MIN(IFERROR(F141/F113,0),100%) -> 0 | G142: =MIN(IFERROR(G141/G113,0),100%) -> 0 | H142: 0 | I142: 0 | J142: 0 | K142: 0 | L142: 0 | M142: 0 | N142: 0 | O142: 0 | P142: 0
D144: Waste segregation
D145: Waste transported in a segregated manner | E145: Tons/ day | F145: ='WSS info'!$G$433/30 -> 0 | G145: =F145+((G53+G50)*G6/1000) -> 0 | H145: 0 | I145: 0 | J145: 0 | K145: 0 | L145: 0 | M145: 0 | N145: 0 | O145: 0 | P145: 0
D146: Total waste segregated | E146: Tons/ day | F146: =F145+F116 -> 0 | G146: 0 | H146: 0 | I146: 0 | J146: 0 | K146: 0 | L146: 0 | M146: 0 | N146: 0 | O146: 0 | P146: 0
D148: Collection efficiency of MSW | F148: =MIN(IFERROR(F83/F7,0),100%) -> 0 | G148: =MIN(IFERROR(G83/G7,0),100%) -> 0 | H148: 0 | I148: 0 | J148: 0 | K148: 0 | L148: 0 | M148: 0 | N148: 0 | O148: 0 | P148: 0
D149: Extent of segregation of MSW | F149: =MIN(IFERROR(F146/F83,0),100%) -> 0 | G149: =MIN(IFERROR(G146/G83,0),100%) -> 0 | H149: 0 | I149: 0 | J149: 0 | K149: 0 | L149: 0 | M149: 0 | N149: 0 | O149: 0 | P149: 0
D150: Extent of scientific disposal of MSW (%) | F150: =MIN(IFERROR(F139/F133,0),100%) -> 0 | G150: =MIN(IFERROR(G139/G133,0),100%) -> 0 | H150: 0 | I150: 0 | J150: 0 | K150: 0 | L150: 0 | M150: 0 | N150: 0 | O150: 0 | P150: 0
A152: E | C152: Processing plant
C153: S. No. | D153: Particulars | E153: Unit | F153: =F$3 -> 0 | G153: 0 | H153: 0 | I153: 0 | J153: 0 | K153: 0 | L153: 0 | M153: 0 | N153: 0 | O153: 0 | P153: 0
D154: Escalation in selling price of byproducts | F154: 1 | G154: 1 | H154: =G154*(1+'Finance info'!$F$22) -> 1.03 | I154: =H154*(1+'Finance info'!$F$22) -> 1.0609 | J154: =I154*(1+'Finance info'!$F$22) -> 1.092727 | K154: =J154*(1+'Finance info'!$F$22) -> 1.12550881 | L154: =K154*(1+'Finance info'!$F$22) -> 1.159274074 | M154: =L154*(1+'Finance info'!$F$22) -> 1.194052297 | N154: =M154*(1+'Finance info'!$F$22) -> 1.229873865 | O154: =N154*(1+'Finance info'!$F$22) -> 1.266770081 | P154: =O154*(1+'Finance info'!$F$22) -> 1.304773184
C155: 1 | D155: Quantity of compost produced from the plant | E155: =IFERROR('SW Plan'!H180/SUM('SW Plan'!$H$180:$H$182),0) -> 0 | F155: =$E155*F$129 -> 0 | G155: =$E155*G$129 -> 0 | H155: 0 | I155: 0 | J155: 0 | K155: 0 | L155: 0 | M155: 0 | N155: 0 | O155: 0 | P155: 0
D156: Saleable quantity of compost | E156: tons/day | F156: =F155 -> 0 | G156: =F156+IF('SW Plan'!$E$175="Activate",IF(AND(G$153>='SW Plan'!$H$175,G$153<'SW Plan'!$H$183+1),'SW Plan'!$H$180/('SW Plan'!$H$183-'SW Plan'!$H$175+1),0)) -> 0 | H156: =G156+IF('SW Plan'!$E$175="Activate",IF(AND(H$153>='SW Plan'!$H$175,H$153<'SW Plan'!$H$183+1),'SW Plan'!$H$180/('SW Plan'!$H$183-'SW Plan'!$H$175+1),0)) -> 0 | I156: =H156+IF('SW Plan'!$E$175="Activate",IF(AND(I$153>='SW Plan'!$H$175,I$153<'SW Plan'!$H$183+1),'SW Plan'!$H$180/('SW Plan'!$H$183-'SW Plan'!$H$175+1),0)) -> 0 | J156: =I156+IF('SW Plan'!$E$175="Activate",IF(AND(J$153>='SW Plan'!$H$175,J$153<'SW Plan'!$H$183+1),'SW Plan'!$H$180/('SW Plan'!$H$183-'SW Plan'!$H$175+1),0)) -> 0 | K156: =J156+IF('SW Plan'!$E$175="Activate",IF(AND(K$153>='SW Plan'!$H$175,K$153<'SW Plan'!$H$183+1),'SW Plan'!$H$180/('SW Plan'!$H$183-'SW Plan'!$H$175+1),0)) -> 0 | L156: =K156+IF('SW Plan'!$E$175="Activate",IF(AND(L$153>='SW Plan'!$H$175,L$153<'SW Plan'!$H$183+1),'SW Plan'!$H$180/('SW Plan'!$H$183-'SW Plan'!$H$175+1),0)) -> 0 | M156: =L156+IF('SW Plan'!$E$175="Activate",IF(AND(M$153>='SW Plan'!$H$175,M$153<'SW Plan'!$H$183+1),'SW Plan'!$H$180/('SW Plan'!$H$183-'SW Plan'!$H$175+1),0)) -> 0 | N156: =M156+IF('SW Plan'!$E$175="Activate",IF(AND(N$153>='SW Plan'!$H$175,N$153<'SW Plan'!$H$183+1),'SW Plan'!$H$180/('SW Plan'!$H$183-'SW Plan'!$H$175+1),0)) -> 0 | O156: =N156+IF('SW Plan'!$E$175="Activate",IF(AND(O$153>='SW Plan'!$H$175,O$153<'SW Plan'!$H$183+1),'SW Plan'!$H$180/('SW Plan'!$H$183-'SW Plan'!$H$175+1),0)) -> 0 | P156: =O156+IF('SW Plan'!$E$175="Activate",IF(AND(P$153>='SW Plan'!$H$175,P$153<'SW Plan'!$H$183+1),'SW Plan'!$H$180/('SW Plan'!$H$183-'SW Plan'!$H$175+1),0)) -> 0
D157: Rev from selling compost | E157: ='SW Plan'!$H$185 -> 0 | F157: =$E$157*F$154*F156/CurrencyMultiplier -> 0 | G157: =$E$157*G154*G156/CurrencyMultiplier -> 0 | H157: =$E$157*H154*H156/CurrencyMultiplier -> 0 | I157: =$E$157*I154*I156/1000 -> 0 | J157: 0 | K157: 0 | L157: 0 | M157: 0 | N157: 0 | O157: 0 | P157: 0 | Q157: earlier the value was divided by 1000,
C159: 2 | D159: Quantity of RDF/ fluff produced from the plant | E159: =IFERROR('SW Plan'!H181/SUM('SW Plan'!$H$180:$H$182),0) -> 0 | F159: =$E159*F$129 -> 0 | G159: =$E159*G$129 -> 0 | H159: 0 | I159: 0 | J159: 0 | K159: 0 | L159: 0 | M159: 0 | N159: 0 | O159: 0 | P159: 0
D160: Saleable quantity of RDF | E160: tons/day | F160: =F159 -> 0 | G160: =F160+IF('SW Plan'!$E$175="Activate",IF(AND(G$153>='SW Plan'!$H$175,G$153<'SW Plan'!$H$183+1),'SW Plan'!$H$181/('SW Plan'!$H$183-'SW Plan'!$H$175+1),0)) -> 0 | H160: =G160+IF('SW Plan'!$E$175="Activate",IF(AND(H$153>='SW Plan'!$H$175,H$153<'SW Plan'!$H$183+1),'SW Plan'!$H$181/('SW Plan'!$H$183-'SW Plan'!$H$175+1),0)) -> 0 | I160: =H160+IF('SW Plan'!$E$175="Activate",IF(AND(I$153>='SW Plan'!$H$175,I$153<'SW Plan'!$H$183+1),'SW Plan'!$H$181/('SW Plan'!$H$183-'SW Plan'!$H$175+1),0)) -> 0 | J160: =I160+IF('SW Plan'!$E$175="Activate",IF(AND(J$153>='SW Plan'!$H$175,J$153<'SW Plan'!$H$183+1),'SW Plan'!$H$181/('SW Plan'!$H$183-'SW Plan'!$H$175+1),0)) -> 0 | K160: =J160+IF('SW Plan'!$E$175="Activate",IF(AND(K$153>='SW Plan'!$H$175,K$153<'SW Plan'!$H$183+1),'SW Plan'!$H$181/('SW Plan'!$H$183-'SW Plan'!$H$175+1),0)) -> 0 | L160: =K160+IF('SW Plan'!$E$175="Activate",IF(AND(L$153>='SW Plan'!$H$175,L$153<'SW Plan'!$H$183+1),'SW Plan'!$H$181/('SW Plan'!$H$183-'SW Plan'!$H$175+1),0)) -> 0 | M160: =L160+IF('SW Plan'!$E$175="Activate",IF(AND(M$153>='SW Plan'!$H$175,M$153<'SW Plan'!$H$183+1),'SW Plan'!$H$181/('SW Plan'!$H$183-'SW Plan'!$H$175+1),0)) -> 0 | N160: =M160+IF('SW Plan'!$E$175="Activate",IF(AND(N$153>='SW Plan'!$H$175,N$153<'SW Plan'!$H$183+1),'SW Plan'!$H$181/('SW Plan'!$H$183-'SW Plan'!$H$175+1),0)) -> 0 | O160: =N160+IF('SW Plan'!$E$175="Activate",IF(AND(O$153>='SW Plan'!$H$175,O$153<'SW Plan'!$H$183+1),'SW Plan'!$H$181/('SW Plan'!$H$183-'SW Plan'!$H$175+1),0)) -> 0 | P160: =O160+IF('SW Plan'!$E$175="Activate",IF(AND(P$153>='SW Plan'!$H$175,P$153<'SW Plan'!$H$183+1),'SW Plan'!$H$181/('SW Plan'!$H$183-'SW Plan'!$H$175+1),0)) -> 0
D161: Rev from selling RDF | E161: ='SW Plan'!$H$186 -> 0 | F161: =$E$161*F$154*F160/1000 -> 0 | G161: =$E$161*G$154*G160/1000 -> 0 | H161: =$E$161*H$154*H160/1000 -> 0 | I161: 0 | J161: 0 | K161: 0 | L161: 0 | M161: 0 | N161: 0 | O161: 0 | P161: 0
C163: 3 | D163: Quantity of recyclable material segregated at the plant | E163: =IFERROR('SW Plan'!H182/SUM('SW Plan'!$H$180:$H$182),0) -> 0 | F163: =$E163*F$129 -> 0 | G163: =$E163*G$129 -> 0 | H163: 0 | I163: 0 | J163: 0 | K163: 0 | L163: 0 | M163: 0 | N163: 0 | O163: 0 | P163: 0
D164: Saleable quantity of recyclable material | E164: tons/day | F164: =F163 -> 0 | G164: =F164+IF('SW Plan'!$E$175="Activate",IF(AND(G$153>='SW Plan'!$H$175,G$153<'SW Plan'!$H$183+1),'SW Plan'!$H$182/('SW Plan'!$H$183-'SW Plan'!$H$175+1),0)) -> 0 | H164: =G164+IF('SW Plan'!$E$175="Activate",IF(AND(H$153>='SW Plan'!$H$175,H$153<'SW Plan'!$H$183+1),'SW Plan'!$H$182/('SW Plan'!$H$183-'SW Plan'!$H$175+1),0)) -> 0 | I164: =H164+IF('SW Plan'!$E$175="Activate",IF(AND(I$153>='SW Plan'!$H$175,I$153<'SW Plan'!$H$183+1),'SW Plan'!$H$182/('SW Plan'!$H$183-'SW Plan'!$H$175+1),0)) -> 0 | J164: =I164+IF('SW Plan'!$E$175="Activate",IF(AND(J$153>='SW Plan'!$H$175,J$153<'SW Plan'!$H$183+1),'SW Plan'!$H$182/('SW Plan'!$H$183-'SW Plan'!$H$175+1),0)) -> 0 | K164: =J164+IF('SW Plan'!$E$175="Activate",IF(AND(K$153>='SW Plan'!$H$175,K$153<'SW Plan'!$H$183+1),'SW Plan'!$H$182/('SW Plan'!$H$183-'SW Plan'!$H$175+1),0)) -> 0 | L164: =K164+IF('SW Plan'!$E$175="Activate",IF(AND(L$153>='SW Plan'!$H$175,L$153<'SW Plan'!$H$183+1),'SW Plan'!$H$182/('SW Plan'!$H$183-'SW Plan'!$H$175+1),0)) -> 0 | M164: =L164+IF('SW Plan'!$E$175="Activate",IF(AND(M$153>='SW Plan'!$H$175,M$153<'SW Plan'!$H$183+1),'SW Plan'!$H$182/('SW Plan'!$H$183-'SW Plan'!$H$175+1),0)) -> 0 | N164: =M164+IF('SW Plan'!$E$175="Activate",IF(AND(N$153>='SW Plan'!$H$175,N$153<'SW Plan'!$H$183+1),'SW Plan'!$H$182/('SW Plan'!$H$183-'SW Plan'!$H$175+1),0)) -> 0 | O164: =N164+IF('SW Plan'!$E$175="Activate",IF(AND(O$153>='SW Plan'!$H$175,O$153<'SW Plan'!$H$183+1),'SW Plan'!$H$182/('SW Plan'!$H$183-'SW Plan'!$H$175+1),0)) -> 0 | P164: =O164+IF('SW Plan'!$E$175="Activate",IF(AND(P$153>='SW Plan'!$H$175,P$153<'SW Plan'!$H$183+1),'SW Plan'!$H$182/('SW Plan'!$H$183-'SW Plan'!$H$175+1),0)) -> 0
D165: Rev from selling recyclable material | E165: ='SW Plan'!$H$187 -> 0 | F165: =$E$165*F$154*F164/1000 -> 0 | G165: =$E$165*G$154*G164/1000 -> 0 | H165: =$E$165*H$154*H164/1000 -> 0 | I165: =$E$165*I$154*I164/1000 -> 0 | J165: 0 | K165: 0 | L165: 0 | M165: 0 | N165: 0 | O165: 0 | P165: 0
D167: Actual MSW Recovery from Processing Plant | F167: =F$155+F$159+F$163 -> 0 | G167: =G$155+G$159+G$163 -> 0 | H167: 0 | I167: 0 | J167: 0 | K167: 0 | L167: 0 | M167: 0 | N167: 0 | O167: 0 | P167: 0
D168: Actual selling of byproducts | F168: =F156+F160+F164 -> 0 | G168: =G156+G160+G164 -> 0 | H168: 0 | I168: 0 | J168: 0 | K168: 0 | L168: 0 | M168: 0 | N168: 0 | O168: 0 | P168: 0
D169: Rev generation | F169: =F157+F161+F165 -> 0 | G169: =G157+G161+G165 -> 0 | H169: 0 | I169: =I157+I161+I165 -> 0 | J169: 0 | K169: 0 | L169: 0 | M169: 0 | N169: 0 | O169: 0 | P169: 0
D170: MSW Recovery as a % of MSW collected | E170: % | F170: =MIN(IFERROR((F126+F129+F116)/F$83,0),100%) -> 0 | G170: =MIN(IFERROR((G126+G129+G116)/G$83,0),100%) -> 0 | H170: =MIN(IFERROR((H126+H129+H116)/H$83,0),100%) -> 0 | I170: 0 | J170: 0 | K170: 0 | L170: 0 | M170: 0 | N170: 0 | O170: 0 | P170: 0
A173: G | C173: Billed Revenue from user charges
C174: S. No. | D174: Particulars | E174: Unit | F174: =F$3 -> 0 | G174: 0 | H174: 0 | I174: 0 | J174: 0 | K174: 0 | L174: 0 | M174: 0 | N174: 0 | O174: 0 | P174: 0
D175: BAU
D176: Flat rate base revenue | E176: =E182 -> 0 | F176: =F182 -> 0
D177: Number of properties | E177: =E183 -> 0 | F177: =F183 -> 0 | G177: =G183 -> 0 | H177: 0 | I177: 0 | J177: 0 | K177: 0 | L177: 0 | M177: 0 | N177: 0 | O177: 0 | P177: 0
D178: Number of households and establishment served | E178: =E184 -> 0 | F178: =(F18+F20)*$F$176*$E$178/CurrencyMultiplier -> 0 | G178: =(G18+G20)*$F$176*$E$178/CurrencyMultiplier -> 0 | H178: =(H18+H20)*$F$176*$E$178/CurrencyMultiplier -> 0 | I178: =(I18+I20)*$F$176*$E$178/CurrencyMultiplier -> 0 | J178: =(J18+J20)*$F$176*$E$178/CurrencyMultiplier -> 0 | K178: =(K18+K20)*$F$176*$E$178/CurrencyMultiplier -> 0 | L178: =(L18+L20)*$F$176*$E$178/CurrencyMultiplier -> 0 | M178: =(M18+M20)*$F$176*$E$178/CurrencyMultiplier -> 0 | N178: =(N18+N20)*$F$176*$E$178/CurrencyMultiplier -> 0 | O178: =(O18+O20)*$F$176*$E$178/CurrencyMultiplier -> 0 | P178: =(P18+P20)*$F$176*$E$178/CurrencyMultiplier -> 0
D179: Property tax linked MSW charge | E179: =E185 -> 0 | F179: =F185 -> 0 | G179: =G185 -> 0 | H179: 0 | I179: 0 | J179: 0 | K179: 0 | L179: 0 | M179: 0 | N179: 0 | O179: 0 | P179: 0
D180: Total SWM billed revenue | E180: =CONCATENATE('General info'!E43," ",'General info'!G43) -> INR Lakhs | F180: =SUM(F$177:F$179) -> 0 | G180: =SUM(G$177:G$179) -> 0 | H180: 0 | I180: 0 | J180: 0 | K180: 0 | L180: 0 | M180: 0 | N180: 0 | O180: 0 | P180: 0
D181: PIP ACTIONS REVENUE
D182: Flat rate base revenue - user charges | E182: =IF('WSS info'!$F$452="Yes",1,0) -> 0 | F182: =F189 -> 0
D183: Number of properties | E183: =IF(D183='WSS info'!$F$453,1,0)*$E$182 -> 0 | F183: =Population!E$48*$F$182*$E$183/CurrencyMultiplier -> 0 | G183: =Population!F$48*$F$182*$E$183/CurrencyMultiplier -> 0 | H183: =Population!G$48*$F$182*$E$183/CurrencyMultiplier -> 0 | I183: =Population!H$48*$F$182*$E$183/CurrencyMultiplier -> 0 | J183: =Population!I$48*$F$182*$E$183/CurrencyMultiplier -> 0 | K183: =Population!J$48*$F$182*$E$183/CurrencyMultiplier -> 0 | L183: =Population!K$48*$F$182*$E$183/CurrencyMultiplier -> 0 | M183: =Population!L$48*$F$182*$E$183/CurrencyMultiplier -> 0 | N183: =Population!M$48*$F$182*$E$183/CurrencyMultiplier -> 0 | O183: =Population!N$48*$F$182*$E$183/CurrencyMultiplier -> 0 | P183: =Population!O$48*$F$182*$E$183/CurrencyMultiplier -> 0
D184: Number of households and establishment served | E184: =IF(D184='WSS info'!$F$453,1,0)*$E$182 -> 0 | F184: =(F$60+F$62)*$F$182*$E$184/CurrencyMultiplier -> 0 | G184: =(G$60+G$62)*$F$182*$E$184/CurrencyMultiplier -> 0 | H184: =(H$60+H$62)*$F$182*$E$184/CurrencyMultiplier -> 0 | I184: =(I$60+I$62)*$F$182*$E$184/CurrencyMultiplier -> 0 | J184: =(J$60+J$62)*$F$182*$E$184/CurrencyMultiplier -> 0 | K184: =(K$60+K$62)*$F$182*$E$184/CurrencyMultiplier -> 0 | L184: =(L$60+L$62)*$F$182*$E$184/CurrencyMultiplier -> 0 | M184: =(M$60+M$62)*$F$182*$E$184/CurrencyMultiplier -> 0 | N184: =(N$60+N$62)*$F$182*$E$184/CurrencyMultiplier -> 0 | O184: =(O$60+O$62)*$F$182*$E$184/CurrencyMultiplier -> 0 | P184: =(P$60+P$62)*$F$182*$E$184/CurrencyMultiplier -> 0
D185: Property tax linked MSW charge | E185: =IF('WSS info'!$F$454="Yes",1,0) -> 0 | F185: =$E$185*'WS calcu'!E$538 -> 0 | G185: =$E$185*'WS calcu'!F$538 -> 0 | H185: =$E$185*'WS calcu'!G$538 -> 0 | I185: =$E$185*'WS calcu'!H$538 -> 0 | J185: =$E$185*'WS calcu'!I$538 -> 0 | K185: =$E$185*'WS calcu'!J$538 -> 0 | L185: =$E$185*'WS calcu'!K$538 -> 0 | M185: =$E$185*'WS calcu'!L$538 -> 0 | N185: =$E$185*'WS calcu'!M$538 -> 0 | O185: =$E$185*'WS calcu'!N$538 -> 0 | P185: =$E$185*'WS calcu'!O$538 -> 0
D186: Total SWM billed revenue | E186: =CONCATENATE('General info'!E43," ",'General info'!G43) -> INR Lakhs | F186: =SUM(F$183:F$185) -> 0 | G186: =SUM(G$183:G$185) -> 0 | H186: =SUM(H$183:H$185) -> 0 | I186: 0 | J186: 0 | K186: 0 | L186: 0 | M186: 0 | N186: 0 | O186: 0 | P186: 0
D187: TARIFF REVISION
D188: Flat tariff
D189: Escalation | E189: Only Tariff | F189: ='Financing Plan'!$N$227*$E$182 -> 0 | G189: =IF(F189<>0,F189,IF(G$174='Financing Plan'!$I$228,'Financing Plan'!$N$228,F$189)) -> 0 | H189: =IF(G189<>0,G189,IF(H$174='Financing Plan'!$I$228,'Financing Plan'!$N$228,G$189)) -> 0 | I189: =IF(H189<>0,H189,IF(I$174='Financing Plan'!$I$228,'Financing Plan'!$N$228,H$189)) -> 0 | J189: =IF(I189<>0,I189,IF(J$174='Financing Plan'!$I$228,'Financing Plan'!$N$228,I$189)) -> 0 | K189: =IF(J189<>0,J189,IF(K$174='Financing Plan'!$I$228,'Financing Plan'!$N$228,J$189)) -> 0 | L189: =IF(K189<>0,K189,IF(L$174='Financing Plan'!$I$228,'Financing Plan'!$N$228,K$189)) -> 0 | M189: =IF(L189<>0,L189,IF(M$174='Financing Plan'!$I$228,'Financing Plan'!$N$228,L$189)) -> 0 | N189: =IF(M189<>0,M189,IF(N$174='Financing Plan'!$I$228,'Financing Plan'!$N$228,M$189)) -> 0 | O189: =IF(N189<>0,N189,IF(O$174='Financing Plan'!$I$228,'Financing Plan'!$N$228,N$189)) -> 0 | P189: =IF(O189<>0,O189,IF(P$174='Financing Plan'!$I$228,'Financing Plan'!$N$228,O$189)) -> 0
D190: =IF(SUM($E$201:$G$201)=0,0,1) -> 0 | E190: Tariff w escalation | F190: ='Financing Plan'!$N$227*$E$182 -> 0 | G190: =IF(G189<>F189,G189,F190*(1+'Financing Plan'!F230)) -> 0 | H190: =IF(H189<>G189,H189,G190*(1+'Financing Plan'!G230)) -> 0 | I190: =IF(I189<>H189,I189,H190*(1+'Financing Plan'!H230)) -> 0 | J190: =IF(J189<>I189,J189,I190*(1+'Financing Plan'!I230)) -> 0 | K190: =IF(K189<>J189,K189,J190*(1+'Financing Plan'!J230)) -> 0 | L190: =IF(L189<>K189,L189,K190*(1+'Financing Plan'!K230)) -> 0 | M190: =IF(M189<>L189,M189,L190*(1+'Financing Plan'!L230)) -> 0 | N190: =IF(N189<>M189,N189,M190*(1+'Financing Plan'!M230)) -> 0 | O190: =IF(O189<>N189,O189,N190*(1+'Financing Plan'!N230)) -> 0 | P190: =IF(P189<>O189,P189,O190*(1+'Financing Plan'!O230)) -> 0
D191: Number of properties | E191: =IF(D191='Financing Plan'!$K$227,1,IF(AND('Financing Plan'!$I$228<>0,D191='Financing Plan'!$K$228),1,0))*$D$190 -> 0 | F191: =Population!E$49*F190*$E$191/CurrencyMultiplier -> 0 | G191: =Population!F$49*G190*$E$191/CurrencyMultiplier -> 0 | H191: =Population!G$49*H190*$E$191/CurrencyMultiplier -> 0 | I191: =Population!H$49*I190*$E$191/CurrencyMultiplier -> 0 | J191: =Population!I$49*J190*$E$191/CurrencyMultiplier -> 0 | K191: =Population!J$49*K190*$E$191/CurrencyMultiplier -> 0 | L191: =Population!K$49*L190*$E$191/CurrencyMultiplier -> 0 | M191: =Population!L$49*M190*$E$191/CurrencyMultiplier -> 0 | N191: =Population!M$49*N190*$E$191/CurrencyMultiplier -> 0 | O191: =Population!N$49*O190*$E$191/CurrencyMultiplier -> 0 | P191: =Population!O$49*P190*$E$191/CurrencyMultiplier -> 0
D192: Number of households and establishment served | E192: =IF(D192='Financing Plan'!$K$227,1,IF(AND('Financing Plan'!$I$228<>0,D192='Financing Plan'!$K$228),1,0))*$D$190 -> 0 | F192: =(F$60+F$62)*F190*$E$192/CurrencyMultiplier -> 0 | G192: =(G$60+G$62)*G190*$E$192/CurrencyMultiplier -> 0 | H192: =(H$60+H$62)*H190*$E$192/CurrencyMultiplier -> 0 | I192: =(I$60+I$62)*I190*$E$192/CurrencyMultiplier -> 0 | J192: =(J$60+J$62)*J190*$E$192/CurrencyMultiplier -> 0 | K192: =(K$60+K$62)*K190*$E$192/CurrencyMultiplier -> 0 | L192: =(L$60+L$62)*L190*$E$192/CurrencyMultiplier -> 0 | M192: =(M$60+M$62)*M190*$E$192/CurrencyMultiplier -> 0 | N192: =(N$60+N$62)*N190*$E$192/CurrencyMultiplier -> 0 | O192: =(O$60+O$62)*O190*$E$192/CurrencyMultiplier -> 0 | P192: =(P$60+P$62)*P190*$E$192/CurrencyMultiplier -> 0
D193: Solid waste tariff based on flat rate | F193: =F191+F192 -> 0 | G193: =G191+G192 -> 0 | H193: 0 | I193: 0 | J193: 0 | K193: 0 | L193: 0 | M193: 0 | N193: 0 | O193: 0 | P193: 0
D194: Property tax based
D195: Escalation | E195: Only Tariff | F195: ='WS calcu'!D537 -> 0 | G195: =IF(F195<>0,F195,IF(G$174='Financing Plan'!$J$234,'Financing Plan'!$M$234,F$195)) -> 0 | H195: =IF(G195<>0,G195,IF(H$174='Financing Plan'!$J$234,'Financing Plan'!$M$234,G$195)) -> 0 | I195: =IF(H195<>0,H195,IF(I$174='Financing Plan'!$J$234,'Financing Plan'!$M$234,H$195)) -> 0 | J195: =IF(I195<>0,I195,IF(J$174='Financing Plan'!$J$234,'Financing Plan'!$M$234,I$195)) -> 0 | K195: =IF(J195<>0,J195,IF(K$174='Financing Plan'!$J$234,'Financing Plan'!$M$234,J$195)) -> 0 | L195: =IF(K195<>0,K195,IF(L$174='Financing Plan'!$J$234,'Financing Plan'!$M$234,K$195)) -> 0 | M195: =IF(L195<>0,L195,IF(M$174='Financing Plan'!$J$234,'Financing Plan'!$M$234,L$195)) -> 0 | N195: =IF(M195<>0,M195,IF(N$174='Financing Plan'!$J$234,'Financing Plan'!$M$234,M$195)) -> 0 | O195: =IF(N195<>0,N195,IF(O$174='Financing Plan'!$J$234,'Financing Plan'!$M$234,N$195)) -> 0 | P195: =IF(O195<>0,O195,IF(P$174='Financing Plan'!$J$234,'Financing Plan'!$M$234,O$195)) -> 0
E196: Tariff w escalation | F196: ='WS calcu'!D537 -> 0 | G196: =IF(F195<>G195,G195,IF('Financing Plan'!F236<>0,'Financing Plan'!F236,F196)) -> 0 | H196: =IF(G195<>H195,'MSW calcu'!H195,IF('Financing Plan'!G236<>0,'Financing Plan'!G236,'MSW calcu'!G196)) -> 0 | I196: =IF(H195<>I195,'MSW calcu'!I195,IF('Financing Plan'!H236<>0,'Financing Plan'!H236,'MSW calcu'!H196)) -> 0 | J196: =IF(I195<>J195,'MSW calcu'!J195,IF('Financing Plan'!I236<>0,'Financing Plan'!I236,'MSW calcu'!I196)) -> 0 | K196: =IF(J195<>K195,'MSW calcu'!K195,IF('Financing Plan'!J236<>0,'Financing Plan'!J236,'MSW calcu'!J196)) -> 0 | L196: =IF(K195<>L195,'MSW calcu'!L195,IF('Financing Plan'!K236<>0,'Financing Plan'!K236,'MSW calcu'!K196)) -> 0 | M196: =IF(L195<>M195,'MSW calcu'!M195,IF('Financing Plan'!L236<>0,'Financing Plan'!L236,'MSW calcu'!L196)) -> 0 | N196: =IF(M195<>N195,'MSW calcu'!N195,IF('Financing Plan'!M236<>0,'Financing Plan'!M236,'MSW calcu'!M196)) -> 0 | O196: =IF(N195<>O195,'MSW calcu'!O195,IF('Financing Plan'!N236<>0,'Financing Plan'!N236,'MSW calcu'!N196)) -> 0 | P196: =IF(O195<>P195,'MSW calcu'!P195,IF('Financing Plan'!O236<>0,'Financing Plan'!O236,'MSW calcu'!O196)) -> 0
D197: Solid waste charges as based on property tax | E197: =IF(SUM($E$202:$G$202)=0,0,1) -> 0 | F197: ='WS calcu'!E540 -> 0 | G197: ='WS calcu'!F540 -> 0 | H197: ='WS calcu'!G540 -> 0 | I197: ='WS calcu'!H540 -> 0 | J197: ='WS calcu'!I540 -> 0 | K197: ='WS calcu'!J540 -> 0 | L197: ='WS calcu'!K540 -> 0 | M197: ='WS calcu'!L540 -> 0 | N197: ='WS calcu'!M540 -> 0 | O197: ='WS calcu'!N540 -> 0 | P197: ='WS calcu'!O540 -> 0
D198: Total Solid waste revenue billed | F198: =F193+F197 -> 0 | G198: =G193+G197 -> 0 | H198: 0 | I198: 0 | J198: 0 | K198: 0 | L198: 0 | M198: 0 | N198: 0 | O198: 0 | P198: 0
D200: Schedule of SWM taxes & charges levied | E200: Levied | F200: Escalation | G200: Newly charged | H200: Yes = 1, No = 0
D201: Flat rate | E201: =IF(AND('WSS info'!G452>0,'WSS info'!$F$452="Yes"),1,0) -> 0 | F201: =IF(AND(E201=1,SUM('Financing Plan'!$F$230:$O$230)<>0),1,0) -> 0 | G201: =IF(AND(E201=0,'Financing Plan'!$I$228<>0),1,0) -> 0
D202: Property tax | E202: =IF(AND('WSS info'!$G$454>0,'WSS info'!$F$454="Yes"),1,0) -> 0 | F202: =IF(AND(E202=1,SUM('Financing Plan'!$F$236:$O$236)<>0),1,0) -> 0 | G202: =IF(AND(E202=0,'Financing Plan'!$J$234<>0),1,0) -> 0
A204: G | C204: Collected revenue
C205: S. No. | D205: Particulars | E205: Unit | F205: =F$3 -> 0 | G205: 0 | H205: 0 | I205: 0 | J205: 0 | K205: 0 | L205: 0 | M205: 0 | N205: 0 | O205: 0 | P205: 0
D206: Current Collection efficiency
D207: Collection Efficiency | E207: % | F207: ='SW Plan'!H228 -> 0 | G207: =IF($F$207=0,0,(F207+IF('SW Plan'!$E$227="Activate",IF(AND(G$174>='SW Plan'!$G$227,G$174<'SW Plan'!$H$227+1),('SW Plan'!$H$230-$F$207)/('SW Plan'!$H$227+1-'SW Plan'!$G$227),0),0))) -> 0 | H207: =IF($F$207=0,0,(G207+IF('SW Plan'!$E$227="Activate",IF(AND(H$174>='SW Plan'!$G$227,H$174<'SW Plan'!$H$227+1),('SW Plan'!$H$230-$F$207)/('SW Plan'!$H$227+1-'SW Plan'!$G$227),0),0))) -> 0 | I207: =IF($F$207=0,0,(H207+IF('SW Plan'!$E$227="Activate",IF(AND(I$174>='SW Plan'!$G$227,I$174<'SW Plan'!$H$227+1),('SW Plan'!$H$230-$F$207)/('SW Plan'!$H$227+1-'SW Plan'!$G$227),0),0))) -> 0 | J207: =IF($F$207=0,0,(I207+IF('SW Plan'!$E$227="Activate",IF(AND(J$174>='SW Plan'!$G$227,J$174<'SW Plan'!$H$227+1),('SW Plan'!$H$230-$F$207)/('SW Plan'!$H$227+1-'SW Plan'!$G$227),0),0))) -> 0 | K207: =IF($F$207=0,0,(J207+IF('SW Plan'!$E$227="Activate",IF(AND(K$174>='SW Plan'!$G$227,K$174<'SW Plan'!$H$227+1),('SW Plan'!$H$230-$F$207)/('SW Plan'!$H$227+1-'SW Plan'!$G$227),0),0))) -> 0 | L207: =IF($F$207=0,0,(K207+IF('SW Plan'!$E$227="Activate",IF(AND(L$174>='SW Plan'!$G$227,L$174<'SW Plan'!$H$227+1),('SW Plan'!$H$230-$F$207)/('SW Plan'!$H$227+1-'SW Plan'!$G$227),0),0))) -> 0 | M207: =IF($F$207=0,0,(L207+IF('SW Plan'!$E$227="Activate",IF(AND(M$174>='SW Plan'!$G$227,M$174<'SW Plan'!$H$227+1),('SW Plan'!$H$230-$F$207)/('SW Plan'!$H$227+1-'SW Plan'!$G$227),0),0))) -> 0 | N207: =IF($F$207=0,0,(M207+IF('SW Plan'!$E$227="Activate",IF(AND(N$174>='SW Plan'!$G$227,N$174<'SW Plan'!$H$227+1),('SW Plan'!$H$230-$F$207)/('SW Plan'!$H$227+1-'SW Plan'!$G$227),0),0))) -> 0 | O207: =IF($F$207=0,0,(N207+IF('SW Plan'!$E$227="Activate",IF(AND(O$174>='SW Plan'!$G$227,O$174<'SW Plan'!$H$227+1),('SW Plan'!$H$230-$F$207)/('SW Plan'!$H$227+1-'SW Plan'!$G$227),0),0))) -> 0 | P207: =IF($F$207=0,0,(O207+IF('SW Plan'!$E$227="Activate",IF(AND(P$174>='SW Plan'!$G$227,P$174<'SW Plan'!$H$227+1),('SW Plan'!$H$230-$F$207)/('SW Plan'!$H$227+1-'SW Plan'!$G$227),0),0))) -> 0
D208: Coll eff if no SW charges are levied | F208: =IF(SUM($E$201:$E$202)<>0,0,IF(F211<>0,'WS calcu'!E$507,0)) -> 0 | G208: =IF(SUM($E$201:$E$202)<>0,0,IF(G211<>0,'WS calcu'!F$507,0)) -> 0 | H208: =IF(SUM($E$201:$E$202)<>0,0,IF(H211<>0,'WS calcu'!G$507,0)) -> 0 | I208: =IF(SUM($E$201:$E$202)<>0,0,IF(I211<>0,'WS calcu'!H$507,0)) -> 0 | J208: =IF(SUM($E$201:$E$202)<>0,0,IF(J211<>0,'WS calcu'!I$507,0)) -> 0 | K208: =IF(SUM($E$201:$E$202)<>0,0,IF(K211<>0,'WS calcu'!J$507,0)) -> 0 | L208: =IF(SUM($E$201:$E$202)<>0,0,IF(L211<>0,'WS calcu'!K$507,0)) -> 0 | M208: =IF(SUM($E$201:$E$202)<>0,0,IF(M211<>0,'WS calcu'!L$507,0)) -> 0 | N208: =IF(SUM($E$201:$E$202)<>0,0,IF(N211<>0,'WS calcu'!M$507,0)) -> 0 | O208: =IF(SUM($E$201:$E$202)<>0,0,IF(O211<>0,'WS calcu'!N$507,0)) -> 0 | P208: =IF(SUM($E$201:$E$202)<>0,0,IF(P211<>0,'WS calcu'!O$507,0)) -> 0
D209: Collected Revenue - BAU | F209: =F180*$F$207 -> 0 | G209: =G180*$F$207 -> 0 | H209: 0 | I209: 0 | J209: 0 | K209: 0 | L209: 0 | M209: 0 | N209: 0 | O209: 0 | P209: 0
D210: Collected Revenue - PIP | F210: =F186*F207 -> 0 | G210: 0 | H210: 0 | I210: 0 | J210: 0 | K210: 0 | L210: 0 | M210: 0 | N210: 0 | O210: 0 | P210: 0
D211: Collected Revenue - TARIFF | F211: =IF(SUM($E$201:$E$202)=0,F198*'WS calcu'!E$507,F198*F207) -> 0 | G211: =IF(SUM($E$201:$E$202)=0,G198*'WS calcu'!F$507,G198*G207) -> 0 | H211: =IF(SUM($E$201:$E$202)=0,H198*'WS calcu'!G$507,H198*H207) -> 0 | I211: =IF(SUM($E$201:$E$202)=0,I198*'WS calcu'!H$507,I198*I207) -> 0 | J211: =IF(SUM($E$201:$E$202)=0,J198*'WS calcu'!I$507,J198*J207) -> 0 | K211: =IF(SUM($E$201:$E$202)=0,K198*'WS calcu'!J$507,K198*K207) -> 0 | L211: =IF(SUM($E$201:$E$202)=0,L198*'WS calcu'!K$507,L198*L207) -> 0 | M211: =IF(SUM($E$201:$E$202)=0,M198*'WS calcu'!L$507,M198*M207) -> 0 | N211: =IF(SUM($E$201:$E$202)=0,N198*'WS calcu'!M$507,N198*N207) -> 0 | O211: =IF(SUM($E$201:$E$202)=0,O198*'WS calcu'!N$507,O198*O207) -> 0 | P211: =IF(SUM($E$201:$E$202)=0,P198*'WS calcu'!O$507,P198*P207) -> 0
D212: Arrear collection
D213: Arrear coll eff | E213: % | F213: ='SW Plan'!H229 -> 0 | G213: =F213+IF('SW Plan'!$E$227="Activate",IF(AND(G$174>='SW Plan'!$G$227,G$174<'SW Plan'!$H$227+1),('SW Plan'!$H$231-$F$213)/('SW Plan'!$H$227+1-'SW Plan'!$G$227),0),0) -> 0 | H213: =G213+IF('SW Plan'!$E$227="Activate",IF(AND(H$174>='SW Plan'!$G$227,H$174<'SW Plan'!$H$227+1),('SW Plan'!$H$231-$F$213)/('SW Plan'!$H$227+1-'SW Plan'!$G$227),0),0) -> 0 | I213: =H213+IF('SW Plan'!$E$227="Activate",IF(AND(I$174>='SW Plan'!$G$227,I$174<'SW Plan'!$H$227+1),('SW Plan'!$H$231-$F$213)/('SW Plan'!$H$227+1-'SW Plan'!$G$227),0),0) -> 0 | J213: =I213+IF('SW Plan'!$E$227="Activate",IF(AND(J$174>='SW Plan'!$G$227,J$174<'SW Plan'!$H$227+1),('SW Plan'!$H$231-$F$213)/('SW Plan'!$H$227+1-'SW Plan'!$G$227),0),0) -> 0 | K213: =J213+IF('SW Plan'!$E$227="Activate",IF(AND(K$174>='SW Plan'!$G$227,K$174<'SW Plan'!$H$227+1),('SW Plan'!$H$231-$F$213)/('SW Plan'!$H$227+1-'SW Plan'!$G$227),0),0) -> 0 | L213: =K213+IF('SW Plan'!$E$227="Activate",IF(AND(L$174>='SW Plan'!$G$227,L$174<'SW Plan'!$H$227+1),('SW Plan'!$H$231-$F$213)/('SW Plan'!$H$227+1-'SW Plan'!$G$227),0),0) -> 0 | M213: =L213+IF('SW Plan'!$E$227="Activate",IF(AND(M$174>='SW Plan'!$G$227,M$174<'SW Plan'!$H$227+1),('SW Plan'!$H$231-$F$213)/('SW Plan'!$H$227+1-'SW Plan'!$G$227),0),0) -> 0 | N213: =M213+IF('SW Plan'!$E$227="Activate",IF(AND(N$174>='SW Plan'!$G$227,N$174<'SW Plan'!$H$227+1),('SW Plan'!$H$231-$F$213)/('SW Plan'!$H$227+1-'SW Plan'!$G$227),0),0) -> 0 | O213: =N213+IF('SW Plan'!$E$227="Activate",IF(AND(O$174>='SW Plan'!$G$227,O$174<'SW Plan'!$H$227+1),('SW Plan'!$H$231-$F$213)/('SW Plan'!$H$227+1-'SW Plan'!$G$227),0),0) -> 0 | P213: =O213+IF('SW Plan'!$E$227="Activate",IF(AND(P$174>='SW Plan'!$G$227,P$174<'SW Plan'!$H$227+1),('SW Plan'!$H$231-$F$213)/('SW Plan'!$H$227+1-'SW Plan'!$G$227),0),0) -> 0
D214: BAU
D215: Arrear demand - BAU | F215: =F218 -> 0 | G215: =(F215-F216)+(F180-F209) -> 0 | H215: 0 | I215: 0 | J215: 0 | K215: 0 | L215: 0 | M215: 0 | N215: 0 | O215: 0 | P215: 0
D216: Arrear collection - BAU | F216: =F219 -> 0 | G216: =G215*$F$213 -> 0 | H216: =H215*$F$213 -> 0 | I216: 0 | J216: 0 | K216: 0 | L216: 0 | M216: 0 | N216: 0 | O216: 0 | P216: 0
D217: PIP actions
D218: Arrear demand - PIP | F218: ='Finance info'!I88 -> 0 | G218: =(F218-F219)+(F186-F210) -> 0 | H218: 0 | I218: 0 | J218: 0 | K218: 0 | L218: 0 | M218: 0 | N218: 0 | O218: 0 | P218: 0
D219: Arrear collection - PIP | F219: ='Finance info'!J88 -> 0 | G219: =G218*G213 -> 0 | H219: 0 | I219: 0 | J219: 0 | K219: 0 | L219: 0 | M219: 0 | N219: 0 | O219: 0 | P219: 0
D220: Tariff revision
... 84 more rows

Sheet Financial Projections
C2: PERFORMANCE ASSESSMENT SYSTEM PROJECT
C4: SANIPLAN - A City Sanitation Planning Model
B6: MODULE III: FINANCIAL PLANNING
C8: MUNICIPAL FINANCE PROJECTIONS
A9: Click | E9: WSS | J9: Non-WSS | O9: Summary
C10: Instructions for using this sheet
C11: This sheet enables the user to forecast Municipal Finance. This is necessary to assess financial strength of local government for sustaining present and planned services. The forecast is later aligned with financial implications of Action Plan. Forecast estimates of municipal finances for the full 10-year plan period will need to be prepared. To support this forecast, past trends are made available using the information for the past five years as reported in the 'Finance Info' sheet. This allows the user to look at the past tends for making projections. The user must also provide apprpriate estimates of inflation rates for capital expenditure, O&M expenditure and for revenue generation. For revenue account, the projections will relate to O&M of present services. The impact of new proposals projects are captured in the sheet on 'Action Plan Finance'. Similarly, capital account projections here will relate only to the ongoing or approved projects. It should be noted that such projects must be calibrated in Action Plan as well, to reflect its impact on service levels. Thus, essentially this sheet reflects - 'Business As Usual (BAU)' scenario for Municipal Finances. Change from BAU would be captured by capturing the financial implications of Action Plan. This will be analyzed in the sheet 'Financing Plan'.
C13: Inflation assumptions
C14: Sr. no | D14: Particulars | E14: Unit | F14: Value | G14: NOTE : Estimate inflation rate based on average trend of last five years. Please refer to statistics published by Government of India (GoI) for the same. These Inflation rates shall be applied to all financial projections, therefore arrive at best possible estimates.
C15: 1 | D15: Inflation for capital expenditure items | E15: % per annum | F15: 0.07
C16: 2 | D16: Inflation for O&M cost items | E16: % per annum | F16: 0.05
